Workbook

Sheet деканаты
A1: Факультет | D1: подпись декана | F1: Должность | G1: Декан факультета | L1: Специалист по УМР
A2: 2 | B2: Экономический | C2: Экфак | D2: Н.А. Середа | E2: экономического | F2: И.о. декана | G2: Середа | H2: Надежда | I2: Александровна | K2: доцент | L2: О.В. Сосова | M2: Сосова | N2: Ольга | O2: Васильевна
A3: 3 | B3: Архитектурно-строительный | C3: АСФ | D3: С.В. Цыбакин | E3: архитектурно-строительного | F3: Декан | G3: Цыбакин | H3: Сергей | I3: Валерьевич | J3: к.т.н. | K3: доцент | L3: ..
A4: 4 | B4: Агробизнеса | C4: Агробизнес | D4: Ю.В. Панкратов | E4: агробизнеса | F4: Декан | G4: Панкратов | H4: Юрий | I4: Владимирович | J4: к.сх.н. | K4: доцент | L4: ..
A5: 5 | B5: Ветеринарной медицины и зоотехнии | C5: ВМиЗ | D5: Н.Ю. Парамонова | E5: ветеринарной медицины и зоотехнии | F5: Декан | G5: Парамонова | H5: Наталья | I5: Юрьевна | J5: к.в.н. | K5: доцент | L5: ..
A6: 6 | B6: Инженерно-технологический | C6: ИТФ | D6: С.А. Полозов | E6: инженерно-технологического | F6: Декан | G6: Полозов | H6: Сергей | I6: Александрович | J6: к.т.н. | K6: доцент | L6: А.А. Шашкова | M6: Шашкова | N6: Анна | O6: Андреевна
A7: 7 | B7: Электроэнергетический | C7: ЭЭФ | D7: А.В. Рожнов | E7: электроэнергетического | F7: Декан | G7: Рожнов | H7: Александр | I7: Валентинович | J7: к.т.н. | K7: доцент | L7: ..

Sheet Предметы
A1: 1 | B1: 2 | C1: 3 | D1: 4 | E1: 5 | F1: 6 | G1: 7 | H1: 8 | I1: 9 | J1: 10 | K1: 11 | L1: 12 | M1: 13 | N1: 14 | O1: 15 | P1: 16 | Q1: 17 | R1: 18 | S1: 19 | T1: 20 | U1: 21 | V1: 22 | W1: 23 | X1: 24 | Y1: 25 | Z1: 26 | AA1: 27 | AB1: 28 | AC1: 29 | AD1: 30 | AE1: 31 | AF1: 32 | AG1: 33 | AH1: 34 | AI1: 35 | AJ1: 36 | AK1: 37 | AL1: 38 | AM1: 39 | AN1: 40 | AO1: 41 | AP1: 42 | AQ1: 43 | AR1: 44 | AS1: 45 | AT1: 46 | AU1: 47 | AV1: 48 | AW1: 49 | AX1: 50 | AY1: 51 | AZ1: 52 | BA1: 53 | BB1: 54 | BC1: 55 | BD1: 56 | BE1: 57 | BF1: 58 | BG1: 59 | BH1: 60 | BI1: 61 | BJ1: 62 | BK1: 63 | BL1: 64 | BM1: 65 | BN1: 66 | BO1: 67 | BP1: 68 | BQ1: 69 | BR1: 70 | BS1: 71 | BT1: 72 | BU1: 73 | BV1: 74 | BW1: 75 | BX1: 76 | BY1: 77 | BZ1: 78 | CA1: 79 | CB1: 80 | CC1: 81 | CD1: 82 | CE1: 83 | CF1: 84 | CG1: 85 | CH1: 86 | CI1: 87 | CJ1: 88 | CK1: 89 | CL1: 90 | CM1: 91 | CN1: 92 | CO1: 93 | CP1: 94 | CQ1: 95 | CR1: 96 | CS1: 97 | CT1: 98 | CU1: 99 | CV1: 100 | CW1: 101 | CX1: 102 | CY1: 103 | CZ1: 104 | DA1: 105 | DB1: 106 | DC1: 107 | DD1: 108 | DE1: 109 | DF1: 110 | DG1: 111 | DH1: 112 | DI1: 113 | DJ1: 114 | DK1: 115 | DL1: 116 | DM1: 117 | DN1: 118 | DO1: 119 | DP1: 120 | DQ1: 121 | DR1: 122 | DS1: 123 | DT1: 124 | DU1: 125 | DV1: 126 | DW1: 127 | DX1: 128 | DY1: 129 | DZ1: 130 | EA1: 131 | EB1: 132 | EC1: 133 | ED1: 134 | EE1: 135 | EF1: 136 | EG1: 137 | EH1: 138 | EI1: 139 | EJ1: 140 | EK1: 141 | EL1: 142 | EM1: 143 | EN1: 144 | EO1: 145 | EP1: 146 | EQ1: 147 | ER1: 148 | ES1: 149 | ET1: 150 | EU1: 151 | EV1: 152 | EW1: 153 | EX1: 154 | EY1: 155 | EZ1: 156 | FA1: 157 | FB1: 158 | FC1: 159 | FD1: 160 | FE1: 161 | FF1: 162 | FG1: 163 | FH1: 164 | FI1: 165 | FJ1: 166 | FK1: 167 | FL1: 168 | FM1: 169 | FN1: 170 | FO1: 171 | FP1: 172 | FQ1: 173 | FR1: 174 | FS1: 175 | FT1: 176 | FU1: 177 | FV1: 178 | FW1: 179 | FX1: 180 | FY1: 181 | FZ1: 182 | GA1: 183 | GB1: 184 | GC1: 185 | GD1: 186 | GE1: 187 | GF1: 188 | GG1: 189 | GH1: 190 | GI1: 191 | GJ1: 192 | GK1: 193 | GL1: 194 | GM1: 195 | GN1: 196 | GO1: 197 | GP1: 198 | GQ1: 199 | GR1: 200 | GS1: 201 | GT1: 202 | GU1: 203 | GV1: 204 | GW1: 205 | GX1: 206 | GY1: 207 | GZ1: 208 | HA1: 209 | HB1: 210 | HC1: 211 | HD1: 212 | HE1: 213 | HF1: 214 | HG1: 215 | HH1: 216 | HI1: 217 | HJ1: 218 | HK1: 219 | HL1: 220 | HM1: 221 | HN1: 222 | HO1: 223 | HP1: 224 | HQ1: 225 | HR1: 226 | HS1: 227 | HT1: 228 | HU1: 229 | HV1: 230 | HW1: 231 | HX1: 232 | HY1: 233 | HZ1: 234 | IA1: 235 | IB1: 236 | IC1: 237 | ID1: 238 | IE1: 239 | IF1: 240 | IG1: 241 | IH1: 242 | II1: 243 | IJ1: 244 | IK1: 245 | IL1: 246 | IM1: 247 | IN1: 248 | IO1: 249 | IP1: 250 | IQ1: 251 | IR1: 252 | IS1: 253 | IT1: 254 | IU1: 255 | IV1: 256 | IW1: 257 | IX1: 258 | IY1: 259 | IZ1: 260 | JA1: 261 | JB1: 262 | JC1: 263 | JD1: 264 | JE1: 265 | JF1: 266 | JG1: 267
CC2: 2 | CF2: 2 | CI2: 2 | CL2: 2 | CO2: 2 | CR2: 2 | CU2: 2 | CX2: 2 | DA2: 2 | DD2: 2 | DG2: 3 | DJ2: 3 | DM2: 3 | DP2: 3 | DS2: 3 | DV2: 3 | DY2: 4 | EB2: 4 | EE2: 4 | EH2: 4 | EK2: 4 | EN2: 4 | EQ2: 4 | ET2: 4 | EW2: 5 | EZ2: 5 | FC2: 5 | FF2: 5 | FI2: 5 | FL2: 5 | FO2: 5 | FR2: 5 | FU2: 6 | FX2: 6 | GA2: 6 | GD2: 6 | GG2: 6 | GJ2: 6 | GM2: 6 | GP2: 6 | GS2: 6 | GV2: 6 | GY2: 6 | HB2: 7 | HE2: 7 | HH2: 7 | HK2: 7 | HN2: 7 | HQ2: 7 | HT2: 7 | HW2: 7 | HZ2: 7 | IC2: 8 | IF2: 8 | II2: 8 | IL2: 8 | IO2: 8 | IR2: 8 | IU2: 8 | IX2: 8 | JA2: 8 | JD2: 8 | JG2: 8
CC3: 216 | CF3: 108 | CI3: 108 | CL3: 72 | CO3: 72 | CR3: 216 | CU3: 252 | CX3: 360 | DA3: 216 | DG3: 144 | DJ3: 72 | DM3: 180 | DP3: 144 | DS3: 76 | DV3: 180 | DY3: 212 | EB3: 108 | EE3: 216 | EH3: 216 | EK3: 144 | EN3: 72 | EQ3: 72 | EW3: 144 | EZ3: 144 | FC3: 144 | FF3: 144 | FI3: 144 | FL3: 144 | FO3: 288 | FU3: 72 | FX3: 144 | GA3: 252 | GG3: 144 | GJ3: 180 | GP3: 144 | GS3: 144 | HB3: 108 | HE3: 144 | HH3: 180 | HK3: 144 | HQ3: 108 | HT3: 180 | HW3: 289 | IC3: 144 | IF3: 108 | II3: 108 | IL3: 71 | IR3: 144 | IU3: 180 | IX3: 72 | JA3: 180
A4: 0 | B4: Фамилия | C4: Имя | D4: Отчество | E4: ФИО | F4: ФИО | G4: Фамилия | H4: Имя | I4: Отчество | J4: Дата | K4: Место | L4: Гражданство | M4: Пол | N4: Что окончил(а) | O4: Год | P4: Семейное | R4: Трудовая книжка | U4: Паспорт | Y4: № | AC4: Профиль / специализация | AD4: Срок обучения | AE4: Квалификация | AF4: Приказ | AG4: Дата | AH4: вид зачисления | AI4: контракта /договора | AK4: Переведен на бюджет | AM4: Отчислен | AP4: Восстановлен | AS4: Академический отпуск | AX4: Переводной приказ 1 курс | AZ4: Переводной приказ 2 курс | BB4: Переводной приказ 3 курс | BD4: Переводной приказ 4 курс | BF4: Переводной приказ 5 курс | BH4: Переводной приказ 6 курс | BJ4: допуск к защите дипломного проекта | BL4: гос. экзамен | BR4: Диплом | CA4: Курс | CB4: Группа | CC4: 1 курс | DG4: 2 курс | EW4: 3 курс | HB4: 4 курс | JL4: Оценки по предметам
A5: 0 | F5: Дател. Падеж | G5: Дател. Падеж | H5: Дател. Падеж | I5: Дател. Падеж | J5: рождения | K5: рождения | O5: окончания | P5: положение | Q5: Адрес места жительства | R5: Номер | S5: Дата выдачи | T5: кем выдана | U5: серия | V5: Номер | W5: Дата выдачи | X5: кем выдан | Y5: 6ной | Z5: Факультет | AA5: Направление /специальность | AI5: договора | AJ5: Дата | AK5: договора | AL5: Дата | AM5: Приказ | AN5: Дата | AO5: Причина отчисления | AP5: Приказ | AQ5: Дата | AR5: Причина востановления | AS5: Приказ | AT5: Дата | AU5: Причина | AV5: с даты | AW5: по дату | AX5: Приказ | AY5: Дата | AZ5: Приказ | BA5: Дата | BB5: Приказ | BC5: Дата | BD5: Приказ | BE5: Дата | BF5: Приказ | BG5: Дата | BH5: Приказ | BI5: Дата | BJ5: Приказ | BK5: Дата | BL5: Название экзамена | BM5: Дата | BN5: оценка | BO5: Название экзамена | BP5: Дата | BQ5: оценка | BR5: Тема | BS5: оценка | BT5: протокола | BU5: Дата защиты | BV5: Отличие | BW5: Регистр.№ | BX5: Серия | BY5: Номер | BZ5: Дата выдачи | CC5: Делопроизводство и документооборот | CF5: Введение в профессию и основы научных исследований | CI5: История | CL5: Психология | CO5: Иностранный язык (З) | CR5: Математический анализ | CU5: Линейная алгебра | CX5: Информатика и информационное обеспечение бухгалтерского учета | DA5: Микроэкономика | DD5: Общая физическая подготовка | DG5: Иностранный язык | DJ5: Социология | DM5: Политология | DP5: Теория вероятностей и математическая статистика | DS5: Макроэкономика (З) | DV5: Эконометрика | DY5: Макроэкономика | EB5: Философия | EE5: Инструментальные средства программирования бухгалтерских операций | EH5: Статистика | EK5: Менеджмент | EN5: Физическая культура и спорт | EQ5: Деловые коммуникации | ET5: Практика по ПППУ и Н | EW5: Право | EZ5: Регионалистика | FC5: Методы оптимальных решений | FF5: Информационные технологии и базы данных в бухгалтерском учете | FI5: Финансы | FL5: Мировая экономика и международные экономические отношения | FO5: Моделирование социально-экономических систем | FR5: Моделирование социально-экономических систем (КП) | FU5: Методы принятия управленческих решений в сфере бухгалтерского учета | FX5: Безопасность жизнедеятельности | GA5: Бухгалтерский учет и анализ | GD5: Бухгалтерский учет и анализ (КР) | GG5: Деньги, кредит, банки | GJ5: Экономика организаций (предприятий) | GM5: Экономика организаций (предприятий) (КР) | GP5: Планирование на предприятии | GS5: Аудит | GV5: Аудит (КР) | GY5: Практика по ППУ и ОПД | HB5: Маркетинг | HE5: Корпоративные финансы | HH5: Бухгалтерский управленческий учет | HK5: Комплексный анализ хозяйственной деятельности | HN5: Комплексный анализ хозяйственной деятельности (КР) | HQ5: Международные стандарты финансовой отчетности | HT5: Логистика | HW5: Бухгалтерский финансовый учет (З) | HZ5: Производственная практика (технологическая) | IC5: Макроэкономическое планирование и прогнозирование | IF5: Налоги и налогообложение | II5: Анализ финансовой отчетности | IL5: Бухгалтерский финансовый учет | IO5: Бухгалтерский финансовый учет (КР) | IR5: Лабораторный практикум по бухгалтерскому учету | IU5: Бухгалтерский учет на предприятиях малого бизнеса | IX5: Практикум 1С:Бухгалтерия | JA5: Бухгалтерская (финансовая) отчетность | JD5: НИР | JG5: Преддипломная практика | JJ5: Средний балл | JL5: из них с оценками 3 | JM5: из них с оценками 4 | JN5: из них с оценками 5 | JO5: из них с 6ом | JP5: итого предметов | JQ5: Часы всего | JR5: из них аудиторных | JS5: из них с оценками 3 | JT5: из них с оценками 4 | JU5: из них с оценками 5 | JW5: Количество долгов
A6: =A5+1 -> 1 | B6: Большакова | C6: Анастасия | D6: Александровна | E6: =CONCATENATE(B6," ",LEFT(C6,1),". ",LEFT(D6,1),".") -> Большакова А. А. | F6: =DativeCase(CONCATENATE(B6," ", C6," ",D6)) ->  | G6: Большаковой | H6: Анастасии | I6: Александровне | J6: 1995-10-19 | K6: с. Веденье Октябрьского р-на Костромской обл. | L6: РФ | M6: ж | N6: ОГБ ПОУ "Костромской торгово-экономический колледж" | O6: 2014 | P6: не замужем | Q6: г. Кострома, г., Мантуровский проезд, д. 8, кв. 3 | Y6: 14017 | Z6: Экономический | AA6: 38.03.01 | AB6: Экономика | AC6: Бухгалтерский учет, анализ и аудит | AD6: 4 года | AE6: БАКАЛАВР | AF6: 2-525 | AG6: 2014-08-21 | AH6: по договору с полным возмещением затрат | AI6: 000002911 | AJ6: 2014-08-14 | AS6: 2-339 | AT6: 2018-05-03 | AU6: по семейным обстоятельствам | AV6: 2018-04-19 | AW6: 2019-04-18 | AX6: 2-571 | AY6: 2015-09-01 | AZ6: 2-561 | BA6: 2016-09-01 | BR6: Бухгалтерский учет и анализ расчетов с поставщиками, покупателями в ООО «Паритет» г. Кострома | CA6: 4 | CB6: АО | CC6: 3 | CD6: 2018-02-09 | CI6: 3 | CJ6: 02.06.2015 | CL6: 6 | CM6: 04.06.2015 | CR6: 3 | CS6: 09.02.2018 | CU6: 3 | CV6: 04.06.2015 | CX6: 3 | CY6: 03.06.2015 | DA6: 4 | DB6: 09.06.2015 | DD6: 6 | DE6: 22.05.2015 | DJ6: 6 | DK6: 22.12.2015 | DM6: 4 | DN6: 29.12.2015 | DP6: 3 | DQ6: 26.05.2017 | DS6: 6 | DT6: 25.12.2015 | DV6: 3 | DW6: 28.12.2015 | DY6: 4 | DZ6: 13.04.2016 | EB6: 6 | EC6: 25.04.2016 | EE6: 3 | EF6: 22.04.2016 | EH6: 3 | EI6: 22.04.2016 | EK6: 3 | EL6: 21.04.2016 | ET6: 4 | EU6: п/зач 08.09.2014 | EW6: 4 | EX6: 01.12.2016 | EZ6: 5 | FA6: 01.12.2016 | FF6: 3 | FG6: 20.06.2017 | FL6: 3 | FM6: 26.05.2017 | FO6: 4 | FP6: 01.12.2016 | FR6: 3 | FS6: 30.11.2016 | FT6: Оптимальная специализация и сочетание отраслей | FU6: 6 | FV6: 03.06.2017 | FX6: 3 | FY6: 03.06.2017 | GA6: 3 | GB6: 03.06.2017 | GG6: 3 | GH6: 03.06.2017 | GJ6: 3 | GK6: 03.06.2017 | GO6: Порядок формирования цен на продукцию организации (предприятия) Эффективность использования основных средств | GP6: 3 | GQ6: 09.02.2018 | GX6: Аудит расчетов с персоналом по оплате труда в ООО "АБП" г. Кострома | GY6: 3 | GZ6: п/зач | HB6: 3 | HC6: 2018-02-09 | HD6: 463 | HE6: 4 | HF6: 11.10.2017 | HH6: 3 | HI6: 11.10.2017 | HK6: 3 | HL6: 11.10.2017 | HP6: 0 | HQ6: 4 | HR6: 11.10.2017 | HT6: 4 | HU6: 11.10.2017 | HZ6: 5 | IC6: 3 | ID6: 2018-02-09 | IE6: Z-7739714 | IF6: 6 | IG6: 2018-04-19 | IH6: 77339563-21 | II6: 6 | IJ6: 2018-04-19 | IK6: 7739561-22 | IQ6: Учет расчетов с поставщиками и покупателями в ООО "Паритет" г.Кострома | IU6: 3 | IV6: 2018-02-09 | IW6: Z-7739505 | IX6: 6 | IY6: 2018-02-09 | IZ6: Z-7739549 | JA6: 4 | JB6: 2018-02-09 | JC6: Z-7739516 | JF6: ФГБОУ ВО Костромская ГСХА, кафедра бухгалтерский учет, анализ | JI6: ООО "Паритет" | JJ6: =(JL6*3+JM6*4+JN6*5)/50 -> 2.44 | JL6: =COUNTIF(CC6:JG6,3) -> 24 | JM6: =COUNTIF(CC6:JG6,4) -> 10 | JN6: =COUNTIF(CC6:JG6,5) -> 2 | JO6: =COUNTIF(CC6:JG6,6) -> 9 | JP6: =SUM(JL6:JN6) -> 36 | JQ6: =SUMIF(CC6:JG6,">0",$CC$3:$JG$3) -> 6444 | JR6: =INT(JQ6/8+0.5) -> 806
A7: =A6+1 -> 2 | B7: Григорян | C7: Анжела | D7: Сергеевна | E7: Григорян А. С. | G7: Григорян | H7: Анжеле | I7: Сергеевне | J7: 1990-12-13 | K7: д. Бобровы Даровского р-на Кировской обл. | L7: РФ | M7: ж | N7: ОГБОУ СПО "Костромской политехнический колледж" | O7: 2012 | P7: замужем | Q7: г. Кострома, ул. Индустриальная, д. 57, кв. 81 | Y7: 13102 | Z7: Экономический | AA7: 38.03.01 | AB7: Экономика | AC7: Бухгалтерский учет, анализ и аудит | AD7: 4 года | AE7: БАКАЛАВР | AF7: 2-522 | AG7: 2013-08-16 | AH7: по договору с полным возмещением затрат | AI7: 000000904 | AJ7: 2013-08-15 | AS7: 2-491 2-379 | AT7: 06.06.2017 16.05.2018 | AU7: по семейным обстоятельствам по семейным обстоятельствам | AV7: 26.05.2017 10.05.2018 | AW7: 25.05.2018 09.05.2019 | AX7: 2-532 | AY7: 2014-09-01 | AZ7: 2-571 | BA7: 2015-09-01 | BB7: 2-402 | BC7: 2017-05-18 | BR7: Бухгалтерский учет расчетов с бюджетом и внебюджетными фондами и анализ налоговой нагрузки в ООО «Лика» г. Кострома | CA7: 4 | CB7: АО | CI7: 4 | CJ7: 21.12.2013 | CL7: 6 | CM7: 16.01.2014 | CO7: 6 | CP7: 26.06.2014 | CR7: 4 | CS7: 18.06.2014 | CU7: 5 | CV7: 17.06.2014 | CX7: 5 | CY7: 27.06.2014 | DA7: 4 | DB7: 26.06.2014 | DG7: 3 | DH7: 16.12.2014 | DJ7: 6 | DK7: 23.12.2014 | DM7: 4 | DN7: 29.12.2014 | DP7: 4 | DQ7: 27.12.2014 | DS7: 6 | DT7: 19.12.2014 | DV7: 5 | DW7: 25.12.2014 | DY7: 5 | DZ7: 22.04.2015 | EB7: 6 | EC7: 16.04.2015 | EE7: 3 | EF7: 28.01.2016 | EH7: 4 | EI7: 18.04.2015 | EK7: 4 | EL7: 25.04.2015 | EN7: 6 | EO7: 24.04.2014 | ET7: 5 | EU7: 22.05.2017 | EV7: ФГБОУ ВО Костромская ГСХА, кафедра экономической кибернетики | EW7: 4 | EX7: 28.11.2015 | EZ7: 4 | FA7: 31.08.2016 | FC7: 3 | FD7: 15.09.2016 | FF7: 3 | FG7: 22.09.2016 | FI7: 5 | FJ7: 20.09.2016 | FL7: 4 | FM7: 14.09.2016 | FO7: 5 | FP7: 12.10.2016 | FR7: 5 | FS7: 12.10.2016 | FU7: 6 | FV7: 13.09.2016 | FX7: 3 | FY7: 29.09.2016 | GA7: 5 | GB7: 28.06.2016 | GD7: 4 | GE7: 16.05.2017 | GG7: 5 | GH7: 04.06.2016 | GJ7: 5 | GK7: 01.07.2016 | GM7: 3 | GN7: 19.05.2017 | GP7: 3 | GQ7: 12.05.2017 | GS7: 4 | GT7: 04.06.2016 | GV7: 4 | GW7: 15.05.2017 | HA7: ООО "Лика" г. Кострома | HB7: 5 | HC7: 22.05.2017 | HE7: 4 | HF7: 22.05.2017 | HH7: 4 | HI7: 25.05.2017 | HN7: 5 | HO7: 26.05.2017 | HP7: 0 | HQ7: 5 | HR7: 22.05.2017 | HT7: 4 | HU7: 26.05.2017 | HW7: 6 | HX7: 23.05.2017 | IC7: 4 | ID7: 26.05.2017 | IF7: 6 | IG7: 26.05.2017 | II7: 6 | IJ7: 16.05.2017 | IU7: 4 | IV7: 11.05.2017 | IX7: 6 | IY7: 26.05.2017 | JA7: 5 | JB7: 22.05.2017 | JF7: ФГБОУ ВО Костромская ГСХА, кафедра бухгалтерский учет, анализ | JJ7: 3.36 | JL7: 7 | JM7: 18 | JN7: 15 | JO7: 11 | JP7: 40 | JQ7: 7093 | JR7: 887
A8: 3 | B8: Калинина | C8: Анастасия | D8: Евгеньевна | E8: Калинина А. Е. | G8: Калининой | H8: Анастасии | I8: Евгеньевне | J8: 1991-10-01 | K8: п. Поназырево Поназыревского р-на Костромской обл. | L8: РФ | M8: ж | N8: ОГБОУ СПО "Шарьинский аграрный техникум Костромской области" | O8: 2013 | P8: замужем | Q8: Костромская обл., Поназыревский р-н, д. Поназырево, ул. Пролетарская, д. 31 | Y8: 13125 | Z8: Экономический | AA8: 38.03.01 | AB8: Экономика | AC8: Бухгалтерский учет, анализ и аудит | AD8: 4 года | AE8: БАКАЛАВР | AF8: 2-552 | AG8: 2013-08-30 | AH8: по договору с полным возмещением затрат | AI8: 000000950 | AJ8: 2013-08-16 | AS8: 2-491 2-448 | AT8: 06.06.2017 31.05.2018 | AU8: по семейным обстоятельствам по семейным обстоятельствам | AV8: 23.05.2017 23.05.2018 | AW8: 22.05.2018 22.05.2019 | AX8: 2-532 | AY8: 2014-09-01 | AZ8: 2-571 | BA8: 2015-09-01 | BB8: 2-402 | BC8: 2017-05-18 | CA8: 4 | CB8: АО | CC8: 4 | CD8: 20.05.2014 | CF8: 6 | CG8: 2018-02-09 | CI8: 3 | CJ8: 30.05.2014 | CL8: 6 | CM8: 03.06.2014 | CO8: 6 | CP8: 30.05.2014 | CR8: 3 | CS8: 09.06.2014 | CU8: 3 | CV8: 05.06.2014 | CX8: 5 | CY8: 02.06.2014 | DA8: 3 | DB8: 07.06.2014 | DD8: 6 | DE8: 21.05.2014 | DG8: 3 | DH8: 15.04.2015 | DJ8: 6 | DK8: 21.04.2015 | DM8: 3 | DN8: 21.04.2015 | DP8: 3 | DQ8: 19.11.2015 | DS8: 6 | DT8: 01.02.2017 | DV8: 3 | DW8: 20.04.2015 | DY8: 3 | DZ8: 01.02.2017 | EB8: 6 | EC8: 16.04.2015 | EE8: 3 | EF8: 21.04.2015 | EH8: 3 | EI8: 18.04.2015 | EK8: 3 | EL8: 25.04.2015 | ET8: 5 | EU8: 04.09.2013 | EV8: ФГБОУ ВО Костромская ГСХА, кафедра экономической кибернетики | EW8: 3 | EX8: 28.11.2015 | EZ8: 5 | FA8: 19.11.2015 | FC8: 3 | FD8: 05.05.2017 | FF8: 3 | FG8: 01.02.2017 | FI8: 3 | FJ8: 20.11.2015 | FL8: 5 | FM8: 21.11.2015 | FO8: 3 | FP8: 15.05.2017 | FR8: 3 | FS8: 31.05.2016 | FT8: 0 | FU8: 6 | FV8: 05.06.2016 | FX8: 3 | FY8: 04.06.2016 | GA8: 3 | GB8: 05.05.2017 | GD8: 3 | GE8: 05.05.2017 | GG8: 4 | GH8: 05.06.2016 | GJ8: 4 | GK8: 14.06.2016 | GM8: 3 | GN8: 10.05.2017 | GP8: 4 | GQ8: 28.05.2016 | GS8: 3 | GT8: 04.06.2016 | GV8: 3 | GW8: 05.05.2017 | GY8: 5 | GZ8: 04.09.2013 | HB8: 3 | HC8: 12.10.2016 | HE8: 3 | HF8: 18-05-117 | HH8: 3 | HI8: 11.05.2017 | HK8: 0 | HN8: 0 | HQ8: 3 | HR8: 04.02.2017 | HT8: 4 | HU8: 12.10.2016 | HZ8: 5 | IA8: 04.09.2013 | IC8: 4 | ID8: 04.02.2017 | IF8: 6 | IG8: 04.02.2017 | II8: 6 | IJ8: 2018-02-09 | IR8: 3 | IS8: 04.02.2017 | IU8: 3 | IV8: 2017-05-11 | IX8: 6 | IY8: 04.02.2017 | JA8: 4 | JB8: 04.02.2017 | JD8: 4 | JE8: 03.04.2017 | JJ8: 3.04 | JL8: 30 | JM8: 8 | JN8: 6 | JO8: 11 | JP8: 44 | JQ8: 7200 | JR8: 900
A9: 4 | B9: Михайлина | C9: Александра | D9: Сергеевна | E9: Михайлина А. С. | G9: Михайлиной | H9: Александре | I9: Сергеевне | J9: 1995-11-16 | K9: п. Красное-на-Волге Красносельского р-на Костромской обл. | L9: РФ | M9: ж | N9: Костромской технологический техникум | O9: 2014 | P9: не замужем | Q9: Костромская обл., Красносельский р-н, пгт. Красное-на-Волге, ул. Песочная, д. 1, кв. 15 | Y9: 14121 | Z9: Экономический | AA9: 38.03.01 | AB9: Экономика | AC9: Бухгалтерский учет, анализ и аудит | AD9: 4 года | AE9: БАКАЛАВР | AF9: 2-525 | AG9: 2014-08-21 | AH9: по договору с полным возмещением затрат | AI9: 000002875 | AJ9: 2014-08-13 | AS9: 2-379 | AT9: 2018-05-16 | AU9: по семейным обстоятельствам | AV9: 2018-05-17 | AW9: 2019-05-16 | AX9: 2-571 | AY9: 2015-09-01 | AZ9: 2-561 | BA9: 2016-09-01 | BB9: 2-703 | BC9: 2017-09-01 | BR9: Бухгалтерский учет расчетов с персоналом по оплате труда и анализ использования трудовых ресурсов в СПК Колхоз «Родина» Красносельского района Костромской области | CA9: 4 | CB9: АО | CC9: 3 | CD9: 2018-02-09 | CF9: 6 | CG9: 2018-02-09 | CI9: 3 | CJ9: 02.06.2015 | CL9: 6 | CM9: 04.06.2015 | CO9: 6 | CP9: 29.06.2015 | CR9: 3 | CS9: 30.05.2015 | CU9: 3 | CV9: 04.06.2015 | CX9: 3 | CY9: 03.06.2015 | DA9: 4 | DB9: 09.06.2015 | DD9: 6 | DE9: 22.05.2015 | DG9: 3 | DH9: 17.12.2015 | DJ9: 6 | DK9: 22.12.2015 | DM9: 4 | DN9: 29.12.2015 | DP9: 3 | DQ9: 26.12.2015 | DS9: 6 | DT9: 25.12.2015 | DV9: 3 | DW9: 28.12.2015 | DY9: 5 | DZ9: 13.04.2016 | EB9: 6 | EC9: 25.04.2016 | EE9: 3 | EF9: 22.04.2016 | EH9: 3 | EI9: 22.04.2016 | EK9: 4 | EL9: 21.04.2016 | ET9: 3 | EU9: п/зач 08.09.2014 | EW9: 4 | EX9: 01.12.2016 | EZ9: 4 | FA9: 01.12.2016 | FC9: 3 | FD9: 01.12.2016 | FF9: 3 | FG9: 01.12.2016 | FI9: 5 | FJ9: 01.12.2016 | FL9: 4 | FM9: 24.11.2016 | FO9: 4 | FP9: 01.12.2016 | FR9: 3 | FS9: 30.11.2016 | FT9: Оптимизация структуры кормопроизводства предприятия | FU9: 6 | FV9: 03.06.2017 | FX9: 3 | FY9: 03.06.2017 | GA9: 4 | GB9: 03.06.2017 | GD9: 4 | GE9: 03.06.2017 | GF9: История развития бухгалтерского учета | GG9: 3 | GH9: 03.06.2017 | GJ9: 4 | GK9: 03.06.2017 | GM9: 3 | GN9: 03.06.2017 | GO9: Конкурентоспособность организации (предприятия) | GP9: 3 | GQ9: 03.06.2017 | GS9: 3 | GT9: 03.06.2017 | GV9: 4 | GW9: 03.06.2017 | GX9: Планирование аудита | GY9: 4 | GZ9: 08.09.2014 | HB9: 3 | HC9: 11.10.2017 | HE9: 4 | HF9: 11.10.2017 | HH9: 3 | HI9: 11.10.2017 | HK9: 3 | HL9: 11.10.2017 | HN9: 3 | HO9: 11.10.2017 | HP9: Анализ финансовых результатов от продажи продукции в ОАО "Караваево" Костромского р-на Костромской обл | HQ9: 5 | HR9: 11.10.2017 | HT9: 4 | HU9: 11.10.2017 | HW9: 6 | HX9: 06.02.2018 | HZ9: 5 | IA9: 08.09.2014 | IC9: 3 | ID9: 2018-02-09 | IE9: Z-7739714 | IF9: 6 | IG9: 2018-02-09 | IH9: Z-7739563 | II9: 6 | IJ9: 2018-02-09 | IK9: Z-7739561 | IL9: 3 | IM9: 2018-02-09 | IN9: Z-7739521 | IQ9: Учет труда и его оплаты в ОАО "Племзавод "Караваево" | IR9: 3 | IS9: 2018-02-09 | IT9: Z-7739509 | IU9: 4 | IV9: 2018-02-09 | IW9: Z-7739505 | IX9: 6 | IY9: 2018-02-09 | IZ9: Z-7739549 | JA9: 4 | JB9: 2018-02-09 | JC9: Z-7739516 | JF9: ФГБОУ ВО Костромская ГСХА, кафедра бухгалтерский учет, анализ | JI9: СПК Колхоз "Родина" Красносельского р-на Костромской обл. | JJ9: 3.24 | JL9: 26 | JM9: 16 | JN9: 4 | JO9: 12 | JP9: 46 | JQ9: 7704 | JR9: 963
A10: 5 | B10: Панкова | C10: Екатерина | D10: Андреевна | E10: Панкова Е. А. | G10: Панковой | H10: Екатерине | I10: Андреевне | J10: 1996-08-04 | K10: г. Галич Костромской обл. | L10: РФ | M10: ж | N10: ОГБ ПОУ "Галичский аграрный техникум Костромской области" | O10: 2014 | P10: не замужем | Q10: Костромская обл., г. Галич ул.Свердлова, д. 1 | Y10: 14123 | Z10: Экономический | AA10: 38.03.01 | AB10: Экономика | AC10: Бухгалтерский учет, анализ и аудит | AD10: 4 года | AE10: БАКАЛАВР | AF10: 2-525 | AG10: 2014-08-21 | AH10: по договору с полным возмещением затрат | AI10: 000002844 | AJ10: 2014-08-12 | AX10: 2-571 | AY10: 2015-09-01 | AZ10: 2-561 | BA10: 2016-09-01 | BB10: 2-703 | BC10: 2017-09-01 | BJ10: 2-395 | BK10: 2018-05-21 | BL10: Государственный экзамен | BM10: 2018-05-31 | BN10: 4 | BR10: Бухгалтерский учет и анализ эффективности использования денежных средств в ООО «Ладыгино» Галичского района Костромской области | BS10: 5 | BT10: 16 | BU10: 2018-06-25 | BW10: 36213 | BX10: 104406 | BY10: 0018151 | BZ10: 2018-06-29 | CA10: 4 | CB10: 246z | CC10: 3 | CD10: 2018-02-09 | CF10: 6 | CG10: 2018-05-17 | CH10: 77310136-30 | CI10: 4 | CJ10: 02.06.2015 | CL10: 6 | CM10: 04.06.2015 | CO10: 6 | CP10: 17.12.2015 | CR10: 3 | CS10: 30.05.2015 | CU10: 3 | CV10: 04.06.2015 | CX10: 4 | CY10: 03.06.2015 | DA10: 4 | DB10: 09.06.2015 | DD10: 6 | DE10: 22.05.2015 | DG10: 3 | DH10: 17.12.2015 | DJ10: 6 | DK10: 22.12.2015 | DM10: 4 | DN10: 29.12.2015 | DP10: 4 | DQ10: 26.12.2015 | DS10: 6 | DT10: 25.12.2015 | DV10: 3 | DW10: 28.12.2015 | DY10: 4 | DZ10: 13.04.2016 | EB10: 6 | EC10: 25.04.2016 | EE10: 3 | EF10: 22.04.2016 | EH10: 4 | EI10: 22.04.2016 | EK10: 5 | EL10: 21.04.2016 | ET10: 4 | EU10: п/зач 08.09.2014 | EW10: 4 | EX10: 01.12.2016 | EZ10: 3 | FA10: 01.12.2016 | FC10: 3 | FD10: 01.12.2016 | FF10: 3 | FG10: 01.12.2016 | FI10: 3 | FJ10: 2018-03-16 | FK10: 543 | FL10: 4 | FM10: 24.11.2016 | FO10: 3 | FP10: 01.12.2016 | FR10: 3 | FS10: 30.11.2016 | FT10: Оптимизация структуры кормопроизводства предприятия | FU10: 6 | FV10: 03.06.2017 | FX10: 4 | FY10: 03.06.2017 | GA10: 4 | GB10: 03.06.2017 | GD10: 4 | GE10: 03.06.2017 | GF10: Формы безналичных расчетов применяемых в РФ | GG10: 4 | GH10: 03.06.2017 | GJ10: 3 | GK10: 03.06.2017 | GM10: 3 | GN10: 2018-05-17 | GO10: Эффективность отрасли животноводства в организации (предприятии) | GP10: 4 | GQ10: 03.06.2017 | GS10: 4 | GT10: 03.06.2017 | GV10: 3 | GW10: 03.06.2017 | GX10: Планирование аудита | GY10: 4 | GZ10: 08.09.2014 | HB10: 3 | HC10: 11.10.2017 | HE10: 4 | HF10: 11.10.2017 | HH10: 3 | HI10: 11.10.2017 | HK10: 3 | HL10: 11.10.2017 | HN10: 4 | HO10: 08.02.2018 | HP10: Анализ продукции растениеводства в СПК "Маяк" Галичского района Костромской области | HQ10: 4 | HR10: 11.10.2017 | HT10: 4 | HU10: 11.10.2017 | HW10: 6 | HX10: 11.10.2017 | HZ10: 5 | IA10: 08.09.2014 | IC10: 3 | ID10: 2018-02-09 | IE10: Z-7739714 | IF10: 6 | IG10: 2018-02-09 | IH10: Z-7739563 | II10: 6 | IJ10: 2018-02-09 | IK10: Z-7739561 | IL10: 3 | IM10: 2018-02-09 | IN10: Z-7739521 | IO10: 4 | IP10: 2018-04-11 | IQ10: Учет денежных средств в ООО "Ладыгино" Галичского района Костромской области | IR10: 4 | IS10: 2018-03-05 | IT10: 517 | IU10: 3 | IV10: 2018-02-09 | IW10: Z-7739505 | IX10: 6 | IY10: 2018-02-09 | IZ10: Z-7739549 | JA10: 4 | JB10: 2018-02-09 | JC10: Z-7739516 | JD10: 4 | JE10: 2018-03-20 | JF10: ФГБОУ ВО Костромская ГСХА, кафедра бухгалтерский учет, анализ | JG10: 3 | JH10: 2018-04-11 | JI10: ООО "Ладыгино" Галичского р-на Костромской обл. | JJ10: 3.52 | JL10: 22 | JM10: 25 | JN10: 2 | JO10: 12 | JP10: 49 | JQ10: 7704 | JR10: 963
A11: 6 | B11: Хлебникова | C11: Надежда | D11: Сергеевна | E11: Хлебникова Н. С. | G11: Хлебниковой | H11: Надежде | I11: Сергеевне | J11: 1992-10-28 | K11: с. Минское Костромского р-на Костромской обл. | L11: РФ | M11: ж | N11: ОГБОУ СПО "Шарьинский политехнический техникум Костромской области" | O11: 2013 | P11: замужем | Q11: Костромская обл., г. Шарья, пер. Тургенева, д. 3 | Y11: 13115 | Z11: Экономический | AA11: 38.03.01 | AB11: Экономика | AC11: Бухгалтерский учет, анализ и аудит | AD11: 4 года | AE11: БАКАЛАВР | AF11: 2-552 | AG11: 2013-08-30 | AH11: по договору с полным возмещением затрат | AI11: 000000954 | AJ11: 2013-08-19 | AS11: 2-1040 | AT11: 2017-12-29 | AU11: по семейным обстоятельствам | AV11: 2017-12-20 | AW11: 2018-12-19 | AX11: 2-532 | AY11: 2014-09-01 | AZ11: 2-571 | BA11: 2015-09-01 | CA11: 4 | CB11: АО | CC11: 4 | CD11: 20.05.2014 | CF11: 6 | CG11: 22.05.2014 | CI11: 4 | CJ11: 30.05.2014 | CL11: 6 | CM11: 03.06.2014 | CO11: 6 | CP11: 30.05.2014 | CR11: 3 | CS11: 09.06.2014 | CU11: 3 | CV11: 05.06.2014 | CX11: 4 | CY11: 02.06.2014 | DD11: 6 | DE11: 21.05.2014 | DG11: 3 | DH11: 30.05.2017 | DJ11: 6 | DK11: 23.12.2014 | DM11: 4 | DN11: 29.12.2017 | DP11: 3 | DQ11: 20.12.2017 | DS11: 6 | DT11: 19.12.2014 | DV11: 5 | DW11: 25.12.2014 | EB11: 6 | EC11: 16.04.2015 | EE11: 3 | EF11: 02.12.2017 | EH11: 3 | EI11: 11.10.2016 | EK11: 3 | EL11: 25.04.2015 | ET11: 4 | EU11: 04.09.2013 | EV11: ФГБОУ ВО Костромская ГСХА, кафедра экономической кибернетики | EW11: 4 | EX11: 17.10.2017 | FT11: Оптимизация структуры кормопроизводства предприятия | FX11: 3 | FY11: 03.06.2017 | GD11: 4 | GE11: 03.06.2017 | GF11: История развития бухгалтерского учета | GG11: 5 | GH11: 03.06.2017 | GS11: 3 | GT11: 03.06.2017 | GV11: 3 | GW11: 03.06.2017 | GX11: Планирование аудита | GY11: 5 | GZ11: 04.09.2013 | HP11: 0 | HZ11: 5 | IA11: 04.09.2013 | JJ11: 1.56 | JL11: 10 | JM11: 7 | JN11: 4 | JO11: 7 | JP11: 21 | JQ11: 3460 | JR11: 433
A12: 7 | B12: Беляева | C12: Марина | D12: Николаевна | E12: Беляева М. Н. | G12: Беляевой | H12: Марине | I12: Николаевне | J12: 1975-12-09 | K12: г. Кострома | L12: РФ | M12: ж | N12: Костромской технологический техникум | O12: 1995 | P12: не замужем | Q12: г. Кострома, ул. Земляная, д. 14, кв. 18 | Y12: 15828з | Z12: Экономический | AA12: 38.03.01 | AB12: Экономика | AC12: Бухгалтерский учет, анализ и аудит | AD12: 4 года | AE12: БАКАЛАВР | AF12: 2-585 | AG12: 2015-09-05 | AH12: по договору с полным возмещением затрат | AI12: 000003855 | AJ12: 2015-08-31 | AX12: 2-561 | AY12: 2016-09-01 | CA12: 4 | CB12: 246z | CI12: 3 | CJ12: 11.06.2016 | CL12: 6 | CM12: 11.06.2016 | CO12: 6 | CP12: 2018-05-07 | CQ12: 779 | CR12: 3 | CS12: 11.06.2016 | CU12: 3 | CV12: 11.06.2016 | CX12: 4 | CY12: 11.06.2016 | DA12: 3 | DB12: 2018-03-27 | DC12: 572 | DD12: 6 | DE12: 11.06.2016 | DG12: 3 | DH12: 24.12.2016 | DJ12: 6 | DK12: 24.12.2016 | DM12: 3 | DN12: 24.12.2016 | DP12: 3 | DQ12: 24.12.2016 | DS12: 6 | DT12: 2018-05-03 | DU12: 751 | DY12: 3 | DZ12: 2018-05-03 | EA12: 752 | EB12: 6 | EC12: 21.04.2017 | EH12: 4 | EI12: 21.04.2017 | EK12: 4 | EL12: 21.04.2017 | EN12: 6 | EO12: 21.04.2017 | EQ12: 6 | ER12: 21.04.2017 | ET12: 5 | EU12: 05.04.2016 | EV12: ФГБОУ ВО Костромская ГСХА, кафедра экономической кибернетики | EZ12: 3 | FA12: 30.11.2017 | FR12: 3 | FS12: 2018-03-28 | FT12: Оптимизация структуры кормопроизводства сельскохозяйственных предприятий агропромышленного комплекса | GA12: 3 | GB12: 2018-06-07 | GC12: 7819514 | GD12: 4 | GE12: 2018-06-07 | GF12: Формы безналичных расчетов, применяемые в РФ | GJ12: 5 | GK12: 2018-06-07 | GL12: 7819711 | GM12: 3 | GN12: 2018-06-07 | GO12: Персонал организации (предприятия) и пути повышения эффективности его использования | GP12: 3 | GQ12: 2018-06-07 | GR12: 7819720 | GS12: 3 | GT12: 2018-06-07 | GU12: 7819517 | GV12: 4 | GW12: 2018-06-07 | GX12: Организация аудита банковских операций (в разрезе банковских счетов) | GY12: 5 | GZ12: 05.04.2016 | HZ12: 5 | IA12: п/зач 05.04.16 | JJ12: 1.64 | JL12: 14 | JM12: 5 | JN12: 4 | JO12: 8 | JP12: 23 | JQ12: 3600 | JR12: 450
A13: 8 | B13: Гаранина | C13: Светлана | D13: Алексеевна | E13: Гаранина С. А. | G13: Гараниной | H13: Светлане | I13: Алексеевне | J13: 1995-04-26 | K13: дер. Гуляевка Островского р-на Костромской обл. | L13: РФ | M13: ж | N13: Костромская ГСХА СПО | O13: 2015 | P13: не замужем | Q13: Костромская обл., Островский р-н, д. Гуляевка, ул. Совхозная, д. 38, кв. 1 | Y13: 15847з | Z13: Экономический | AA13: 38.03.01 | AB13: Экономика | AC13: Бухгалтерский учет, анализ и аудит | AD13: 4 года | AE13: БАКАЛАВР | AF13: 2-557 | AG13: 2015-08-21 | AH13: по договору с полным возмещением затрат | AI13: 000003678 | AJ13: 2015-08-14 | AX13: 2-561 | AY13: 2016-09-01 | AZ13: 2-703 | BA13: 2017-09-01 | CA13: 4 | CB13: 246z | CC13: 4 | CD13: 2018-06-07 | CE13: 78110135 | CF13: 6 | CG13: 2018-06-07 | CH13: 78110110 | CI13: 4 | CJ13: 11.06.2016 | CL13: 6 | CM13: 11.06.2016 | CO13: 6 | CP13: 11.06.2016 | CR13: 4 | CS13: 11.06.2016 | CU13: 3 | CV13: 11.06.2016 | CX13: 5 | CY13: 11.06.2016 | DA13: 4 | DB13: 11.06.2016 | DD13: 6 | DE13: 11.06.2016 | DG13: 4 | DH13: 22.12.2016 | DJ13: 6 | DK13: 24.12.2016 | DM13: 5 | DN13: 24.12.2016 | DP13: 3 | DQ13: 24.12.2016 | DS13: 6 | DT13: 24.12.2016 | DV13: 3 | DW13: 24.12.2016 | DY13: 3 | DZ13: 21.04.2017 | EB13: 6 | EC13: 21.04.2017 | EE13: 4 | EF13: 21.04.2017 | EH13: 4 | EI13: 21.04.2017 | EK13: 5 | EL13: 21.04.2017 | EN13: 6 | EO13: 21.04.2017 | EQ13: 6 | ER13: 21.04.2017 | ET13: 5 | EU13: 05.04.2016 | EV13: ФГБОУ ВО Костромская ГСХА, кафедра экономической кибернетики | EW13: 4 | EX13: 30.11.2017 | EZ13: 4 | FA13: 30.11.2017 | FC13: 3 | FD13: 30.11.2017 | FF13: 4 | FG13: 30.11.2017 | FI13: 5 | FJ13: 30.11.2017 | FL13: 5 | FM13: 30.11.2017 | FO13: 3 | FP13: 30.11.2017 | FR13: 4 | FS13: 30.11.2017 | FT13: Оптимизация структуры кормопроизводства сельскохозяйственного предприятия | FU13: 6 | FV13: 2018-06-07 | FW13: 7819542 | FX13: 3 | FY13: 2018-06-07 | FZ13: 78110074 | GA13: 4 | GB13: 2018-06-07 | GC13: 7819514 | GD13: 4 | GE13: 2018-06-07 | GF13: Учет денежных средств | GG13: 4 | GH13: 2018-06-07 | GI13: 7819557 | GJ13: 5 | GK13: 2018-06-07 | GL13: 7819711 | GP13: 4 | GQ13: 2018-06-07 | GR13: 7819720 | GS13: 5 | GT13: 2018-06-07 | GU13: 7819517 | GV13: 4 | GW13: 2018-06-07 | GX13: Организация аудита кассовых операций | GY13: 4 | GZ13: 05.04.2016 | HZ13: 5 | IA13: п/зач 05.04.16 | JJ13: 2.68 | JL13: 7 | JM13: 17 | JN13: 9 | JO13: 10 | JP13: 33 | JQ13: 5688 | JR13: 711
A14: 9 | B14: Голубева (Волкова) | C14: Татьяна | D14: Геннадьевна | E14: Голубева (Волкова) Т. Г. | G14: Голубевой | H14: Татьяне | I14: Геннадьевне | J14: 1992-07-06 | K14: дер. Ченцы Красносельского р-на Костромской обл. | L14: РФ | M14: ж | N14: Костромской механико-технический техникум | O14: 2013 | P14: замужем | Q14: Костромская обл., Красносельский р-н, д. Ченцы, ул. Молодежная, д. 9, кв. 1 | Y14: 15830з | Z14: Экономический | AA14: 38.03.01 | AB14: Экономика | AC14: Бухгалтерский учет, анализ и аудит | AD14: 4 года | AE14: БАКАЛАВР | AF14: 2-557 | AG14: 2015-08-21 | AH14: по договору с полным возмещением затрат | AI14: 000003791 | AJ14: 2015-08-20 | AX14: 2-561 | AY14: 2016-09-01 | AZ14: 2-703 | BA14: 2017-09-01 | CA14: 4 | CB14: 246z | CC14: 3 | CD14: 2018-06-07 | CE14: 78110135 | CF14: 6 | CG14: 2018-06-07 | CH14: 78110110 | CI14: 5 | CJ14: 14.06.2016 | CL14: 6 | CM14: 11.06.2016 | CO14: 6 | CP14: 11.06.2016 | CR14: 4 | CS14: 11.06.2016 | CU14: 4 | CV14: 11.06.2016 | CX14: 5 | CY14: 11.06.2016 | DA14: 3 | DB14: 11.06.2016 | DD14: 6 | DE14: 11.06.2016 | DG14: 3 | DH14: 24.12.2016 | DJ14: 6 | DK14: 24.12.2016 | DM14: 5 | DN14: 24.12.2016 | DP14: 3 | DQ14: 24.12.2016 | DS14: 6 | DT14: 24.12.2016 | DV14: 4 | DW14: 24.12.2016 | DY14: 5 | DZ14: 21.04.2017 | EB14: 6 | EC14: 21.04.2017 | EE14: 3 | EF14: 21.04.2017 | EH14: 4 | EI14: 21.04.2017 | EK14: 5 | EL14: 21.04.2017 | EN14: 6 | EO14: 21.04.2017 | EQ14: 6 | ER14: 21.04.2017 | ET14: 5 | EU14: 05.04.2016 | EV14: ФГБОУ ВО Костромская ГСХА, кафедра экономической кибернетики | EW14: 4 | EX14: 30.11.2017 | EZ14: 3 | FA14: 30.11.2017 | FC14: 3 | FD14: 30.11.2017 | FF14: 4 | FG14: 30.11.2017 | FI14: 4 | FJ14: 2018-09-18 | FK14: 25 | FL14: 4 | FM14: 30.11.2017 | FO14: 3 | FP14: 30.11.2017 | FR14: 4 | FS14: 30.11.2017 | FT14: Оптимизация структуры кормопроизводства сельскохозяйственного предприятия | FU14: 6 | FV14: 2018-06-07 | FW14: 7819542 | FX14: 5 | FY14: 2018-06-07 | FZ14: 78110074 | GA14: 4 | GB14: 2018-06-07 | GC14: 7819514 | GD14: 4 | GE14: 2018-06-07 | GF14: Бухгалтерские счета и двойная запись | GG14: 4 | GH14: 2018-06-07 | GI14: 7819557 | GJ14: 3 | GK14: 2018-06-07 | GL14: 7819711 | GM14: 3 | GN14: 2018-06-07 | GO14: Производительность труда и пути ее повышения в организации (предприятии) | GP14: 3 | GQ14: 2018-06-07 | GR14: 7819720 | GS14: 5 | GT14: 2018-06-07 | GU14: 7819517 | GV14: 5 | GW14: 2018-06-07 | GX14: Образование аудитора и контроль качества проведения аудита | GY14: 4 | GZ14: 05.04.2016 | HZ14: 4 | IA14: п/зач 05.04.16 | JJ14: 2.68 | JL14: 11 | JM14: 14 | JN14: 9 | JO14: 10 | JP14: 34 | JQ14: 5688 | JR14: 711
A15: 10 | B15: Гульвачук | C15: Григорий | D15: Игоревич | E15: Гульвачук Г. И. | G15: Гульвачук | H15: Григорию | I15: Игоревичу | J15: 1987-03-27 | K15: г. Буй Костромской обл. | L15: РФ | M15: м | N15: Буйский сельскохозяйственный техникум | O15: 2008 | P15: женат | Q15: Костромская обл., г. Буй, ул. Энгельса, д. 39 | Y15: 15869з | Z15: Экономический | AA15: 38.03.01 | AB15: Экономика | AC15: Бухгалтерский учет, анализ и аудит | AD15: 4 года | AE15: БАКАЛАВР | AF15: 2-557 | AG15: 2015-08-21 | AH15: по договору с полным возмещением затрат | AI15: 000003482 | AJ15: 2015-08-05 | AX15: 2-561 | AY15: 2016-09-01 | AZ15: 2-703 | BA15: 2017-09-01 | CA15: 4 | CB15: 248z | CC15: 3 | CD15: 11.06.2016 | CF15: 6 | CG15: 11.06.2016 | CI15: 4 | CJ15: 11.06.2016 | CL15: 6 | CM15: 11.06.2016 | CO15: 6 | CP15: 11.06.2016 | CR15: 4 | CS15: 19.06.2016 | CU15: 5 | CV15: 11.06.2016 | CX15: 5 | CY15: 16.06.2017 | DA15: 4 | DB15: 16.06.2016 | DD15: 6 | DE15: 11.06.2016 | DG15: 4 | DH15: 16.06.2017 | DJ15: 6 | DK15: 24.12.2016 | DP15: 3 | DQ15: 24.12.2016 | DS15: 6 | DT15: 24.12.2016 | DV15: 5 | DW15: 24.12.2016 | DY15: 4 | DZ15: 21.04.2017 | EB15: 6 | EC15: 21.04.2017 | EF15: 20.09.2017 | EH15: 4 | EI15: 25.10.2017 | EK15: 5 | EL15: 21.04.2017 | EN15: 6 | EO15: 21.04.2017 | EQ15: 6 | ER15: 21.04.2017 | ET15: 5 | EU15: 05.04.2016 | EV15: ФГБОУ ВО Костромская ГСХА, кафедра экономической кибернетики | EW15: 5 | EX15: 2017-11-30 | EY15: Z-7839490 | FF15: 3 | FG15: 2018-09-14 | FH15: 24 | FO15: 3 | FP15: 2018-09-18 | FQ15: 38 | FR15: 3 | FS15: 2018-09-18 | FT15: Определение оптимальных размеров и специализации сельского хозяйства | GA15: 5 | GB15: 2018-06-07 | GC15: 7839514 | GD15: 4 | GE15: 2018-06-07 | GF15: История развития бухгалтерского учета | GG15: 5 | GH15: 2018-06-07 | GI15: 7839557 | GJ15: 4 | GK15: 2018-06-07 | GL15: 7839711 | GS15: 4 | GT15: 2018-06-07 | GU15: 7839517 | GY15: 4 | GZ15: 05.04.2016 | HZ15: 4 | IA15: п/зач 05.04.16 | JJ15: 1.98 | JL15: 5 | JM15: 11 | JN15: 8 | JO15: 9 | JP15: 24 | JQ15: 4356 | JR15: 545
A16: 11 | B16: Зрюкина | C16: Валерия | D16: Сергеевна | E16: Зрюкина В. С. | G16: Судзиловской | H16: Ксении | I16: Игоревне | J16: 1996-12-12 | K16: с. Красноармейка Павлодарского р-на респ. Казахстан | L16: РФ | M16: ж | N16: Костромской лесомеханический колледж | O16: 2015 | P16: не замужем | Q16: Костромская обл., Солигаличский р-н, Гнездниково, ул. Молодежная, д. 9 | Y16: 15832з | Z16: Экономический | AA16: 38.03.01 | AB16: Экономика | AC16: Бухгалтерский учет, анализ и аудит | AD16: 4 года | AE16: БАКАЛАВР | AF16: 2-557 | AG16: 2015-08-21 | AH16: по договору с полным возмещением затрат | AI16: 000003613 | AJ16: 2015-08-12 | AX16: 2-561 | AY16: 2016-09-01 | AZ16: 2-703 | BA16: 2017-09-01 | CA16: 4 | CB16: 246z | CI16: 5 | CJ16: 11.06.2016 | CL16: 6 | CM16: 11.06.2016 | CO16: 6 | CP16: 11.06.2016 | CR16: 3 | CS16: 11.06.2016 | CU16: 4 | CV16: 11.06.2016 | CX16: 5 | CY16: 11.06.2016 | DA16: 3 | DB16: 11.06.2016 | DD16: 6 | DE16: 11.06.2016 | DG16: 4 | DH16: 24.12.2016 | DJ16: 6 | DK16: 24.12.2016 | DM16: 5 | DN16: 24.12.2016 | DP16: 4 | DQ16: 24.12.2016 | DV16: 4 | DW16: 24.12.2016 | EB16: 6 | EC16: 21.04.2017 | EE16: 3 | EF16: 21.04.2017 | EH16: 3 | EI16: 21.04.2017 | EK16: 5 | EL16: 21.04.2017 | EN16: 6 | EO16: 21.04.2017 | EQ16: 6 | ER16: 21.04.2017 | ET16: 4 | EU16: 05.04.2016 | EV16: ФГБОУ ВО Костромская ГСХА, кафедра экономической кибернетики | EW16: 4 | EX16: 30.11.2017 | EZ16: 3 | FA16: 30.11.2017 | FO16: 3 | FP16: 30.11.2017 | FR16: 3 | FS16: 30.11.2017 | FT16: Оптимизация структуры кормопроизводства сельскохозяйственного предприятия | GA16: 3 | GB16: 2018-06-07 | GC16: 7819514 | GD16: 4 | GE16: 2018-06-07 | GF16: Учетная политика организации: методические, организационные и технические аспекты и элементы | GG16: 4 | GH16: 2018-06-07 | GI16: 7819557 | GJ16: 5 | GK16: 2018-06-07 | GL16: 7819711 | GS16: 3 | GT16: 2018-06-07 | GU16: 7819517 | GY16: 4 | GZ16: 05.04.2016 | HZ16: 4 | IA16: п/зач 05.04.16 | JJ16: 1.84 | JL16: 9 | JM16: 10 | JN16: 5 | JO16: 7 | JP16: 24 | JQ16: 4140 | JR16: 518
A17: 12 | B17: Иванова | C17: Анна | D17: Геннадьевна | E17: Иванова А. Г. | G17: Ивановой | H17: Анне | I17: Геннадьевне | J17: 1988-01-28 | K17: пос. Кадый Кадыйского р-на Костромской обл. | L17: РФ | M17: ж | N17: Костромской технологический техникум | O17: 2011 | P17: не замужем | Q17: Ленинградская обл., Кингисеппский р-н, пос. Усть-луга, д. 53, кв. 1 | Y17: 15848з | Z17: Экономический | AA17: 38.03.01 | AB17: Экономика | AC17: Бухгалтерский учет, анализ и аудит | AD17: 4 года | AE17: БАКАЛАВР | AF17: 2-557 | AG17: 2015-08-21 | AH17: по договору с полным возмещением затрат | AI17: 000003580 | AJ17: 2015-08-10 | AX17: 2-561 | AY17: 2016-09-01 | AZ17: 2-565 | BA17: 2018-06-25 | CA17: 4 | CB17: 246z | CC17: 3 | CD17: 2018-06-07 | CE17: 78110135 | CF17: 6 | CG17: 2018-06-07 | CH17: 78110110 | CI17: 3 | CJ17: 11.06.2016 | CL17: 6 | CM17: 11.06.2016 | CO17: 6 | CP17: 11.06.2016 | CR17: 3 | CS17: 2018-05-24 | CT17: 929 | CU17: 3 | CV17: 11.06.2016 | CX17: 4 | CY17: 11.06.2016 | DA17: 4 | DB17: 11.06.2016 | DD17: 6 | DE17: 11.06.2016 | DG17: 3 | DH17: 22.12.2016 | DJ17: 6 | DK17: 24.12.2016 | DM17: 5 | DN17: 24.12.2016 | DP17: 3 | DQ17: 2018-05-17 | DR17: 856 | DS17: 6 | DT17: 2018-05-11 | DU17: 823 | DV17: 3 | DW17: 24.12.2016 | DY17: 3 | DZ17: 2018-05-16 | EA17: 847 | EB17: 6 | EC17: 2018-04-21 | ED17: 749 | EE17: 3 | EF17: 21.04.2017 | EH17: 3 | EI17: 21.04.2017 | EK17: 4 | EL17: 21.04.2017 | EN17: 6 | EO17: 21.04.2017 | EQ17: 6 | ER17: 21.04.2017 | ET17: 4 | EU17: 05.04.2016 | EV17: ФГБОУ ВО Костромская ГСХА, кафедра экономической кибернетики | EW17: 4 | EX17: 30.11.2017 | EZ17: 3 | FA17: 30.11.2017 | FI17: 4 | FJ17: 30.11.2017 | FL17: 4 | FM17: 30.11.2017 | FT17: Оптимизация структуры кормопроизводства сельскохозяйственного предприятия | FX17: 4 | FY17: 2018-06-07 | FZ17: 78110074 | GA17: 4 | GB17: 2018-06-07 | GC17: 7819514 | GD17: 4 | GE17: 2018-06-07 | GF17: Учет расчетов с подотчетными лицами | GG17: 4 | GH17: 2018-06-07 | GI17: 7819557 | GJ17: 3 | GK17: 2018-06-07 | GL17: 7819711 | GS17: 4 | GT17: 2018-06-07 | GU17: 7819517 | GY17: 4 | GZ17: 05.04.2016 | HZ17: 4 | IA17: п/зач 05.04.16 | JJ17: 1.94 | JL17: 12 | JM17: 14 | JN17: 1 | JO17: 9 | JP17: 27 | JQ17: 4896 | JR17: 612
A18: 13 | B18: Иванова | C18: Наталья | D18: Владимировна | E18: Иванова Н. В. | G18: Ивановой | H18: Наталье | I18: Владимировне | J18: 1980-10-08 | K18: г. Солигалич | L18: РФ | M18: ж | N18: Костромской энергетический техникум им. Чижова | O18: 1999 | P18: не замужем | Q18: Костромская обл., г. Солигалич, ул. Полянская, д. 43 | Y18: 15870з | Z18: Экономический | AA18: 38.03.01 | AB18: Экономика | AC18: Бухгалтерский учет, анализ и аудит | AD18: 4 года | AE18: БАКАЛАВР | AF18: 2-557 | AG18: 2015-08-21 | AH18: по договору с полным возмещением затрат | AI18: 000003495 | AJ18: 2015-08-05 | AX18: 2-561 | AY18: 2016-09-01 | AZ18: 2-703 | BA18: 2017-09-01 | CA18: 4 | CB18: 248z | CC18: 4 | CD18: 2018-06-07 | CE18: 78310135 | CF18: 6 | CG18: 2018-06-07 | CH18: 78310110 | CI18: 4 | CJ18: 11.06.2016 | CL18: 6 | CM18: 11.06.2016 | CO18: 6 | CP18: 11.06.2016 | CR18: 4 | CS18: 30.06.2016 | CU18: 5 | CV18: 11.06.2016 | CX18: 5 | CY18: 11.06.2016 | DA18: 4 | DB18: 03.10.2016 | DD18: 6 | DE18: 11.06.2016 | DG18: 4 | DH18: 24.12.2016 | DJ18: 6 | DK18: 24.12.2016 | DM18: 4 | DN18: 24.12.2016 | DP18: 4 | DQ18: 24.12.2016 | DS18: 6 | DT18: 30.06.2017 | DV18: 4 | DW18: 30.06.2017 | DY18: 4 | DZ18: 30.06.2017 | EB18: 6 | EC18: 21.04.2017 | EE18: 4 | EF18: 21.04.2017 | EH18: 4 | EI18: 21.04.2017 | EK18: 4 | EL18: 21.04.2017 | EN18: 6 | EO18: 21.04.2017 | EQ18: 6 | ER18: 21.04.2017 | ET18: 4 | EU18: 05.04.2016 | EV18: ФГБОУ ВО Костромская ГСХА, кафедра экономической кибернетики | EW18: 5 | EX18: 2017-11-30 | EY18: Z-7839490 | EZ18: 4 | FA18: 2017-11-30 | FB18: Z-7839489 | FC18: 3 | FD18: 2017-11-30 | FE18: Z-7839538 | FF18: 4 | FG18: 2017-11-30 | FH18: Z-7839536 | FI18: 5 | FJ18: 2017-11-30 | FK18: Z-7839556 | FL18: 4 | FM18: 2017-11-30 | FN18: Z-7839485 | FO18: 4 | FP18: 2017-11-30 | FQ18: Z-7839543 | FR18: 5 | FS18: 30.11.2017 | FT18: Оптимизация структуры кормопроизводства СПК «Яковлевское» Костромского района Костромской области | FU18: 6 | FV18: 2018-06-07 | FW18: 7839542 | FX18: 4 | FY18: 2018-06-07 | FZ18: 78310074 | GA18: 5 | GB18: 2018-06-07 | GC18: 7839514 | GD18: 5 | GE18: 2018-06-07 | GF18: Предмет и метод бухгалтерского учета | GG18: 5 | GH18: 2018-06-07 | GI18: 7839557 | GJ18: 5 | GK18: 2018-06-07 | GL18: 7839711 | GM18: 3 | GN18: 2018-06-07 | GO18: Эффективность использования оборотных средств организации (предприятия) | GP18: 4 | GQ18: 2018-06-07 | GR18: 7839720 | GS18: 5 | GT18: 2018-06-07 | GU18: 7839517 | GV18: 5 | GW18: 2018-06-07 | GX18: Сущность аудита и его место в системе финансового контроля Российской Федерации | GY18: 5 | GZ18: 05.04.2016 | JJ18: 2.84 | JL18: 2 | JM18: 19 | JN18: 12 | JO18: 10 | JP18: 33 | JQ18: 5688 | JR18: 711
A19: 14 | B19: Кузнецова | C19: Анастасия | D19: Сергеевна | E19: Кузнецова А. С. | G19: Кузнецовой | H19: Анастасии | I19: Сергеевне | J19: 1996-07-29 | K19: г. Кострома | L19: РФ | M19: ж | N19: Костромской торгово-экономический колледж | O19: 2015 | P19: не замужем | Q19: г. Кострома, Рабочий пр-кт, д. 56, кв. 57 | Y19: 15835з | Z19: Экономический | AA19: 38.03.01 | AB19: Экономика | AC19: Бухгалтерский учет, анализ и аудит | AD19: 4 года | AE19: БАКАЛАВР | AF19: 2-547 | AG19: 2015-08-17 | AH19: в рамках контрольных цифр на основное место | AX19: 2-561 | AY19: 2016-09-01 | AZ19: 2-703 | BA19: 2017-09-01 | CA19: 4 | CB19: 246z | CC19: 4 | CD19: 2018-06-07 | CE19: 78110135 | CF19: 6 | CG19: 2018-06-07 | CH19: 78110110 | CI19: 4 | CJ19: 11.06.2016 | CL19: 6 | CM19: 11.06.2016 | CO19: 6 | CP19: 11.06.2016 | CR19: 4 | CS19: 11.06.2016 | CU19: 3 | CV19: 14.06.2016 | CX19: 4 | CY19: 11.06.2016 | DA19: 3 | DB19: 11.06.2016 | DD19: 6 | DE19: 11.06.2016 | DG19: 4 | DH19: 24.12.2016 | DJ19: 6 | DK19: 24.12.2016 | DM19: 4 | DN19: 24.12.2016 | DP19: 3 | DQ19: 24.12.2016 | DS19: 6 | DT19: 24.12.2016 | DV19: 4 | DW19: 24.12.2016 | DY19: 3 | DZ19: 21.04.2017 | EB19: 6 | EC19: 21.04.2017 | EE19: 4 | EF19: 21.04.2017 | EH19: 4 | EI19: 21.04.2017 | EK19: 4 | EL19: 21.04.2017 | EN19: 6 | EO19: 21.04.2017 | EQ19: 6 | ER19: 21.04.2017 | ET19: 5 | EU19: 05.04.2016 | EV19: ФГБОУ ВО Костромская ГСХА, кафедра экономической кибернетики | EW19: 5 | EX19: 30.11.2017 | EZ19: 3 | FA19: 30.11.2017 | FC19: 3 | FD19: 30.11.2017 | FF19: 5 | FG19: 30.11.2017 | FI19: 5 | FJ19: 30.11.2017 | FL19: 5 | FM19: 30.11.2017 | FO19: 5 | FP19: 30.11.2017 | FR19: 5 | FS19: 30.11.2017 | FT19: Оптимизация структуры кормопроизводства сельскохозяйственного предприятия | FU19: 6 | FV19: 2018-06-07 | FW19: 7819542 | FX19: 5 | FY19: 2018-06-07 | FZ19: 78110074 | GA19: 4 | GB19: 2018-06-07 | GC19: 7819514 | GD19: 5 | GE19: 2018-06-07 | GF19: Формы безналичных расчетов, применяемые в РФ | GG19: 4 | GH19: 2018-06-07 | GI19: 7819557 | GJ19: 5 | GK19: 2018-06-07 | GL19: 7819711 | GM19: 5 | GN19: 2018-06-07 | GO19: Пути повышения финансовых результатов организации (предприятия) на примере ОАО "Племенной завод "Чернопенский" | GP19: 4 | GQ19: 2018-06-07 | GR19: 7819720 | GS19: 5 | GT19: 2018-06-07 | GU19: 7819517 | GV19: 5 | GW19: 2018-06-07 | GX19: Организация аудита банковских операций (в разрезе банковских счетов) | GY19: 5 | GZ19: 05.04.2016 | HZ19: 5 | IA19: п/зач 05.04.16 | JJ19: 2.9 | JL19: 6 | JM19: 13 | JN19: 15 | JO19: 10 | JP19: 34 | JQ19: 5688 | JR19: 711
A20: 15 | B20: Кузнецова | C20: Ульяна | D20: Алексеевна | E20: Кузнецова У. А. | G20: Кузнецовой | H20: Ульяне | I20: Алексеевне | J20: 1997-01-12 | K20: пос. Вохтота грязовецкого р-на Вологодской обл. | L20: РФ | M20: ж | N20: Буйский техникум градостроительства и предпринимательства | O20: 2015 | P20: не замужем | Q20: Вологодская обл, Грязовецкий р-н, Вохтога ул. Колхозная, д. 87, кв. 21 | Y20: 15836з | Z20: Экономический | AA20: 38.03.01 | AB20: Экономика | AC20: Бухгалтерский учет, анализ и аудит | AD20: 4 года | AE20: БАКАЛАВР | AF20: 2-557 | AG20: 2015-08-21 | AH20: по договору с полным возмещением затрат | AI20: 000003806 | AJ20: 2015-08-20 | AX20: 2-561 | AY20: 2016-09-01 | AZ20: 2-703 | BA20: 2017-09-01 | CA20: 4 | CB20: 246z | CC20: 3 | CD20: 2018-06-07 | CE20: 78110135 | CF20: 6 | CG20: 2018-06-07 | CH20: 78110110 | CI20: 3 | CJ20: 11.06.2016 | CL20: 6 | CM20: 11.06.2016 | CO20: 6 | CP20: 20.04.2017 | CU20: 3 | CV20: 19.04.2017 | CX20: 4 | CY20: 11.06.2016 | DA20: 3 | DB20: 11.06.2016 | DD20: 6 | DE20: 11.06.2016 | DG20: 3 | DH20: 21.04.2017 | DJ20: 6 | DK20: 24.12.2016 | DM20: 3 | DN20: 24.12.2016 | DP20: 4 | DQ20: 24.12.2016 | DS20: 6 | DT20: 24.12.2016 | DV20: 3 | DW20: 21.04.2017 | DY20: 3 | DZ20: 21.04.2017 | EB20: 6 | EC20: 21.04.2017 | EE20: 3 | EF20: 21.04.2017 | EH20: 4 | EI20: 21.04.2017 | EK20: 4 | EL20: 21.04.2017 | EN20: 6 | EO20: 21.04.2017 | EQ20: 6 | ER20: 21.04.2017 | ET20: 4 | EU20: 05.04.2016 | EV20: ФГБОУ ВО Костромская ГСХА, кафедра экономической кибернетики | EW20: 3 | EX20: 30.11.2017 | EZ20: 3 | FA20: 30.11.2017 | FC20: 3 | FD20: 30.11.2017 | FF20: 3 | FG20: 30.11.2017 | FL20: 3 | FM20: 30.11.2017 | FO20: 3 | FP20: 30.11.2017 | FR20: 3 | FS20: 30.11.2017 | FT20: Оптимальная специализация и сочетание отраслей сельскохозяйственного предприятия | FU20: 6 | FV20: 2018-06-07 | FW20: 7819542 | FX20: 4 | FY20: 2018-06-07 | FZ20: 78110074 | GA20: 4 | GB20: 2018-06-07 | GC20: 7819514 | GD20: 4 | GE20: 2018-06-07 | GF20: Учет расчетов с покупателями и заказчиками | GG20: 4 | GH20: 2018-06-07 | GI20: 7819557 | GJ20: 5 | GK20: 2018-06-07 | GL20: 7819711 | GP20: 4 | GQ20: 2018-06-07 | GR20: 7819720 | GS20: 4 | GT20: 2018-06-07 | GU20: 7819517 | GV20: 4 | GW20: 2018-06-07 | GX20: Организация аудита расчетов с покупателями и заказчиками | GY20: 4 | GZ20: 05.04.2016 | HZ20: 4 | IA20: п/зач 05.04.16 | JJ20: 2.18 | JL20: 16 | JM20: 14 | JN20: 1 | JO20: 10 | JP20: 31 | JQ20: 5328 | JR20: 666
A21: 16 | B21: Лазарева | C21: Ксения | D21: Владимировна | E21: Лазарева К. В. | G21: Лазаревой | H21: Ксении | I21: Владимировне | J21: 1985-08-07 | K21: г. Нерехта Костромской обл. | L21: РФ | M21: ж | N21: Ярославский сельскохозяйственный техникум | O21: 2005 | P21: не замужем | Q21: Костромская обл., г. Нерехта, пер. Полевой, д. 10 | Y21: 15837з | Z21: Экономический | AA21: 38.03.01 | AB21: Экономика | AC21: Бухгалтерский учет, анализ и аудит | AD21: 4 года | AE21: БАКАЛАВР | AF21: 2-557 | AG21: 2015-08-21 | AH21: по договору с полным возмещением затрат | AI21: 000003562 | AJ21: 2015-08-10 | AX21: 2-561 | AY21: 2016-09-01 | CA21: 4 | CB21: 246z | CF21: 6 | CG21: 2018-06-07 | CH21: 78110110 | CI21: 3 | CJ21: 11.06.2016 | CL21: 6 | CM21: 11.06.2016 | CO21: 6 | CP21: 2018-05-07 | CQ21: 774 | CR21: 3 | CS21: 2018-03-28 | CT21: 585 | CU21: 3 | CV21: 11.06.2016 | CX21: 4 | CY21: 11.06.2016 | DA21: 3 | DB21: 2018-03-27 | DC21: 571 | DD21: 6 | DE21: 11.06.2016 | DG21: 4 | DH21: 2018-05-07 | DI21: 775 | DJ21: 6 | DK21: 24.12.2016 | DM21: 3 | DN21: 24.12.2016 | DP21: 3 | DQ21: 24.12.2016 | DS21: 6 | DT21: 2018-05-03 | DU21: 239 | DV21: 3 | DW21: 24.12.2016 | DY21: 3 | DZ21: 2018-05-03 | EA21: 240 | EB21: 6 | EC21: 21.04.2017 | EK21: 3 | EL21: 21.04.2017 | EN21: 6 | EO21: 2018-05-07 | EP21: 777 | EQ21: 6 | ER21: 21.04.2017 | ET21: 4 | EU21: 05.04.2016 | EV21: ФГБОУ ВО Костромская ГСХА, кафедра экономической кибернетики | EZ21: 3 | FA21: 30.11.2017 | FL21: 4 | FM21: 30.11.2017 | GA21: 3 | GB21: 2018-06-07 | GC21: 7819514 | GD21: 4 | GE21: 2018-06-07 | GF21: Бухгалтерский баланс и бухгалтерская отчетность | GG21: 4 | GH21: 2018-06-07 | GI21: 7819557 | GJ21: 5 | GK21: 2018-06-07 | GL21: 7819711 | GM21: 3 | GN21: 2018-06-07 | GO21: Пути повышения финансовых результатов организации (предприятия) | GP21: 3 | GQ21: 2018-06-07 | GR21: 7819720 | GS21: 3 | GT21: 2018-06-07 | GU21: 7819517 | GV21: 4 | GW21: 2018-06-07 | GX21: Основные принципы проведения аудита | GY21: 4 | GZ21: 05.04.2016 | HZ21: 3 | IA21: п/зач 05.04.16 | JJ21: 1.64 | JL21: 15 | JM21: 8 | JN21: 1 | JO21: 9 | JP21: 24 | JQ21: 3960 | JR21: 495
A22: 17 | B22: Лебедева | C22: Мария | D22: Борисовна | E22: Лебедева М. Б. | G22: Лебедевой | H22: Марии | I22: Борисовне | J22: 1996-03-16 | K22: г. Солигалич Костромской обл. | L22: РФ | M22: ж | N22: Костромской лесомеханический колледж | O22: 2015 | P22: не замужем | Q22: Костромская обл., г. Солигалич, пр-т Свободы, д. 5, кв. 2 | Y22: 15866з | Z22: Экономический | AA22: 38.03.01 | AB22: Экономика | AC22: Бухгалтерский учет, анализ и аудит | AD22: 4 года | AE22: БАКАЛАВР | AF22: 2-557 | AG22: 2015-08-21 | AH22: по договору с полным возмещением затрат | AI22: 000003605 | AJ22: 2015-08-11 | AX22: 2-561 | AY22: 2016-09-01 | AZ22: 2-703 | BA22: 2017-09-01 | CA22: 4 | CB22: 248z | CC22: 4 | CD22: 2018-06-07 | CE22: 78310135 | CF22: 6 | CG22: 2018-06-07 | CH22: 78310110 | CI22: 4 | CJ22: 11.06.2016 | CL22: 6 | CM22: 11.06.2016 | CO22: 6 | CP22: 20.09.2016 | CR22: 4 | CS22: 30.06.2016 | CU22: 4 | CV22: 11.06.2016 | CX22: 4 | CY22: 11.06.2016 | DA22: 4 | DB22: 11.06.2016 | DD22: 6 | DE22: 11.06.2016 | DG22: 4 | DH22: 24.12.2016 | DJ22: 6 | DK22: 24.12.2016 | DM22: 4 | DN22: 24.12.2016 | DP22: 3 | DQ22: 24.12.2016 | DS22: 6 | DT22: 24.12.2016 | DV22: 4 | DW22: 30.06.2017 | DY22: 3 | DZ22: 21.04.2017 | EB22: 6 | EC22: 21.04.2017 | EE22: 3 | EF22: 21.04.2017 | EH22: 3 | EI22: 2018-03-16 | EJ22: 547 | EK22: 4 | EL22: 21.04.2017 | EN22: 6 | EO22: 21.04.2017 | EQ22: 6 | ER22: 21.04.2017 | ET22: 4 | EU22: 05.04.2016 | EV22: ФГБОУ ВО Костромская ГСХА, кафедра экономической кибернетики | GA22: 4 | GB22: 2018-06-07 | GC22: 7839514 | GY22: 4 | GZ22: 05.04.2016 | HZ22: 4 | IA22: п/зач 05.04.16 | JJ22: 1.36 | JL22: 4 | JM22: 14 | JN22: 0 | JO22: 9 | JP22: 18 | JQ22: 3708 | JR22: 464
A23: 18 | B23: Лебедева (Орлова) | C23: Анастасия | D23: Александровна | E23: Лебедева (Орлова) А. А. | G23: Лебедевой | H23: Анастасии | I23: Александровне | J23: 1984-09-30 | K23: г. Волгореченск Костромской обл. | L23: РФ | M23: ж | N23: Костромской технологический техникум | O23: 2003 | P23: замужем | Q23: г. Кострома, ул. Скворцова, д. 20а, кв. 63 | Y23: 15839з | Z23: Экономический | AA23: 38.03.01 | AB23: Экономика | AC23: Бухгалтерский учет, анализ и аудит | AD23: 4 года | AE23: БАКАЛАВР | AF23: 2-547 | AG23: 2015-08-17 | AH23: в рамках контрольных цифр в пределах целевой квоты | AX23: 2-561 | AY23: 2016-09-01 | AZ23: 2-703 | BA23: 2017-09-01 | CA23: 4 | CB23: 246z | CC23: 5 | CD23: 2018-06-07 | CE23: 78110135 | CF23: 6 | CG23: 2018-06-07 | CH23: 78110110 | CI23: 5 | CJ23: 11.06.2016 | CL23: 6 | CM23: 11.06.2016 | CO23: 6 | CP23: 11.06.2016 | CR23: 4 | CS23: 11.06.2016 | CU23: 4 | CV23: 11.06.2016 | CX23: 5 | CY23: 11.06.2016 | DA23: 3 | DB23: 11.06.2016 | DD23: 6 | DE23: 11.06.2016 | DG23: 4 | DH23: 24.12.2016 | DJ23: 6 | DK23: 24.12.2016 | DM23: 5 | DN23: 24.12.2016 | DP23: 4 | DQ23: 24.12.2016 | DS23: 6 | DT23: 24.12.2016 | DV23: 5 | DW23: 24.12.2016 | DY23: 5 | DZ23: 21.04.2017 | EB23: 6 | EC23: 21.04.2017 | EE23: 4 | EF23: 21.04.2017 | EH23: 4 | EI23: 21.04.2017 | EK23: 5 | EL23: 21.04.2017 | EN23: 6 | EO23: 21.04.2017 | EQ23: 6 | ER23: 21.04.2017 | ET23: 5 | EU23: 05.04.2016 | EV23: ФГБОУ ВО Костромская ГСХА, кафедра экономической кибернетики | EW23: 5 | EX23: 30.11.2017 | EZ23: 5 | FA23: 30.11.2017 | FC23: 4 | FD23: 30.11.2017 | FF23: 5 | FG23: 30.11.2017 | FI23: 5 | FJ23: 30.11.2017 | FL23: 5 | FM23: 30.11.2017 | FO23: 5 | FP23: 30.11.2017 | FR23: 5 | FS23: 30.11.2017 | FU23: 6 | FV23: 2018-06-07 | FW23: 7819542 | FX23: 5 | FY23: 2018-06-07 | FZ23: 78110074 | GA23: 5 | GB23: 2018-06-07 | GC23: 7819514 | GD23: 5 | GE23: 2018-06-07 | GF23: Учет расчетов по налогам и сборам | GG23: 5 | GH23: 2018-06-07 | GI23: 7819557 | GJ23: 5 | GK23: 2018-06-07 | GL23: 7819711 | GM23: 4 | GN23: 2018-06-07 | GO23: Персонал организации (предприятия) и пути повышения эффективности его использования | GP23: 5 | GQ23: 2018-06-07 | GR23: 7819720 | GS23: 5 | GT23: 2018-06-07 | GU23: 7819517 | GV23: 5 | GW23: 2018-06-07 | GX23: Организация аудита кассовых операций | GY23: 5 | GZ23: 05.04.2016 | HZ23: 5 | IA23: п/зач 05.04.16 | JJ23: 3.2 | JL23: 1 | JM23: 8 | JN23: 25 | JO23: 10 | JP23: 34 | JQ23: 5688 | JR23: 711
A24: 19 | B24: Лытаева | C24: Юлия | D24: Андреевна | E24: Лытаева Ю. А. | G24: Лытаевой | H24: Юлии | I24: Андреевне | J24: 1991-05-11 | K24: г. Кострома | L24: РФ | M24: ж | N24: Костромской торгово-экономический колледж | O24: 2010 | P24: не замужем | Q24: Костромская обл., Костромской р-н, д. Некрасово, ул. Школьная д. 9 | Y24: 15850з | Z24: Экономический | AA24: 38.03.01 | AB24: Экономика | AC24: Бухгалтерский учет, анализ и аудит | AD24: 4 года | AE24: БАКАЛАВР | AF24: 2-557 | AG24: 2015-08-21 | AH24: по договору с полным возмещением затрат | AI24: 000003490 | AJ24: 2015-08-05 | AX24: 2-561 | AY24: 2016-09-01 | AZ24: 2-703 | BA24: 2017-09-01 | CA24: 4 | CB24: 246z | CC24: 4 | CD24: 2018-06-07 | CE24: 78110135 | CF24: 6 | CG24: 2018-06-07 | CH24: 78110110 | CI24: 4 | CJ24: 11.06.2016 | CL24: 6 | CM24: 11.06.2016 | CO24: 6 | CP24: 11.06.2016 | CR24: 4 | CS24: 11.06.2016 | CU24: 3 | CV24: 11.06.2016 | CX24: 4 | CY24: 11.06.2016 | DA24: 3 | DB24: 11.06.2016 | DD24: 6 | DE24: 11.06.2016 | DG24: 4 | DH24: 22.12.2016 | DJ24: 6 | DK24: 24.12.2016 | DM24: 4 | DN24: 24.12.2016 | DP24: 4 | DQ24: 24.12.2016 | DS24: 6 | DT24: 24.12.2016 | DV24: 3 | DW24: 24.12.2016 | DY24: 5 | DZ24: 21.04.2017 | EB24: 6 | EC24: 21.04.2017 | EE24: 3 | EF24: 21.04.2017 | EH24: 4 | EI24: 21.04.2017 | EK24: 5 | EL24: 21.04.2017 | EN24: 6 | EO24: 21.04.2017 | EQ24: 6 | ER24: 21.04.2017 | ET24: 4 | EU24: 05.04.2016 | EV24: ФГБОУ ВО Костромская ГСХА, кафедра экономической кибернетики | EW24: 4 | EX24: 30.11.2017 | EZ24: 3 | FA24: 30.11.2017 | FC24: 3 | FD24: 30.11.2017 | FF24: 3 | FG24: 30.11.2017 | FI24: 4 | FJ24: 30.11.2017 | FL24: 4 | FM24: 30.11.2017 | FO24: 3 | FP24: 30.11.2017 | FR24: 3 | FS24: 30.11.2017 | FT24: Оптимизация структуры кормопроизводства сельскохозяйственного предприятия | FU24: 6 | FV24: 2018-06-07 | FW24: 7819542 | FX24: 3 | FY24: 2018-06-07 | FZ24: 78110074 | GA24: 4 | GB24: 2018-06-07 | GC24: 7819514 | GD24: 4 | GE24: 2018-06-07 | GF24: Учет расчетов с персоналом по прочим операциям | GG24: 4 | GH24: 2018-06-07 | GI24: 7819557 | GJ24: 5 | GK24: 2018-06-07 | GL24: 7819711 | GM24: 4 | GN24: 2018-06-07 | GO24: Производительность труда и пути ее повышения на предприятии СПК "Яковлевское" Костромской области | GP24: 5 | GQ24: 2018-06-07 | GR24: 7819720 | GS24: 4 | GT24: 2018-06-07 | GU24: 7819517 | GV24: 4 | GW24: 2018-06-07 | GX24: Организация аудита расчетов по налогам и сборам (по видам налогов) | GY24: 3 | GZ24: 05.04.2016 | HZ24: 3 | IA24: п/зач 05.04.16 | JJ24: 2.56 | JL24: 12 | JM24: 18 | JN24: 4 | JO24: 10 | JP24: 34 | JQ24: 5688 | JR24: 711
A25: 20 | B25: Максимова | C25: Светлана | D25: Валерьевна | E25: Максимова С. В. | G25: Максимовой | H25: Светлане | I25: Валерьевне | J25: 1989-11-25 | K25: пос. Островское Островского р-на Костромской обл. | L25: РФ | M25: ж | N25: Кстромской государственный технологический университет | O25: 2012 | P25: не замужем | Q25: г. Кострома, ул. Никитская, д. 118, кв. 66 | Y25: 15874з | Z25: Экономический | AA25: 38.03.01 | AB25: Экономика | AC25: Бухгалтерский учет, анализ и аудит | AD25: 4 года | AE25: БАКАЛАВР | AF25: 2-557 | AG25: 2015-08-21 | AH25: по договору с полным возмещением затрат | AI25: 000003575 | AJ25: 2015-08-10 | AX25: 2-561 | AY25: 2016-09-01 | AZ25: 2-703 | BA25: 2017-09-01 | CA25: 4 | CB25: 248z | CC25: 4 | CD25: 2018-06-07 | CE25: 78310135 | CF25: 6 | CG25: 2018-06-07 | CH25: 78310110 | CI25: 5 | CJ25: 11.06.2016 | CL25: 6 | CM25: 06.04.2016 | CO25: 6 | CP25: 05.04.2016 | CR25: 4 | CS25: 05.04.2016 | CU25: 5 | CV25: 11.06.2016 | CX25: 5 | CY25: 11.06.2016 | DA25: 4 | DB25: 11.06.2016 | DD25: 6 | DE25: 11.06.2016 | DG25: 5 | DH25: 05.04.2016 | DJ25: 6 | DK25: 24.12.2016 | DM25: 4 | DN25: 24.12.2016 | DP25: 4 | DQ25: 24.12.2016 | DS25: 6 | DT25: 24.12.2016 | DV25: 5 | DW25: 24.12.2016 | DY25: 4 | DZ25: 21.04.2017 | EB25: 6 | EC25: 21.04.2017 | EE25: 5 | EF25: 21.04.2017 | EH25: 4 | EI25: 21.04.2017 | EK25: 5 | EL25: 21.04.2017 | EN25: 6 | EO25: 21.04.2017 | EQ25: 6 | ER25: 21.04.2017 | ET25: 4 | EU25: 01.07.2017 | EV25: ФГБОУ ВО Костромская ГСХА, кафедра экономической кибернетики | EW25: 5 | EX25: 2017-11-30 | EY25: Z-7839490 | EZ25: 4 | FA25: 2017-11-30 | FB25: Z-7839489 | FC25: 4 | FD25: 2017-11-30 | FE25: Z-7839538 | FF25: 4 | FG25: 2017-11-30 | FH25: Z-7839536 | FI25: 5 | FJ25: 2017-11-30 | FK25: Z-7839556 | FO25: 4 | FP25: 2017-11-30 | FQ25: Z-7839543 | FR25: 3 | FS25: 30.11.2017 | FT25: Оптимизация структуры кормопроизводства сельскохозяйственных предприятий агропромышленного комплекса | FU25: 6 | FV25: 2018-06-07 | FW25: 7839542 | GA25: 5 | GB25: 2018-06-07 | GC25: 7839514 | GD25: 4 | GE25: 2018-06-07 | GF25: Бухгалтерский баланс и бухгалтерская отчетность | GG25: 5 | GH25: 2018-06-07 | GI25: 7839557 | GJ25: 5 | GK25: 2018-06-07 | GL25: 7839711 | GM25: 3 | GN25: 2018-06-07 | GO25: Персонал организации (предприятия) и пути повышения эффективности его использования | GP25: 5 | GQ25: 2018-06-07 | GR25: 7839720 | GS25: 5 | GT25: 2018-06-07 | GU25: 7839517 | GV25: 4 | GW25: 2018-06-07 | GX25: Правовое регулирование аудиторской деятельности в Российской Федерации | HA25: ООО Юз "Вероника" г. Кострома | HP25: 0 | JJ25: 2.64 | JL25: 2 | JM25: 14 | JN25: 14 | JO25: 10 | JP25: 30 | JQ25: 5400 | JR25: 675
A26: 21 | B26: Матасова | C26: Екатерина | D26: Олеговна | E26: Матасова Е. О. | G26: Матасовой | H26: Екатерине | I26: Олеговне | J26: 1996-04-06 | K26: г. Кострома | L26: РФ | M26: ж | N26: Костромской торгово-экономический колледж | O26: 2015 | P26: не замужем | Q26: г. Кострома, ул. Смирнова Юрия, д. 19, кв. 3 | Y26: 15851з | Z26: Экономический | AA26: 38.03.01 | AB26: Экономика | AC26: Бухгалтерский учет, анализ и аудит | AD26: 4 года | AE26: БАКАЛАВР | AF26: 2-557 | AG26: 2015-08-21 | AH26: по договору с полным возмещением затрат | AI26: 000003547 | AJ26: 2015-08-10 | AX26: 2-561 | AY26: 2016-09-01 | AZ26: 2-703 | BA26: 2017-09-01 | CA26: 4 | CB26: 246z | CC26: 5 | CD26: 2018-06-07 | CE26: 78110135 | CF26: 6 | CG26: 2018-06-07 | CH26: 78110110 | CI26: 5 | CJ26: 11.06.2016 | CL26: 6 | CM26: 11.06.2016 | CO26: 6 | CP26: 11.06.2016 | CR26: 4 | CS26: 11.06.2016 | CU26: 3 | CV26: 11.06.2016 | CX26: 5 | CY26: 11.06.2016 | DA26: 3 | DB26: 11.06.2016 | DD26: 6 | DE26: 11.06.2016 | DG26: 3 | DH26: 20.04.2017 | DJ26: 6 | DK26: 24.12.2016 | DM26: 5 | DN26: 24.12.2016 | DP26: 4 | DQ26: 24.12.2016 | DS26: 6 | DT26: 24.12.2016 | DV26: 3 | DW26: 24.12.2016 | DY26: 3 | DZ26: 21.04.2017 | EB26: 6 | EC26: 21.04.2017 | EE26: 3 | EF26: 21.04.2017 | EH26: 4 | EI26: 21.04.2017 | EK26: 5 | EL26: 21.04.2017 | EN26: 6 | EO26: 21.04.2017 | EQ26: 6 | ER26: 21.04.2017 | ET26: 5 | EU26: 05.04.2016 | EW26: 5 | EX26: 30.11.2017 | EZ26: 4 | FA26: 30.11.2017 | FC26: 4 | FD26: 30.11.2017 | FF26: 4 | FG26: 30.11.2017 | FI26: 5 | FJ26: 30.11.2017 | FL26: 5 | FM26: 30.11.2017 | FO26: 5 | FP26: 30.11.2017 | FR26: 3 | FS26: 30.11.2017 | FT26: Оптимизация кормосмеси для кур-несушек | FU26: 6 | FV26: 2018-06-07 | FW26: 7819542 | FX26: 4 | FY26: 2018-06-07 | FZ26: 78110074 | GA26: 4 | GB26: 2018-06-07 | GC26: 7819514 | GD26: 4 | GE26: 2018-06-07 | GF26: Бухгалтерский баланс и бухгалтерская отчетность | GG26: 4 | GH26: 2018-06-07 | GI26: 7819557 | GJ26: 5 | GK26: 2018-06-07 | GL26: 7819711 | GM26: 4 | GN26: 2018-06-07 | GO26: Конкурентоспособность организации (предприятия) | GP26: 5 | GQ26: 2018-06-07 | GR26: 7819720 | GS26: 4 | GT26: 2018-06-07 | GU26: 7819517 | GV26: 4 | GW26: 2018-06-07 | GX26: Основные принципы проведения аудита | GY26: 5 | GZ26: 05.04.2016 | HP26: 0 | HZ26: 5 | IA26: п/зач 05.04.16 | JJ26: 2.86 | JL26: 7 | JM26: 13 | JN26: 14 | JO26: 10 | JP26: 34 | JQ26: 5688 | JR26: 711
A27: 22 | B27: Одекова | C27: Гульджахан | D27: Джумагельдыевна | E27: Одекова Г. Д. | G27: Одековой | H27: Гульджахан | I27: Джумагельдыевне | J27: 1985-05-22 | K27: г. Ашхабад, Туркменистан | L27: Республика Туркменистан | M27: ж | N27: Учебно-методический центр государственного комитета по туризму Туркменистана | O27: 2013 | P27: замужем | Q27: Туркменистан г.Ашхабад ул.Битарал, д. 526, кв. 16 | Y27: 15817з | Z27: Экономический | AA27: 38.03.01 | AB27: Экономика | AC27: Бухгалтерский учет, анализ и аудит | AD27: 4 года | AE27: БАКАЛАВР | AF27: 2-585 | AG27: 2015-09-05 | AH27: по договору с полным возмещением затрат | AI27: 000003831 | AJ27: 2015-08-15 | AZ27: 2-703 | BA27: 2017-09-01 | CA27: 4 | CB27: 248z | CC27: 4 | CD27: 2018-06-07 | CE27: 78310135 | CF27: 6 | CG27: 2018-06-07 | CH27: 78310110 | CI27: 5 | CJ27: 12.09.2016 | CL27: 6 | CM27: 12.09.2016 | CO27: 6 | CP27: 29.12.2017 | CR27: 4 | CS27: 15.09.2016 | CU27: 4 | CV27: 12.09.2016 | CX27: 5 | CY27: 15.09.2016 | DA27: 4 | DB27: 15.09.2016 | DD27: 6 | DE27: 15.09.2016 | DG27: 4 | DH27: 27.11.2017 | DJ27: 6 | DK27: 11.10.2017 | DP27: 3 | DQ27: 11.10.2017 | DS27: 6 | DT27: 30.06.2017 | DV27: 5 | DW27: 25.12.2017 | DY27: 3 | DZ27: 30.06.2017 | EE27: 3 | EF27: 28.06.2017 | EH27: 3 | EI27: 30.06.2017 | EK27: 4 | EL27: 2018-07-03 | EM27: 982 | EN27: 6 | EO27: 21.04.2017 | EQ27: 6 | ER27: 29.06.2017 | ET27: 4 | EU27: 01.07.2017 | FC27: 3 | FD27: 2018-09-19 | FE27: 45 | FF27: 3 | FG27: 2018-09-25 | FH27: 56 | FO27: 3 | FP27: 2018-09-19 | FQ27: 43 | FR27: 3 | FS27: 2018-09-19 | FT27: Оптимизация структуры кормопроизводства | FU27: 6 | FV27: 2018-09-17 | FW27: 7839542-2 | GA27: 5 | GB27: 2018-06-07 | GC27: 7839514 | GD27: 4 | GE27: 2018-06-07 | GF27: Бухгалтерские счета и двойная запись | GS27: 5 | GT27: 2018-06-07 | GU27: 7839517 | GV27: 4 | GW27: 2018-06-07 | GX27: Виды и организация аудиторской деятельности в РФ | GY27: 4 | GZ27: 2018-08-31 | HA27: СПК "Знамя Труда-1" Красносельского р-на Костромской обл. | HZ27: 3 | IA27: 2018-09-20 | IB27: 50 | JJ27: 1.84 | JL27: 9 | JM27: 10 | JN27: 5 | JO27: 9 | JP27: 24 | JQ27: 4212 | JR27: 527
A28: 23 | B28: Перминова | C28: Ирина | D28: Дмитриевна | E28: Перминова И. Д. | G28: Перминовой | H28: Ирине | I28: Дмитриевне | J28: 1996-07-01 | K28: г. Шарья Костромской обл. | L28: РФ | M28: ж | N28: Костромская ГСХА СПО | O28: 2015 | P28: не замужем | Q28: Костромская обл., г. Шарья, ул. Полярников, д. 42 | Y28: 15852з | Z28: Экономический | AA28: 38.03.01 | AB28: Экономика | AC28: Бухгалтерский учет, анализ и аудит | AD28: 4 года | AE28: БАКАЛАВР | AF28: 2-557 | AG28: 2015-08-21 | AH28: по договору с полным возмещением затрат | AI28: 000003688 | AJ28: 2015-08-14 | AX28: 2-561 | AY28: 2016-09-01 | AZ28: 2-703 | BA28: 2017-09-01 | CA28: 4 | CB28: 246z | CC28: 4 | CD28: 2018-06-07 | CE28: 78110135 | CF28: 6 | CG28: 2018-06-07 | CH28: 78110110 | CI28: 5 | CJ28: 11.06.2016 | CL28: 6 | CM28: 11.06.2016 | CO28: 6 | CP28: 11.06.2016 | CR28: 3 | CS28: 11.06.2016 | CU28: 3 | CV28: 11.06.2016 | CX28: 5 | CY28: 11.06.2016 | DA28: 3 | DB28: 11.06.2016 | DD28: 6 | DE28: 11.06.2016 | DG28: 3 | DH28: 24.12.2016 | DJ28: 6 | DK28: 24.12.2016 | DM28: 5 | DN28: 24.12.2016 | DP28: 3 | DQ28: 17.11.2017 | DS28: 6 | DT28: 24.12.2016 | DV28: 4 | DW28: 21.04.2017 | DY28: 5 | DZ28: 21.04.2017 | EB28: 6 | EC28: 21.04.2017 | EE28: 4 | EF28: 21.04.2017 | EH28: 4 | EI28: 21.04.2017 | EK28: 4 | EL28: 21.04.2017 | EN28: 6 | EO28: 21.04.2017 | EQ28: 6 | ER28: 21.04.2017 | ET28: 5 | EU28: 05.04.2016 | EW28: 4 | EX28: 30.11.2017 | EZ28: 3 | FA28: 30.11.2017 | FC28: 4 | FD28: 30.11.2017 | FF28: 5 | FG28: 30.11.2017 | FI28: 5 | FJ28: 30.11.2017 | FL28: 5 | FM28: 30.11.2017 | FO28: 4 | FP28: 30.11.2017 | FR28: 5 | FS28: 30.11.2017 | FT28: Оптимальная специализация и сочетание отраслей сельскохозяйственного предприятия | FU28: 6 | FV28: 2018-06-07 | FW28: 7819542 | FX28: 4 | FY28: 2018-06-07 | FZ28: 78110074 | GA28: 5 | GB28: 2018-06-07 | GC28: 7819514 | GD28: 5 | GE28: 2018-06-07 | GF28: Учет расчетов с поставщиками и подрядчиками | GG28: 4 | GH28: 2018-06-07 | GI28: 7819557 | GJ28: 5 | GK28: 2018-06-07 | GL28: 7819711 | GP28: 4 | GQ28: 2018-06-07 | GR28: 7819720 | GS28: 5 | GT28: 2018-06-07 | GU28: 7819517 | GV28: 5 | GW28: 2018-06-07 | GX28: Виды и организация аудиторской деятельности в РФ | GY28: 4 | GZ28: 05.04.2016 | HP28: 0 | HZ28: 4 | IA28: п/зач 05.04.16 | JJ28: 2.8 | JL28: 6 | JM28: 13 | JN28: 14 | JO28: 10 | JP28: 33 | JQ28: 5688 | JR28: 711
A29: 24 | B29: Рязанова | C29: Светлана | D29: Александровна | E29: Рязанова С. А. | G29: Рязановой | H29: Светлане | I29: Александровне | J29: 1986-09-18 | K29: г. Ярославль | L29: РФ | M29: ж | N29: Ярославский торгово-экономический техникум | O29: 2009 | P29: не замужем | Q29: Ярославская обл г. Ярославль, ул. Автозаводская д. 87, А кв. 2 | Y29: 15853з | Z29: Экономический | AA29: 38.03.01 | AB29: Экономика | AC29: Бухгалтерский учет, анализ и аудит | AD29: 4 года | AE29: БАКАЛАВР | AF29: 2-557 | AG29: 2015-08-21 | AH29: по договору с полным возмещением затрат | AI29: 000003612 | AJ29: 2015-08-11 | AX29: 2-561 | AY29: 2016-09-01 | AZ29: 2-703 | BA29: 2017-09-01 | CA29: 4 | CB29: 246z | CC29: 3 | CD29: 2018-06-07 | CE29: 78110135 | CF29: 6 | CG29: 2018-06-07 | CH29: 78110110 | CI29: 4 | CJ29: 11.06.2016 | CL29: 6 | CM29: 11.06.2016 | CO29: 6 | CP29: 11.06.2016 | CR29: 3 | CS29: 11.06.2016 | CU29: 3 | CV29: 11.06.2016 | CX29: 4 | CY29: 11.06.2016 | DA29: 4 | DB29: 11.06.2016 | DD29: 6 | DE29: 11.06.2016 | DG29: 4 | DH29: 22.12.2016 | DJ29: 6 | DK29: 24.12.2016 | DM29: 4 | DN29: 24.12.2016 | DP29: 3 | DQ29: 24.12.2016 | DS29: 6 | DT29: 24.12.2016 | DV29: 3 | DW29: 24.12.2016 | DY29: 4 | DZ29: 21.04.2017 | EB29: 6 | EC29: 21.04.2017 | EE29: 4 | EF29: 2018-04-21 | EH29: 4 | EI29: 21.04.2017 | EK29: 5 | EL29: 21.04.2017 | EN29: 6 | EO29: 21.04.2017 | EQ29: 6 | ER29: 21.04.2017 | ET29: 4 | EU29: 01.07.2017 | EW29: 4 | EX29: 30.11.2017 | EZ29: 4 | FA29: 30.11.2017 | FC29: 3 | FD29: 30.11.2017 | FF29: 4 | FG29: 30.11.2017 | FI29: 4 | FJ29: 30.11.2017 | FL29: 5 | FM29: 30.11.2017 | FO29: 3 | FP29: 30.11.2017 | FR29: 4 | FS29: 30.11.2017 | FT29: Оптимальная специализация и сочетание отраслей сельскохозяйственного предприятия | FU29: 6 | FV29: 2018-06-07 | FW29: 7819542 | FX29: 4 | FY29: 2018-06-07 | FZ29: 78110074 | GA29: 4 | GB29: 2018-06-07 | GC29: 7819514 | GD29: 4 | GE29: 2018-06-07 | GF29: Учет расчетов по кредитам и займам | GG29: 4 | GH29: 2018-06-07 | GI29: 7819557 | GJ29: 5 | GK29: 2018-06-07 | GL29: 7819711 | GP29: 5 | GQ29: 2018-06-07 | GR29: 7819720 | GS29: 4 | GT29: 2018-06-07 | GU29: 7819517 | GY29: 4 | GZ29: 05.04.2016 | HP29: 0 | HZ29: 4 | IA29: п/зач 05.04.16 | JJ29: 2.5 | JL29: 7 | JM29: 21 | JN29: 4 | JO29: 10 | JP29: 32 | JQ29: 5688 | JR29: 711
A30: 25 | B30: Семёнова | C30: Светлана | D30: Александровна | E30: Семёнова С. А. | G30: Семёновой | H30: Светлане | I30: Александровне | J30: 1988-09-23 | K30: дер. Дорофейцово Чухломского р-на Костромской обл. | L30: РФ | M30: ж | N30: Костромской механико-технический техникум | O30: 2006 | P30: не замужем | Q30: Костромская обл., Чухломский р-н, с. Судай, ул. Республиканская, д. 2 | Y30: 15854з | Z30: Экономический | AA30: 38.03.01 | AB30: Экономика | AC30: Бухгалтерский учет, анализ и аудит | AD30: 4 года | AE30: БАКАЛАВР | AF30: 2-557 | AG30: 2015-08-21 | AH30: по договору с полным возмещением затрат | AI30: 000003514 | AJ30: 2015-08-07 | AX30: 2-561 | AY30: 2016-09-01 | AZ30: 2-703 | BA30: 2017-09-01 | CA30: 4 | CB30: 246z | CC30: 5 | CD30: 2018-06-07 | CE30: 78110135 | CF30: 6 | CG30: 2018-06-07 | CH30: 78110110 | CI30: 3 | CJ30: 11.06.2016 | CL30: 6 | CM30: 11.06.2016 | CO30: 6 | CP30: 11.06.2016 | CR30: 3 | CS30: 11.06.2016 | CU30: 3 | CV30: 11.06.2016 | CX30: 5 | CY30: 11.06.2016 | DA30: 3 | DB30: 11.06.2016 | DD30: 6 | DE30: 11.06.2016 | DG30: 5 | DH30: 21.12.2016 | DJ30: 6 | DK30: 24.12.2016 | DM30: 5 | DN30: 24.12.2016 | DP30: 3 | DQ30: 24.12.2016 | DS30: 6 | DT30: 24.12.2016 | DV30: 5 | DW30: 24.12.2016 | DY30: 3 | DZ30: 21.04.2017 | EB30: 6 | EC30: 21.04.2017 | EE30: 4 | EF30: 21.04.2017 | EH30: 4 | EI30: 21.04.2017 | EK30: 4 | EL30: 21.04.2017 | EN30: 6 | EO30: 21.04.2017 | EQ30: 6 | ER30: 21.04.2017 | ET30: 5 | EU30: 05.04.2016 | EW30: 5 | EX30: 30.11.2017 | EZ30: 3 | FA30: 30.11.2017 | FC30: 4 | FD30: 30.11.2017 | FF30: 5 | FG30: 30.11.2017 | FI30: 4 | FJ30: 30.11.2017 | FL30: 5 | FM30: 30.11.2017 | FO30: 5 | FP30: 30.11.2017 | FR30: 5 | FS30: 30.11.2017 | FT30: Оптимальная специализация и сочетание отраслей сельскохозяйственного предприятия | FU30: 6 | FV30: 2018-06-07 | FW30: 7819542 | FX30: 5 | FY30: 2018-06-07 | FZ30: 78110074 | GA30: 5 | GB30: 2018-06-07 | GC30: 7819514 | GD30: 5 | GE30: 2018-06-07 | GF30: Учет расчетов с персоналом по оплате труда | GG30: 4 | GH30: 2018-06-07 | GI30: 7819557 | GJ30: 4 | GK30: 2018-06-07 | GL30: 7819711 | GM30: 5 | GN30: 2018-06-07 | GO30: Персонал организации (предприятия) и пути повышения эффективности его использования | GP30: 4 | GQ30: 2018-06-07 | GR30: 7819720 | GS30: 5 | GT30: 2018-06-07 | GU30: 7819517 | GV30: 5 | GW30: 2018-06-07 | GX30: Организация аудита расчетов с персоналом по оплате труда | GY30: 4 | GZ30: 05.04.2016 | HP30: 0 | HZ30: 4 | IA30: п/зач 05.04.16 | JJ30: 2.92 | JL30: 7 | JM30: 10 | JN30: 17 | JO30: 10 | JP30: 34 | JQ30: 5688 | JR30: 711
A31: 26 | B31: Смирнова | C31: Анна | D31: Игоревна | E31: Смирнова А. И. | G31: Смирновой | H31: Анне | I31: Игоревне | J31: 1983-08-31 | K31: г. Кострома | L31: РФ | M31: ж | N31: Костромская ГСХА Ветеренария | O31: 2005 | P31: не замужем | Q31: г. Кострома, мкр. Давыдовский-2, д. 33, кв. 140 | Y31: 15856з | Z31: Экономический | AA31: 38.03.01 | AB31: Экономика | AC31: Бухгалтерский учет, анализ и аудит | AD31: 4 года | AE31: БАКАЛАВР | AF31: 2-557 | AG31: 2015-08-21 | AH31: по договору с полным возмещением затрат | AI31: 000003595 | AJ31: 2015-08-10 | AX31: 2-561 | AY31: 2016-09-01 | AZ31: 2-703 | BA31: 2017-09-01 | CA31: 4 | CB31: 246z | CC31: 5 | CD31: 2018-06-07 | CE31: 78110135 | CF31: 6 | CG31: 2018-06-07 | CH31: 78110110 | CI31: 5 | CJ31: 05.04.2016 | CL31: 6 | CM31: 05.04.2016 | CO31: 6 | CP31: 05.04.2016 | CR31: 5 | CS31: 05.04.2016 | CU31: 5 | CV31: 11.06.2016 | CX31: 4 | CY31: 11.06.2016 | DA31: 4 | DB31: 11.06.2016 | DD31: 6 | DE31: 13.12.2016 | DG31: 5 | DH31: 24.12.2016 | DJ31: 6 | DK31: 24.12.2016 | DM31: 5 | DN31: 24.12.2016 | DP31: 5 | DQ31: 24.12.2016 | DS31: 6 | DT31: 24.12.2016 | DV31: 5 | DW31: 24.12.2016 | DY31: 5 | DZ31: 21.04.2017 | EB31: 6 | EC31: 21.04.2017 | EE31: 4 | EF31: 21.04.2017 | EH31: 5 | EI31: 21.04.2017 | EK31: 4 | EL31: 21.04.2017 | EN31: 6 | EO31: 21.04.2017 | EQ31: 6 | ER31: 21.04.2017 | ET31: 4 | EU31: 01.07.2017 | EW31: 5 | EX31: 30.11.2017 | EZ31: 5 | FA31: 30.11.2017 | FC31: 5 | FD31: 30.11.2017 | FF31: 5 | FG31: 30.11.2017 | FI31: 5 | FJ31: 30.11.2017 | FL31: 5 | FM31: 30.11.2017 | FO31: 5 | FP31: 30.11.2017 | FR31: 5 | FS31: 30.11.2017 | FT31: Оптимизация структуры кормопроизводства сельскохозяйственного предприятия | FU31: 6 | FV31: 2018-06-07 | FW31: 7819542 | FX31: 4 | FY31: п/зач 05.04.16 | GA31: 5 | GB31: 2018-06-07 | GC31: 7819514 | GD31: 5 | GE31: 2018-06-07 | GF31: Учет расчетов с дебиторами и кредиторами | GG31: 5 | GH31: 2018-06-07 | GI31: 7819557 | GJ31: 5 | GK31: 2018-06-07 | GL31: 7819711 | GM31: 5 | GN31: 2018-06-07 | GO31: Эффективность использования основных средств организации (предприятия) | GP31: 5 | GQ31: 2018-06-07 | GR31: 7819720 | GS31: 5 | GT31: 2018-06-07 | GU31: 7819517 | GV31: 5 | GW31: 2018-06-07 | GX31: Организация и осуществление внутреннего аудита | GY31: 5 | GZ31: 2018-08-31 | HA31: ООО "Профэлектромонтаж" г. Кострома | HP31: 0 | JJ31: 3.18 | JL31: 0 | JM31: 6 | JN31: 27 | JO31: 10 | JP31: 33 | JQ31: 5688 | JR31: 711
A32: 27 | B32: Смирнова | C32: Анастасия | D32: Анатольевна | E32: Смирнова А. А. | G32: Смирновой | H32: Анастасии | I32: Анатольевне | J32: 1995-01-20 | K32: г. Кострома | L32: РФ | M32: ж | N32: Костромской торгово-экономический колледж | O32: 2014 | P32: не замужем | Q32: г. Кострома, ул. Индустриальная, д. 61, кв. 20 | Y32: 15855з | Z32: Экономический | AA32: 38.03.01 | AB32: Экономика | AC32: Бухгалтерский учет, анализ и аудит | AD32: 4 года | AE32: БАКАЛАВР | AF32: 2-557 | AG32: 2015-08-21 | AH32: по договору с полным возмещением затрат | AI32: 000003582 | AJ32: 2015-08-10 | AX32: 2-561 | AY32: 2016-09-01 | AZ32: 2-703 | BA32: 2017-09-01 | CA32: 4 | CB32: 246z | CC32: 4 | CD32: 2018-06-07 | CE32: 78110135 | CF32: 6 | CG32: 2018-06-07 | CH32: 78110110 | CI32: 3 | CJ32: 11.06.2016 | CL32: 6 | CM32: 11.06.2016 | CO32: 6 | CP32: 11.06.2016 | CR32: 3 | CS32: 08.12.2017 | CU32: 3 | CV32: 11.06.2016 | CX32: 4 | CY32: 11.06.2016 | DA32: 3 | DB32: 11.06.2016 | DD32: 6 | DE32: 11.06.2016 | DG32: 3 | DH32: 24.12.2016 | DJ32: 6 | DK32: 24.12.2016 | DM32: 3 | DN32: 24.12.2016 | DP32: 4 | DQ32: 24.12.2016 | DS32: 6 | DT32: 24.12.2016 | DV32: 3 | DW32: 24.12.2016 | DY32: 3 | DZ32: 21.04.2017 | EB32: 6 | EC32: 21.04.2017 | EE32: 5 | EF32: 21.04.2017 | EH32: 3 | EI32: 21.04.2017 | EK32: 5 | EL32: 21.04.2017 | EN32: 6 | EO32: 21.04.2017 | EQ32: 6 | ER32: 21.04.2017 | ET32: 3 | EU32: 05.04.2016 | EW32: 4 | EX32: 30.11.2017 | EZ32: 4 | FA32: 30.11.2017 | FC32: 3 | FD32: 30.11.2017 | FF32: 4 | FG32: 30.11.2017 | FI32: 3 | FJ32: 30.11.2017 | FL32: 4 | FM32: 30.11.2017 | FO32: 3 | FP32: 30.11.2017 | FR32: 3 | FS32: 30.11.2017 | FT32: Оптимальная специализация и сочетание отраслей сельскохозяйственного предприятия | FU32: 6 | FV32: 2018-06-07 | FW32: 7819542 | FX32: 4 | FY32: 2018-06-07 | FZ32: 78110074 | GA32: 4 | GB32: 2018-06-07 | GC32: 7819514 | GD32: 5 | GE32: 2018-06-07 | GF32: Бухгалтерская служба: права, обязанности и ответственность бухгалтерских работников | GG32: 4 | GH32: 2018-06-07 | GI32: 7819557 | GJ32: 5 | GK32: 2018-06-07 | GL32: 7819711 | GM32: 3 | GN32: 2018-06-07 | GO32: Эффективность использования оборотных средств организации (предприятия) | GP32: 4 | GQ32: 2018-06-07 | GR32: 7819720 | GS32: 4 | GT32: 2018-06-07 | GU32: 7819517 | GV32: 4 | GW32: 2018-06-07 | GX32: Планирование аудита | GY32: 3 | GZ32: 05.04.2016 | HP32: 0 | HZ32: 3 | IA32: п/зач 05.04.16 | JJ32: 2.46 | JL32: 17 | JM32: 13 | JN32: 4 | JO32: 10 | JP32: 34 | JQ32: 5688 | JR32: 711
A33: 28 | B33: Содикова (Бавыкина) | C33: Анастасия | D33: Евгеньевна | E33: Содикова (Бавыкина) А. Е. | G33: Содиковой | H33: Анастасии | I33: Евгеньевне | J33: 1996-06-27 | K33: г. Кострома | L33: РФ | M33: ж | N33: Костромская ГСХА СПО | O33: 2015 | P33: замужем | Q33: г. Кострома, мкр Юбилейный, д. 11, кв. 55 | Y33: 15846з | Z33: Экономический | AA33: 38.03.01 | AB33: Экономика | AC33: Бухгалтерский учет, анализ и аудит | AD33: 4 года | AE33: БАКАЛАВР | AF33: 2-547 | AG33: 2015-08-17 | AH33: в рамках контрольных цифр на основное место | AX33: 2-561 | AY33: 2016-09-01 | AZ33: 2-703 | BA33: 2017-09-01 | CA33: 4 | CB33: 246z | CC33: 4 | CD33: 2018-06-07 | CE33: 78110135 | CI33: 5 | CJ33: 11.06.2016 | CL33: 6 | CM33: 11.06.2016 | CO33: 6 | CP33: 11.06.2016 | CR33: 4 | CS33: 11.06.2016 | CU33: 5 | CV33: 11.06.2016 | CX33: 5 | CY33: 11.06.2016 | DA33: 4 | DB33: 11.06.2016 | DD33: 6 | DE33: 11.06.2016 | DG33: 4 | DH33: 24.12.2016 | DJ33: 6 | DK33: 24.12.2016 | DM33: 5 | DN33: 24.12.2016 | DP33: 4 | DQ33: 24.12.2016 | DS33: 6 | DT33: 24.12.2016 | DV33: 5 | DW33: 24.12.2016 | DY33: 4 | DZ33: 21.04.2017 | EB33: 6 | EC33: 21.04.2017 | EE33: 4 | EF33: 21.04.2017 | EH33: 4 | EI33: 21.04.2017 | EK33: 5 | EL33: 21.04.2017 | EN33: 6 | EO33: 21.04.2017 | EQ33: 6 | ER33: 21.04.2017 | ET33: 5 | EU33: 05.04.2016 | EW33: 4 | EX33: 30.11.2017 | EZ33: 4 | FA33: 30.11.2017 | FC33: 4 | FD33: 30.11.2017 | FF33: 5 | FG33: 30.11.2017 | FI33: 4 | FJ33: 30.11.2017 | FL33: 5 | FM33: 30.11.2017 | FO33: 4 | FP33: 30.11.2017 | FR33: 4 | FS33: 30.11.2017 | FT33: Оптимизация структуры кормопроизводства сельскохозяйственного предприятия | FU33: 6 | FV33: 2018-06-07 | FW33: 7819542 | FX33: 3 | FY33: 2018-06-07 | FZ33: 78110074 | GA33: 5 | GB33: 2018-06-07 | GC33: 7819514 | GD33: 5 | GE33: 2018-06-07 | GF33: Учет готовой продукции | GG33: 4 | GH33: 2018-06-07 | GI33: 7819557 | GJ33: 4 | GK33: 2018-06-07 | GL33: 7819711 | GM33: 4 | GN33: 2018-06-07 | GO33: Эффективность переработки конкретного вида продукции в ООО "ККЗ" | GP33: 3 | GQ33: 2018-06-07 | GR33: 7819720 | GS33: 4 | GT33: 2018-06-07 | GU33: 7819517 | GV33: 5 | GW33: 2018-06-07 | GX33: Организация аудита затрат, включаемых в себестоимость продукции (по видам продукции) | GY33: 4 | GZ33: 05.04.2016 | HP33: 0 | HZ33: 5 | IA33: п/зач 05.04.16 | JJ33: 2.94 | JL33: 2 | JM33: 19 | JN33: 13 | JO33: 9 | JP33: 34 | JQ33: 5580 | JR33: 698
A34: 29 | B34: Степанова | C34: Мария | D34: Сергеевна | E34: Степанова М. С. | G34: Степановой | H34: Марии | I34: Сергеевне | J34: 1996-08-26 | K34: г. Кемерово | L34: РФ | M34: ж | N34: Костромской лесомеханический колледж | O34: 2015 | P34: не замужем | Q34: Костромская обл., Сусанинский р-н, пгт Сусанино, ул. Горная, д. 17 | Y34: 15858з | Z34: Экономический | AA34: 38.03.01 | AB34: Экономика | AC34: Бухгалтерский учет, анализ и аудит | AD34: 4 года | AE34: БАКАЛАВР | AF34: 2-547 | AG34: 2015-08-17 | AH34: в рамках контрольных цифр на основное место | AX34: 2-561 | AY34: 2016-09-01 | AZ34: 2-703 | BA34: 2017-09-01 | CA34: 4 | CB34: 246z | CC34: 4 | CD34: 2018-06-07 | CE34: 78110135 | CF34: 6 | CG34: 2018-06-07 | CH34: 78110110 | CI34: 5 | CJ34: 11.06.2016 | CL34: 6 | CM34: 11.06.2016 | CO34: 6 | CP34: 11.06.2016 | CR34: 4 | CS34: 11.06.2016 | CU34: 3 | CV34: 11.06.2016 | CX34: 4 | CY34: 11.06.2016 | DA34: 4 | DB34: 19.12.2016 | DD34: 6 | DE34: 11.06.2016 | DG34: 3 | DH34: 24.12.2016 | DJ34: 6 | DK34: 24.12.2016 | DM34: 5 | DN34: 24.12.2016 | DP34: 4 | DQ34: 24.12.2016 | DS34: 6 | DT34: 24.12.2016 | DV34: 4 | DW34: 24.12.2016 | DY34: 5 | DZ34: 21.04.2017 | EB34: 6 | EC34: 21.04.2017 | EE34: 3 | EF34: 21.04.2017 | EH34: 5 | EI34: 21.04.2017 | EK34: 5 | EL34: 21.04.2017 | EN34: 6 | EO34: 21.04.2017 | EQ34: 6 | ER34: 21.04.2017 | ET34: 5 | EU34: 05.04.2016 | EW34: 5 | EX34: 30.11.2017 | EZ34: 3 | FA34: 30.11.2017 | FC34: 4 | FD34: 30.11.2017 | FF34: 4 | FG34: 30.11.2017 | FI34: 5 | FJ34: 30.11.2017 | FL34: 5 | FM34: 30.11.2017 | FO34: 4 | FP34: 30.11.2017 | FR34: 4 | FS34: 30.11.2017 | FT34: Оптимальная специализация и сочетание отраслей сельскохозяйственного предприятия | FU34: 6 | FV34: 2018-06-07 | FW34: 7819542 | FX34: 4 | FY34: 2018-06-07 | FZ34: 78110074 | GA34: 5 | GB34: 2018-06-07 | GC34: 7819514 | GD34: 5 | GE34: 2018-06-07 | GF34: Учет расчетов по социальному страхованию и пенсионному обеспечению | GG34: 4 | GH34: 2018-06-07 | GI34: 7819557 | GJ34: 5 | GK34: 2018-06-07 | GL34: 7819711 | GM34: 4 | GN34: 2018-06-07 | GO34: Эффективность использования основных средств предприятия на примере ПК Колхоз "Сумароковский" | GP34: 5 | GQ34: 2018-06-07 | GR34: 7819720 | GS34: 4 | GT34: 2018-06-07 | GU34: 7819517 | GV34: 4 | GW34: 2018-06-07 | GX34: Организация аудита расчетов с покупателями и заказчиками | GY34: 5 | GZ34: 05.04.2016 | HP34: 0 | HZ34: 5 | IA34: п/зач 05.04.16 | JJ34: 2.94 | JL34: 4 | JM34: 15 | JN34: 15 | JO34: 10 | JP34: 34 | JQ34: 5688 | JR34: 711
A35: 30 | B35: Фоминых | C35: Екатерина | D35: Сергеевна | E35: Фоминых Е. С. | G35: Фоминых | H35: Екатерине | I35: Сергеевне | J35: 1995-03-23 | K35: г. Шарья Костромской обл. | L35: РФ | M35: ж | N35: Костромской торгово-экономический колледж | O35: 2015 | P35: не замужем | Q35: г. Кострома, ул. Свердлова, д. 99, кв. 146 | Y35: 15861з | Z35: Экономический | AA35: 38.03.01 | AB35: Экономика | AC35: Бухгалтерский учет, анализ и аудит | AD35: 4 года | AE35: БАКАЛАВР | AF35: 2-557 | AG35: 2015-08-21 | AH35: по договору с полным возмещением затрат | AI35: 000003521 | AJ35: 2015-08-07 | AX35: 2-561 | AY35: 2016-09-01 | AZ35: 2-703 | BA35: 2017-09-01 | CA35: 4 | CB35: 246z | CC35: 4 | CD35: 2018-06-07 | CE35: 78110135 | CF35: 6 | CG35: 2018-06-07 | CH35: 78110110 | CI35: 5 | CJ35: 11.06.2016 | CL35: 6 | CM35: 11.06.2016 | CO35: 6 | CP35: 11.06.2016 | CR35: 4 | CS35: 11.06.2016 | CU35: 3 | CV35: 11.06.2016 | CX35: 5 | CY35: 11.06.2016 | DA35: 3 | DB35: 11.06.2016 | DD35: 6 | DE35: 11.06.2016 | DG35: 4 | DH35: 24.12.2016 | DJ35: 6 | DK35: 24.12.2016 | DM35: 5 | DN35: 24.12.2016 | DP35: 4 | DQ35: 24.12.2016 | DS35: 6 | DT35: 24.12.2016 | DV35: 4 | DW35: 24.12.2016 | DY35: 4 | DZ35: 21.04.2017 | EB35: 6 | EC35: 21.04.2017 | EE35: 4 | EF35: 21.04.2017 | EH35: 4 | EI35: 21.04.2017 | EK35: 5 | EL35: 21.04.2017 | EN35: 6 | EO35: 21.04.2017 | EQ35: 6 | ER35: 21.04.2017 | ET35: 5 | EU35: 05.04.2016 | EW35: 4 | EX35: 30.11.2017 | EZ35: 4 | FA35: 30.11.2017 | FC35: 4 | FD35: 30.11.2017 | FF35: 4 | FG35: 30.11.2017 | FI35: 4 | FJ35: 30.11.2017 | FL35: 5 | FM35: 30.11.2017 | FO35: 4 | FP35: 30.11.2017 | FR35: 3 | FS35: 30.11.2017 | FT35: Оптимизация структуры кормопроизводства сельскохозяйственного предприятия | FU35: 6 | FV35: 2018-06-07 | FW35: 7819542 | FX35: 4 | FY35: 2018-06-07 | FZ35: 78110074 | GA35: 4 | GB35: 2018-06-07 | GC35: 7819514 | GD35: 5 | GE35: 2018-06-07 | GF35: Система нормативного регулирования бухгалтерского учета в России | GG35: 4 | GH35: 2018-06-07 | GI35: 7819557 | GJ35: 5 | GK35: 2018-06-07 | GL35: 7819711 | GM35: 4 | GN35: 2018-06-07 | GO35: Формирование и использование прибыли организации | GP35: 5 | GQ35: 2018-06-07 | GR35: 7819720 | GS35: 4 | GT35: 2018-06-07 | GU35: 7819517 | GV35: 5 | GW35: 2018-06-07 | GX35: Правовое регулирование аудиторской деятельности в РФ | GY35: 5 | GZ35: 05.04.2016 | HP35: 0 | HZ35: 5 | IA35: п/зач 05.04.16 | JJ35: 2.9 | JL35: 3 | JM35: 19 | JN35: 12 | JO35: 10 | JP35: 34 | JQ35: 5688 | JR35: 711
A36: 31 | B36: Царёва | C36: Марина | D36: Анатольевна | E36: Царёва М. А. | G36: Царёвой | H36: Марине | I36: Анатольевне | J36: 1964-01-07 | K36: дер. Чекшино Галичского р-на Костромской обл. | L36: РФ | M36: ж | N36: Буйский сельскохозяйственный техникум | O36: 1990 | P36: не замужем | Q36: Костромская обл., г. Галич, ул. Поречье, д. 5 | Y36: 15875з | Z36: Экономический | AA36: 38.03.01 | AB36: Экономика | AC36: Бухгалтерский учет, анализ и аудит | AD36: 4 года | AE36: БАКАЛАВР | AF36: 2-557 | AG36: 2015-08-21 | AH36: по договору с полным возмещением затрат | AI36: 000003464 | AJ36: 2015-07-31 | AX36: 2-561 | AY36: 2016-09-01 | AZ36: 2-703 | BA36: 2017-09-01 | CA36: 4 | CB36: 248z | CC36: 4 | CD36: 2018-06-07 | CE36: 78310135 | CF36: 6 | CG36: 2018-06-07 | CH36: 78310110 | CI36: 5 | CJ36: 11.06.2016 | CL36: 6 | CM36: 11.06.2016 | CO36: 6 | CP36: 11.06.2016 | CR36: 3 | CS36: 11.06.2016 | CU36: 5 | CV36: 11.06.2016 | CX36: 5 | CY36: 11.06.2016 | DA36: 3 | DB36: 11.06.2016 | DD36: 6 | DE36: 11.06.2016 | DG36: 4 | DH36: 24.12.2016 | DJ36: 6 | DK36: 24.12.2016 | DM36: 4 | DN36: 24.12.2016 | DP36: 4 | DQ36: 24.12.2016 | DS36: 6 | DT36: 24.12.2016 | DV36: 5 | DW36: 30.06.2017 | DY36: 5 | DZ36: 21.04.2017 | EB36: 6 | EC36: 21.04.2017 | EE36: 5 | EF36: 21.04.2017 | EH36: 4 | EI36: 21.04.2017 | EK36: 5 | EL36: 21.04.2017 | EN36: 6 | EO36: 21.04.2017 | EQ36: 6 | ER36: 21.04.2017 | ET36: 4 | EU36: 01.07.2017 | EW36: 5 | EX36: 2017-11-30 | EY36: Z-7839490 | EZ36: 4 | FA36: 2017-11-30 | FB36: Z-7839489 | FC36: 3 | FD36: 2017-11-30 | FE36: Z-7839538 | FF36: 4 | FG36: 2017-11-30 | FH36: Z-7839536 | FI36: 5 | FJ36: 2017-11-30 | FK36: Z-7839556 | FO36: 4 | FP36: 2017-11-30 | FQ36: Z-7839543 | FR36: 4 | FS36: 30.11.2017 | FT36: Определение оптимальной внутрихозяйственной специализации предприятий СПК "Михали Нейского района Костромской области | FU36: 6 | FV36: 2018-06-07 | FW36: 7839542 | FX36: 4 | FY36: 2018-06-07 | FZ36: 78310074 | GA36: 5 | GB36: 2018-06-07 | GC36: 7839514 | GD36: 4 | GE36: 2018-06-07 | GF36: Бухгалтерская служба: права, обязанности и ответственность бухгалтерских работников | GG36: 5 | GH36: 2018-06-07 | GI36: 7839557 | GJ36: 5 | GK36: 2018-06-07 | GL36: 7839711 | GM36: 3 | GN36: 2018-06-07 | GO36: Эффективность использования земельных ресурсов СПК «МАЯК Галичского района» | GP36: 5 | GQ36: 2018-06-07 | GR36: 7839720 | GS36: 5 | GT36: 2018-06-07 | GU36: 7839517 | GV36: 4 | GW36: 2018-06-07 | GX36: Организация и осуществление внутреннего аудита | GY36: 4 | GZ36: 05.04.2016 | HP36: 0 | JJ36: 2.76 | JL36: 4 | JM36: 14 | JN36: 14 | JO36: 10 | JP36: 32 | JQ36: 5544 | JR36: 693
A37: 32 | B37: Чернова | C37: Ирина | D37: Валерьевна | E37: Чернова И. В. | G37: Черновой | H37: Ирине | I37: Валерьевне | J37: 1997-08-27 | K37: дер. Захарово Красносельского р-на Костромской обл. | L37: РФ | M37: ж | N37: Костромской лесомеханический колледж | O37: 2015 | P37: не замужем | Q37: Костромская обл., Красносельский р-н, пгт Красное-на-Волге, ул. Молодежная, д. 30 | Y37: 15862з | Z37: Экономический | AA37: 38.03.01 | AB37: Экономика | AC37: Бухгалтерский учет, анализ и аудит | AD37: 4 года | AE37: БАКАЛАВР | AF37: 2-557 | AG37: 2015-08-21 | AH37: по договору с полным возмещением затрат | AI37: 000003492 | AJ37: 2015-08-05 | AS37: 2-565 | AT37: 2018-06-25 | AU37: по семейным обстоятельствам | AX37: 2-561 | AY37: 2016-09-01 | CA37: 3 | CB37: АО | CF37: 6 | CG37: 2018-06-07 | CH37: 78110110 | CI37: 3 | CJ37: 11.06.2016 | CL37: 6 | CM37: 11.06.2016 | CO37: 6 | CP37: 11.06.2016 | CX37: 3 | CY37: 11.06.2016 | DA37: 3 | DB37: 11.06.2016 | DD37: 6 | DE37: 11.06.2016 | DJ37: 6 | DK37: 24.12.2016 | DM37: 3 | DN37: 24.12.2016 | DV37: 3 | DW37: 2018-04-20 | DX37: 710 | EH37: 3 | EI37: 21.04.2017 | EN37: 6 | EO37: 21.04.2017 | EQ37: 6 | ER37: 21.04.2017 | ET37: 4 | EU37: 05.04.2016 | EW37: 3 | EX37: 30.11.2017 | EZ37: 3 | FA37: 30.11.2017 | FL37: 4 | FM37: 30.11.2017 | FU37: 6 | FV37: 2018-06-07 | FW37: 7819542 | GA37: 4 | GB37: 2018-06-07 | GC37: 7819514 | GD37: 4 | GE37: 2018-06-07 | GF37: Основные направления и перспективы развития бухгалтерского учета в РФ | GG37: 4 | GH37: 2018-06-07 | GI37: 7819557 | GJ37: 4 | GK37: 2018-06-07 | GL37: 7819711 | GP37: 3 | GQ37: 2018-06-07 | GR37: 7819720 | GS37: 4 | GT37: 2018-06-07 | GU37: 7819517 | GY37: 4 | GZ37: 05.04.2016 | HP37: 0 | HZ37: 4 | IA37: п/зач 05.04.16 | JD37: 4 | JE37: 05.04.2016 | JJ37: 1.34 | JL37: 9 | JM37: 10 | JN37: 0 | JO37: 8 | JP37: 19 | JQ37: 3096 | JR37: 387
A38: 33 | B38: Яблокова | C38: Анастасия | D38: Алексеевна | E38: Яблокова А. А. | G38: Яблоковой | H38: Анастасии | I38: Алексеевне | J38: 1996-06-24 | K38: г. Кострома | L38: РФ | M38: ж | N38: Костромской торгово-экономический колледж | O38: 2015 | P38: не замужем | Q38: г. Кострома, ул. Центральная, д. 50, кв. 409 | Y38: 15864з | Z38: Экономический | AA38: 38.03.01 | AB38: Экономика | AC38: Бухгалтерский учет, анализ и аудит | AD38: 4 года | AE38: БАКАЛАВР | AF38: 2-557 | AG38: 2015-08-21 | AH38: по договору с полным возмещением затрат | AI38: 000003546 | AJ38: 2015-08-10 | AX38: 2-561 | AY38: 2016-09-01 | AZ38: 2-703 | BA38: 2017-09-01 | CA38: 4 | CB38: 246z | CC38: 5 | CD38: 2018-06-07 | CE38: 78110135 | CF38: 6 | CG38: 2018-06-07 | CH38: 78110110 | CI38: 4 | CJ38: 11.06.2016 | CL38: 6 | CM38: 11.06.2016 | CO38: 6 | CP38: 11.06.2016 | CR38: 4 | CS38: 11.06.2016 | CU38: 5 | CV38: 11.06.2016 | CX38: 5 | CY38: 11.06.2016 | DA38: 3 | DB38: 11.06.2016 | DD38: 6 | DE38: 11.06.2016 | DG38: 4 | DH38: 24.12.2016 | DJ38: 6 | DK38: 24.12.2016 | DM38: 5 | DN38: 24.12.2016 | DP38: 4 | DQ38: 24.12.2016 | DS38: 6 | DT38: 24.12.2016 | DV38: 5 | DW38: 24.12.2016 | DY38: 5 | DZ38: 21.04.2017 | EB38: 6 | EC38: 21.04.2017 | EE38: 5 | EF38: 21.04.2017 | EH38: 4 | EI38: 21.04.2017 | EK38: 5 | EL38: 21.04.2017 | EN38: 6 | EO38: 21.04.2017 | EQ38: 6 | ER38: 21.04.2017 | ET38: 5 | EU38: 05.04.2016 | EW38: 5 | EX38: 30.11.2017 | EZ38: 3 | FA38: 30.11.2017 | FC38: 4 | FD38: 30.11.2017 | FF38: 4 | FG38: 30.11.2017 | FI38: 5 | FJ38: 30.11.2017 | FL38: 5 | FM38: 30.11.2017 | FO38: 5 | FP38: 30.11.2017 | FR38: 5 | FS38: 30.11.2017 | FT38: Оптимальная специализация и сочетание отраслей сельскохозяйственного предприятия | FU38: 6 | FV38: 2018-06-07 | FW38: 7819542 | FX38: 5 | FY38: 2018-06-07 | FZ38: 78110074 | GA38: 4 | GB38: 2018-06-07 | GC38: 7819514 | GD38: 5 | GE38: 2018-06-07 | GF38: Основы организации и ведения бухгалтерского учета на предприятиях | GG38: 5 | GH38: 2018-06-07 | GI38: 7819557 | GJ38: 5 | GK38: 2018-06-07 | GL38: 7819711 | GM38: 5 | GN38: 2018-06-07 | GO38: Формирование и использование прибыли организации (предприятия) | GP38: 4 | GQ38: 2018-06-07 | GR38: 7819720 | GS38: 5 | GT38: 2018-06-07 | GU38: 7819517 | GV38: 5 | GW38: 2018-06-07 | GX38: Организация аудита готовой продукции | GY38: 5 | GZ38: 05.04.2016 | HP38: 0 | HZ38: 5 | IA38: п/зач 05.04.16 | JJ38: 3.14 | JL38: 2 | JM38: 9 | JN38: 23 | JO38: 10 | JP38: 34 | JQ38: 5688 | JR38: 711
A39: 34 | B39: Меркулова | C39: Любовь | D39: Михайловна | E39: Меркулова Л. М. | G39: Меркуловой | H39: Анастасии | I39: Михайловне | J39: 1983-05-06 | K39: д. Ивановское Красносельского р-на Костромской обл. | L39: РФ | M39: ж | N39: ГОУ ВПО "Костромской государственный университет им. Некрасова" | O39: 2006 | P39: не замужем | Q39: Костромская обл., Красносельский р-н, д. Ивановское, ул. Речная, д. 7 | Y39: 13952 | Z39: Экономический | AA39: 38.03.01 | AB39: Экономика | AC39: Бухгалтерский учет, анализ и аудит | AD39: 5 года | AE39: БАКАЛАВР | AF39: 2-636 | AG39: 2013-10-16 | AH39: по договору с полным возмещением затрат | AI39: 000001464 | AJ39: 2013-08-30 | AM39: 2-491 | AN39: 2017-06-06 | AO39: В связи с невыполнением учебного плана | AS39: 2-339 | AT39: 2018-05-03 | AU39: по семейным обстоятельствам | AV39: 2018-04-28 | AW39: 2019-04-27 | AX39: 2-532 | AY39: 2014-09-01 | AZ39: 2-571 | BA39: 2015-09-01 | BB39: 2-402 | BC39: 2017-05-18 | BR39: Организация бухгалтерского учета расчетов с персоналом по оплате труда и анализ использования трудовых ресурсов в ООО «Компания «Хома» г. Кострома | CA39: 4 | CB39: АО | CI39: 4 | CJ39: 2014-05-30 | CL39: 6 | CM39: 2014-05-29 | CO39: 6 | CP39: 2014-05-30 | CR39: 3 | CS39: 2014-06-09 | CU39: 3 | CV39: 2014-06-05 | CX39: 5 | CY39: 2014-06-02 | DA39: 3 | DB39: 2014-06-07 | DG39: 4 | DH39: 2014-12-16 | DJ39: 6 | DK39: 2014-12-23 | DM39: 3 | DN39: 2014-12-29 | DP39: 3 | DQ39: 2015-11-19 | DS39: 6 | DT39: 2014-12-19 | DV39: 3 | DW39: 2014-12-25 | DY39: 3 | DZ39: 2015-04-22 | EB39: 6 | EC39: 2015-12-04 | EE39: 3 | EF39: 2015-04-21 | EH39: 3 | EI39: 2015-04-23 | EK39: 3 | EL39: 2015-12-11 | EN39: 6 | EO39: 2014-05-21 | ET39: 4 | EU39: 2015-07-04 | EV39: ФГБОУ ВО Костромская ГСХА, кафедра "Экономическая кибернетика" | EW39: 3 | EX39: 2015-11-28 | EZ39: 5 | FA39: 2015-11-19 | FC39: 3 | FD39: 2017-01-25 | FF39: 3 | FG39: 2015-11-25 | FL39: 3 | FM39: 2015-11-21 | FO39: 3 | FP39: 2015-12-02 | FR39: 5 | FS39: 2017-05-24 | FT39: Определение специализации сельскохозяйственного предприятия | FU39: 6 | FV39: 2017-05-18 | FX39: 3 | FY39: 2017-04-07 | GG39: 3 | GH39: 2016-10-12 | GJ39: 3 | GK39: 2017-05-25 | GP39: 3 | GQ39: 2017-05-18 | HA39: ООО "Мечта" Костромского р-на Костромской обл. | HB39: 3 | HC39: 2016-10-12 | HE39: 3 | HF39: 2016-10-11 | HH39: 3 | HI39: 2016-10-12 | HQ39: 3 | HR39: 2016-10-12 | HT39: 3 | HU39: 2017-05-18 | HW39: 6 | HX39: 2016-10-17 | IC39: 3 | ID39: 2017-02-04 | IF39: 6 | IG39: 2017-02-04 | II39: 6 | IJ39: 2017-02-04 | IL39: 3 | IM39: 2017-04-03 | IR39: 3 | IS39: 2017-02-04 | IU39: 5 | IV39: 2017-02-04 | IX39: 6 | IY39: 2017-04-21 | JA39: 4 | JB39: 2017-05-24 | JJ39: =(JL39*3+JM39*4+JN39*5)/50 -> 2.34 | JL39: =COUNTIF(CC39:JG39,3) -> 27 | JM39: =COUNTIF(CC39:JG39,4) -> 4 | JN39: =COUNTIF(CC39:JG39,5) -> 4 | JO39: =COUNTIF(CC39:JG39,6) -> 11 | JP39: =SUM(JL39:JN39) -> 35 | JQ39: =SUMIF(CC39:JG39,">0",$CC$3:$JG$3) -> 6768 | JR39: =INT(JQ39/8+0.5) -> 846

Sheet форма
A1: Федеральное государственное бюджетное образовательное учреждения высшего образования | I1: 30 | P1: января | Z1: Папка | AA1: C:\5\
A2: «Костромская государственная сельскохозяйственная академия» | J2: =IF(J3="Экономический",деканаты!F2,IF(J3="Архитектурно-строительный",деканаты!F3,IF(J3="Агробизнеса",деканаты!F4,IF(J3="Ветеринарной медицины и зоотехнии",деканаты!F5,IF(J3="Инженерно-технологический",деканаты!F6,IF(J3="Электроэнергетический",деканаты!F7,0)))))) -> И.о. декана | P2: февраля | Z2: Имя файла | AA2: =CONCATENATE(R11,"_","УК_",S25) -> 15861з_УК_2015
B3: =J3 -> Экономический | J3: =INDEX(Предметы!$B$6:$JR$42,$I1,25) -> Экономический | N3: Удовлетворительно | O3: Удовлет. | P3: марта | AA3: =NOW() -> 2018-09-26T14:55:40.600
B4: Факультет | N4: Хорошо | O4: Хорошо | P4: апреля | Z4: - сохранить карточку в PDF
B5: =CONCATENATE(J5," ",K5) -> 38.03.01 Экономика | J5: =INDEX(Предметы!$B$6:$JR$42,$I1,26) -> 38.03.01 | K5: =INDEX(Предметы!$B$6:$JR$42,$I1,27) -> Экономика | N5: Отлично | O5: Отлично | P5: мая
B6: Направление | N6: Зачет | O6: Зачет | P6: июня
B7: =J7 -> Бухгалтерский учет, анализ и аудит | J7: =INDEX(Предметы!$B$6:$JR$42,$I1,28) -> Бухгалтерский учет, анализ и аудит | P7: июля
B8: Профиль | P8: августа
A9: Учебная карточка студента | P9: сентября
G10: Личное дело № | P10: октября
A11: 1 | B11: =CONCATENATE(J11," ",K11," ",L11) -> Фоминых Екатерина Сергеевна | I11: 1 | J11: =INDEX(Предметы!$B$6:$JR$42,$I1,1) -> Фоминых | K11: =INDEX(Предметы!$B$6:$JR$42,$I1,2) -> Екатерина | L11: =INDEX(Предметы!$B$6:$JR$42,$I1,3) -> Сергеевна | M11: =INDEX(Предметы!$B$6:$JR$42,$I1,12) -> ж | N11: =IF(M11="м","","а") -> а | P11: ноября | R11: =INDEX(Предметы!$B$6:$JR$42,$I1,24) -> 15861з
B12: Фамилия, имя, отчество | I12: 1 | P12: декабря
A13: =A11+1 -> 2 | B13: =CONCATENATE(L13," ",O13," ",M13) -> 23 марта 1995 | I13: 1 | J13: =INDEX(Предметы!$B$6:$JR$42,$I1,9) -> 34781 | K13: =TEXT(J13,"ДД ММММ ГГГГ") -> 23 Март 1995 | L13: =TEXT(J13,"ДД") -> 23 | M13: =TEXT(J13,"ГГГГ") -> 1995 | N13: =VALUE(TEXT(J13,"М")) -> 3 | O13: =CHOOSE(N13,$P$1,$P$2,$P$3,$P$4,$P$5,$P$6,P7,P8,P9,P10,P11,P12) -> марта
B14: Год и месяц рождения | I14: 1
A15: =A13+1 -> 3 | B15: =J15 -> г. Шарья Костромской обл. | I15: 1 | J15: =INDEX(Предметы!$B$6:$JR$42,$I1,10) -> г. Шарья Костромской обл.
B16: Место рождения | I16: 1
A17: =A15+1 -> 4 | B17: =J17 -> РФ | I17: 1 | J17: =INDEX(Предметы!$B$6:$JR$42,$I1,11) -> РФ
B18: Гражданство | I18: 1
A19: =A17+1 -> 5 | B19: =J19 -> Костромской торгово-экономический колледж | G19: год окончания | H19: =K19 -> 2015 | I19: 1 | J19: =INDEX(Предметы!$B$6:$JR$42,$I1,13) -> Костромской торгово-экономический колледж | K19: =INDEX(Предметы!$B$6:$JR$42,$I1,14) -> 2015
B20: Что окончил (а) | I20: 1
A21: =A19+1 -> 6 | B21: =J21 -> не замужем | I21: 1 | J21: =INDEX(Предметы!$B$6:$JR$42,$I1,15) -> не замужем
B22: Семейное положение | I22: 1
A23: =A21+1 -> 7 | B23: =J23 -> г. Кострома, ул. Свердлова, д. 99, кв. 146 | J23: =INDEX(Предметы!$B$6:$JR$42,$I1,16) -> г. Кострома, ул. Свердлова, д. 99, кв. 146
B24: Адрес местожительства
A25: =A23+1 -> 8 | B25: =CONCATENATE("Зачислен",N11," в вуз приказ № ",J25," от ",L25,"") -> Зачислена в вуз приказ № 2-557 от 21.08.2015 | I25: 1 | J25: =INDEX(Предметы!$B$6:$JR$42,$I1,31) -> 2-557 | K25: =INDEX(Предметы!$B$6:$JR$42,$I1,32) -> 42237 | L25: =TEXT(K25,"ДД.ММ.ГГГГ") -> 21.08.2015 | S25: =TEXT(K25,"ГГГГ") -> 2015
B26: =CONCATENATE(J26,M26) -> по договору с полным возмещением затрат договор № 000003521 от 07 08 2015 | I26: 1 | J26: =INDEX(Предметы!$B$6:$JR$42,$I1,33) -> по договору с полным возмещением затрат | K26: =INDEX(Предметы!$B$6:$JR$42,$I1,34) -> 000003521 | L26: =INDEX(Предметы!$B$6:$JR$42,$I1,35) -> 42223 | M26: =IF(K26=0,"",CONCATENATE(" договор № ",K26," от ",TEXT(L26,"ДД ММ ГГГГ") )) -> договор № 000003521 от 07 08 2015
A27: =A25+I25 -> 9 | B27: =CONCATENATE("Трудовая книжка ",M27) -> Трудовая книжка | I27: =IF(J27=0,0,1) -> 0 | J27: =INDEX(Предметы!$B$6:$JR$42,$I1,17) -> 0 | M27: =IF(J27=0,"",CONCATENATE(" № ",J27," дата выдачи ",TEXT(K27,"ДД.ММ.ГГГГ")," выдана ",L27)) -> 
I28: =I27 -> 0
A29: =A27+I27 -> 9 | B29: =CONCATENATE("Отчислен",N11," ",M29) -> Отчислена | I29: =IF(J29=0,0,1) -> 0 | J29: =INDEX(Предметы!$B$6:$JR$42,$I1,38) -> 0 | K29: =INDEX(Предметы!$B$6:$JR$42,$I1,39) -> 0 | L29: =INDEX(Предметы!$B$6:$JR$42,$I1,40) -> 0 | M29: =IF(J29=0,"",CONCATENATE(" приказ № ",J29," от ",TEXT(K29,"ДД.ММ.ГГГГ")," ",IF(L29=0,"",L29))) -> 
A31: =A29+I29 -> 9 | B31: =CONCATENATE("Востановлен",N11," ",M31) -> Востановлена | I31: =IF(J31=0,0,1) -> 0 | J31: =INDEX(Предметы!$B$6:$JR$42,$I$1,41) -> 0 | K31: =INDEX(Предметы!$B$6:$JR$42,$I$1,42) -> 0 | L31: =INDEX(Предметы!$B$6:$JR$42,$I$1,43) -> 0 | M31: =IF(J31=0,"",CONCATENATE(" приказ № ",J31," от ",TEXT(K31,"ДД.ММ.ГГГГ")," ",IF(L31=0,"",L31))) -> 
I32: =I31 -> 0
A33: =A31+I31 -> 9 | B33: =CONCATENATE("Предоставлен длительный отпуск",O33) -> Предоставлен длительный отпуск | I33: =IF(J33=0,0,1) -> 0 | J33: =INDEX(Предметы!$B$6:$JR$42,$I1,44) -> 0 | K33: =INDEX(Предметы!$B$6:$JR$42,$I1,45) -> 0 | L33: =INDEX(Предметы!$B$6:$JR$42,$I1,46) -> 0 | M33: =INDEX(Предметы!$B$6:$JR$42,$I1,47) -> 0 | N33: =INDEX(Предметы!$B$6:$JR$42,$I1,48) -> 0 | O33: =IF(J33=0,"",CONCATENATE(" сроком на ",IF(N34=0,"____",N34),O34," приказ № ",J33," от ",J34)) -> 
B34: =L33 -> 0 | D34: =IF(J33=0,"",CONCATENATE("с ",K34," по ",L34)) ->  | I34: =I33 -> 0 | J34: =TEXT(K33,"ДД.ММ.ГГГГ") -> 00.01.1900 | K34: =TEXT(M33,"ДД.ММ.ГГГГ") -> 00.01.1900 | L34: =TEXT(N33,"ДД.ММ.ГГГГ") -> 00.01.1900 | M34: =N33-M33+182 -> 182 | N34: =INT(M34/365+0.1) -> 0 | O34: =IF(N34=1," год"," года") -> года
A35: =A33+I33 -> 9 | B35: =CONCATENATE("Переведен",N11,M35) -> Переведена на 2 курс приказ № 2-561 от 01.09.2016 | I35: 1 | J35: =INDEX(Предметы!$B$6:$JR$42,$I1,49) -> 2-561 | K35: =INDEX(Предметы!$B$6:$JR$42,$I1,50) -> 42614 | L35: =TEXT(K35,"ДД.ММ.ГГГГ") -> 01.09.2016 | M35: =IF(J35=0,"",CONCATENATE(" на 2 курс приказ № ",J35," от ",L35,"")) -> на 2 курс приказ № 2-561 от 01.09.2016
A37: =A35+I35 -> 10 | B37: =CONCATENATE("Переведен",N11,M37) -> Переведена на 3 курс приказ № 2-703 от 01.09.2017 | I37: 1 | J37: =INDEX(Предметы!$B$6:$JR$42,$I1,51) -> 2-703 | K37: =INDEX(Предметы!$B$6:$JR$42,$I1,52) -> 42979 | L37: =TEXT(K37,"ДД.ММ.ГГГГ") -> 01.09.2017 | M37: =IF(J37=0,"",CONCATENATE(" на 3 курс приказ № ",J37," от ",L37,"")) -> на 3 курс приказ № 2-703 от 01.09.2017
A39: =A37+I37 -> 11 | B39: =CONCATENATE("Переведен",N11,M39) -> Переведена | I39: 1 | J39: =INDEX(Предметы!$B$6:$JR$42,$I1,53) -> 0 | K39: =INDEX(Предметы!$B$6:$JR$42,$I1,54) -> 0 | L39: =TEXT(K39,"ДД.ММ.ГГГГ") -> 00.01.1900 | M39: =IF(J39=0,"",CONCATENATE(" на 4 курс приказ № ",J39," от ",L39,"")) -> 
A41: =A39+I39 -> 12 | B41: =CONCATENATE("Переведен",N11,M41) -> Переведена | I41: 1 | J41: =INDEX(Предметы!$B$6:$JR$42,$I1,55) -> 0 | K41: =INDEX(Предметы!$B$6:$JR$42,$I1,56) -> 0 | L41: =TEXT(K41,"ДД.ММ.ГГГГ") -> 00.01.1900 | M41: =IF(J41=0,"",CONCATENATE(" на 5 курс приказ № ",J41," от ",L41,"")) -> 
I42: 1
A43: =A41+I41 -> 13 | B43: =CONCATENATE("Сдано за весь срок обучения ",N43," предметов, средний балл ",O43) -> Сдано за весь срок обучения 34 предметов, средний балл 2,9 | I43: 1 | J43: =INDEX(Предметы!$B$6:$JR$42,$I1,271) -> 3 | K43: =INDEX(Предметы!$B$6:$JR$42,$I1,272) -> 19 | L43: =INDEX(Предметы!$B$6:$JR$42,$I1,273) -> 12 | M43: =INDEX(Предметы!$B$6:$JR$42,$I1,274) -> 10 | N43: =INDEX(Предметы!$B$6:$JR$42,$I1,275) -> 34 | O43: =INDEX(Предметы!$B$6:$JR$42,$I1,269) -> 2.9
B44: =CONCATENATE(" из них: отлично - ",L44,"; хорошо - ",K44,"; удовлетворительно - ",J44) -> из них: отлично - 12; хорошо - 19; удовлетворительно - 3 | I44: 1 | J44: =IF(J43=0,"нет",J43) -> 3 | K44: =IF(K43=0,"нет",K43) -> 19 | L44: =IF(L43=0,"нет",L43) -> 12 | M44: =IF(M43=0,"нет",M43) -> 10
A45: =A43+I43 -> 14 | B45: =CONCATENATE("Допущен",N11," к защите выпускной квалификационной работы ",M45) -> Допущена к защите выпускной квалификационной работы | I45: 1 | J45: =INDEX(Предметы!$B$6:$JR$42,$I1,61) -> 0 | K45: =INDEX(Предметы!$B$6:$JR$42,$I1,62) -> 0 | L45: =TEXT(K45,"ДД.ММ.ГГГГ") -> 00.01.1900 | M45: =IF(J45=0,"",CONCATENATE(" приказ № ",J45," от ",L45)) -> 
I46: 1
A47: =A45+I45 -> 15 | B47: Итоговый экзамен: | I47: 1
A48: № | B48: Название дисциплины | F48: Дата сдачи экзамена | G48: Экзаменационная оценка | I48: 1
A49: =IF(B49=0,"",1) -> 1 | B49: =IF(J49=0,"",J49) ->  | F49: =IF(K49=0,"",TEXT(K49,"ДД.ММ.ГГГГ")) ->  | G49: =IF(L49=0,"",M49) ->  | I49: =IF(J49=0,0,1) -> 0 | J49: =INDEX(Предметы!$B$6:$JR$42,$I1,63) -> 0 | K49: =INDEX(Предметы!$B$6:$JR$42,$I1,64) -> 0 | L49: =INDEX(Предметы!$B$6:$JR$42,$I1,65) -> 0 | M49: =CHOOSE(L49,$N$1,$N$2,$N$3,$N$4,$N$5,$N$6) -> 
A50: =IF(B50=0,"",2) -> 2 | B50: =IF(J50=0,"",J50) ->  | F50: =IF(K50=0,"",TEXT(K50,"ДД.ММ.ГГГГ")) ->  | I50: =IF(J50=0,0,1) -> 0 | J50: =INDEX(Предметы!$B$6:$JR$42,$I1,66) -> 0 | K50: =INDEX(Предметы!$B$6:$JR$42,$I1,67) -> 0 | L50: =INDEX(Предметы!$B$6:$JR$42,$I1,68) -> 0 | M50: =CHOOSE(L50,$N$1,$N$2,$N$3,$N$4,$N$5,$N$6) -> 
I51: 1
A52: =A47+I47 -> 16 | B52: =CONCATENATE("Дипломный проект (работу) выполнил",N11," на тему: """,IF(J52=0,"",J52),"""") -> Дипломный проект (работу) выполнила на тему: "" | I52: 1 | J52: =INDEX(Предметы!$B$6:$JR$42,$I1,69) -> 0
B53: =CONCATENATE("и защитил",N11," ",IF(K54=0,"____________",L54)," с оценкой ",IF(J53=0,"__________",K53)) -> и защитила ____________ с оценкой __________ | I53: 1 | J53: =INDEX(Предметы!$B$6:$JR$42,$I1,70) -> 0 | K53: =CHOOSE(J53,$N$1,$N$2,$N$3,$N$4,$N$5,$N$6) -> 
A54: =A52+I52 -> 17 | B54: =CONCATENATE("Постановлением государственной аттестационной комиссии (протокол № ",IF(J54=0,"____",J54)," от ",IF(J54=0,"____________",L54)," )") -> Постановлением государственной аттестационной комиссии (протокол № ____ от ____________ ) | I54: 1 | J54: =INDEX(Предметы!$B$6:$JR$42,$I1,71) -> 0 | K54: =INDEX(Предметы!$B$6:$JR$42,$I1,72) -> 0 | L54: =TEXT(K54,"ДД.ММ.ГГГГ") -> 00.01.1900 | M54: =INDEX(Предметы!$B$6:$JR$42,$I1,30) -> БАКАЛАВР
B55: =CONCATENATE("присвоена квалификация ",IF(J54=0,"__________",M54)) -> присвоена квалификация __________ | I55: 1
B56: =CONCATENATE("Диплом с отличием, без отличия, за № ",M56," выдан ",L56) -> Диплом с отличием, без отличия, за № 0 выдан 00.01.1900 | I56: =IF(K56=0,0,1) -> 0 | K56: =INDEX(Предметы!$B$6:$JR$42,$I1,77) -> 0 | L56: =TEXT(K56,"ДД.ММ.ГГГГ") -> 00.01.1900 | M56: =INDEX(Предметы!$B$6:$JR$42,$I1,76) -> 0
B57: =CONCATENATE(J2," факультета ______________________",J57) -> И.о. декана факультета ______________________Н.А. Середа | I57: 1 | J57: =IF(J3="Экономический",деканаты!D2,IF(J3="Архитектурно-строительный",деканаты!D3,IF(J3="Агробизнеса",деканаты!D4,IF(J3="Ветеринарной медицины и зоотехнии",деканаты!D5,IF(J3="Инженерно-технологический",деканаты!D6,IF(J3="Электроэнергетический",деканаты!D7,0)))))) -> Н.А. Середа | K57: 3 | L57: 3 | M57: 3 | N57: 3 | O57: 3 | P57: 3 | Q57: 3 | R57: 3 | S57: 3 | T57: 3 | U57: 3 | V57: 3
A58: =A54+I53 -> 18 | B58: Выполнение учебного плана | I58: 1 | K58: 1 | L58: 2 | M58: 3 | N58: 4 | O58: 5 | P58: 6 | Q58: 7 | R58: 8 | S58: 9 | T58: 10 | U58: 11 | V58: 12
A59: Семестры | B59: Название предмета | D59: Число часов по плану/ зачетных единиц | E59: Экзамена- ционная оценка | F59: Отметка о зачете | G59: Дата ведомости | I59: 1 | J59: =I1 -> 30 | K59: =COUNTIF(Предметы!$CC$2:$JG$2,1) -> 0 | L59: =COUNTIF(Предметы!$CC$2:$JG$2,2) -> 10 | M59: =COUNTIF(Предметы!$CC$2:$JG$2,3) -> 6 | N59: =COUNTIF(Предметы!$CC$2:$JG$2,4) -> 8 | O59: =COUNTIF(Предметы!$CC$2:$JG$2,5) -> 8 | P59: =COUNTIF(Предметы!$CC$2:$JG$2,6) -> 11 | Q59: =COUNTIF(Предметы!$CC$2:$JG$2,7) -> 9 | R59: =COUNTIF(Предметы!$CC$2:$JG$2,8) -> 11 | S59: =COUNTIF(Предметы!$CC$2:$JG$2,9) -> 0 | T59: =COUNTIF(Предметы!$CC$2:$JG$2,10) -> 0 | U59: =COUNTIF(Предметы!$CC$2:$JG$2,11) -> 0 | V59: =COUNTIF(Предметы!$CC$2:$JG$2,12) -> 0
A60: =K60 -> 2 | B60: =Предметы!CC5 -> Делопроизводство и документооборот | D60: =CONCATENATE(Предметы!CC3," / ",Предметы!CC3/36) -> 216 / 6 | E60: =IF(AND(L60>2, L60<6),P60,"------") -> Хорошо | F60: =IF(M60=0,"------",IF(L60=6,P60,"------")) -> ------ | G60: =CONCATENATE(IF(M60=0,"------",N60)," ",IF(O60=0,"",CONCATENATE("№ ",O60))) -> 07.06.2018 № 78110135 | I60: =IF(M60=0,0,1) -> 1 | J60: 5 | K60: =Предметы!CC2 -> 2 | L60: =INDEX(Предметы!$B$6:$JR$42,$I1,80) -> 4 | M60: =INDEX(Предметы!$B$6:$JR$42,$I1,81) -> 43258 | N60: =TEXT(M60,"ДД.ММ.ГГГГ") -> 07.06.2018 | O60: =INDEX(Предметы!$B$6:$JR$42,$I1,82) -> 78110135 | P60: =CHOOSE(L60,$O$1,$O$2,$O$3,$O$4,$O$5,$O$6) -> Хорошо
A61: =K61 -> 2 | B61: =Предметы!CF5 -> Введение в профессию и основы научных исследований | D61: =CONCATENATE(Предметы!CF3," / ",Предметы!CF3/36) -> 108 / 3 | E61: =IF(AND(L61>2, L61<6),P61,"------") -> ------ | F61: =IF(M61=0,"------",IF(L61=6,P61,"------")) -> Зачет | G61: =CONCATENATE(IF(M61=0,"------",N61)," ",IF(O61=0,"",CONCATENATE("№ ",O61))) -> 07.06.2018 № 78110110 | I61: =IF(M61=0,0,1) -> 1 | J61: =J60+1 -> 6 | K61: =Предметы!CF2 -> 2 | L61: =INDEX(Предметы!$B$6:$JR$42,$I1,83) -> 6 | M61: =INDEX(Предметы!$B$6:$JR$42,$I1,84) -> 43258 | N61: 07.06.2018 | O61: =INDEX(Предметы!$B$6:$JR$42,$I1,85) -> 78110110 | P61: =CHOOSE(L61,$O$1,$O$2,$O$3,$O$4,$O$5,$O$6) -> Зачет
A62: 2 | B62: =Предметы!CI5 -> История | D62: =CONCATENATE(Предметы!CI3," / ",Предметы!CI3/36) -> 108 / 3 | E62: Отлично | F62: ------ | G62: 11.06.2016 | I62: 1 | J62: =J61+1 -> 7 | K62: =Предметы!CI2 -> 2 | L62: =INDEX(Предметы!$B$6:$JR$42,$I1,86) -> 5 | M62: =INDEX(Предметы!$B$6:$JR$42,$I1,87) -> 11.06.2016 | N62: 11.06.2016 | O62: =INDEX(Предметы!$B$6:$JR$42,$I1,88) -> 0 | P62: Отлично
A63: 2 | B63: =Предметы!CL5 -> Психология | D63: =CONCATENATE(Предметы!CL3," / ",Предметы!CL3/36) -> 72 / 2 | E63: ------ | F63: Зачет | G63: 11.06.2016 | I63: 1 | J63: 8 | K63: =Предметы!CL2 -> 2 | L63: =INDEX(Предметы!$B$6:$JR$42,$I1,89) -> 6 | M63: =INDEX(Предметы!$B$6:$JR$42,$I1,90) -> 11.06.2016 | N63: 11.06.2016 | O63: =INDEX(Предметы!$B$6:$JR$42,$I1,91) -> 0 | P63: Зачет
A64: 2 | B64: =Предметы!CO5 -> Иностранный язык (З) | D64: =CONCATENATE(Предметы!CO3," / ",Предметы!CO3/36) -> 72 / 2 | E64: ------ | F64: Зачет | G64: 11.06.2016 | I64: 1 | J64: 9 | K64: =Предметы!CO2 -> 2 | L64: =INDEX(Предметы!$B$6:$JR$42,$I1,92) -> 6 | M64: =INDEX(Предметы!$B$6:$JR$42,$I1,93) -> 11.06.2016 | N64: 11.06.2016 | O64: =INDEX(Предметы!$B$6:$JR$42,$I1,94) -> 0 | P64: Зачет
A65: 2 | B65: =Предметы!CR5 -> Математический анализ | D65: =CONCATENATE(Предметы!CR3," / ",Предметы!CR3/36) -> 216 / 6 | E65: Хорошо | F65: ------ | G65: 11.06.2016 | I65: 1 | J65: 10 | K65: =Предметы!CR2 -> 2 | L65: =INDEX(Предметы!$B$6:$JR$42,$I1,95) -> 4 | M65: =INDEX(Предметы!$B$6:$JR$42,$I1,96) -> 11.06.2016 | N65: 11.06.2016 | O65: =INDEX(Предметы!$B$6:$JR$42,$I1,97) -> 0 | P65: Хорошо
A66: 2 | B66: =Предметы!CU5 -> Линейная алгебра | D66: =CONCATENATE(Предметы!CU3," / ",Предметы!CU3/36) -> 252 / 7 | E66: Удовлет. | F66: ------ | G66: 11.06.2016 | I66: 1 | J66: 11 | K66: =Предметы!CU2 -> 2 | L66: =INDEX(Предметы!$B$6:$JR$42,$I1,98) -> 3 | M66: =INDEX(Предметы!$B$6:$JR$42,$I1,99) -> 11.06.2016 | N66: 11.06.2016 | O66: =INDEX(Предметы!$B$6:$JR$42,$I1,100) -> 0 | P66: Удовлет.
A67: 2 | B67: =Предметы!CX5 -> Информатика и информационное обеспечение бухгалтерского учета | D67: =CONCATENATE(Предметы!CX3," / ",Предметы!CX3/36) -> 360 / 10 | E67: Отлично | F67: ------ | G67: 11.06.2016 | I67: 1 | J67: 12 | K67: =Предметы!CX2 -> 2 | L67: =INDEX(Предметы!$B$6:$JR$42,$I1,101) -> 5 | M67: =INDEX(Предметы!$B$6:$JR$42,$I1,102) -> 11.06.2016 | N67: 11.06.2016 | O67: =INDEX(Предметы!$B$6:$JR$42,$I1,103) -> 0 | P67: Отлично
A68: 2 | B68: =Предметы!DA5 -> Микроэкономика | D68: =CONCATENATE(Предметы!DA3," / ",Предметы!DA3/36) -> 216 / 6 | E68: Удовлет. | F68: ------ | G68: 11.06.2016 | I68: 1 | J68: 13 | K68: =Предметы!DA2 -> 2 | L68: =INDEX(Предметы!$B$6:$JR$42,$I1,104) -> 3 | M68: =INDEX(Предметы!$B$6:$JR$42,$I1,105) -> 11.06.2016 | N68: 11.06.2016 | O68: =INDEX(Предметы!$B$6:$JR$42,$I1,106) -> 0 | P68: Удовлет.
A69: 2 | B69: =Предметы!DD5 -> Общая физическая подготовка | D69: =CONCATENATE(Предметы!DD3," / ",Предметы!DD3/36) -> / 0 | E69: ------ | F69: Зачет | G69: 11.06.2016 | I69: 1 | J69: 14 | K69: =Предметы!DD2 -> 2 | L69: =INDEX(Предметы!$B$6:$JR$42,$I1,107) -> 6 | M69: =INDEX(Предметы!$B$6:$JR$42,$I1,108) -> 11.06.2016 | N69: 11.06.2016 | O69: =INDEX(Предметы!$B$6:$JR$42,$I1,109) -> 0 | P69: Зачет
A70: 3 | B70: =Предметы!DG5 -> Иностранный язык | D70: =CONCATENATE(Предметы!DG3," / ",Предметы!DG3/36) -> 144 / 4 | E70: Хорошо | F70: ------ | G70: 24.12.2016 | I70: 1 | J70: 15 | K70: =Предметы!DG2 -> 3 | L70: =INDEX(Предметы!$B$6:$JR$42,$I1,110) -> 4 | M70: =INDEX(Предметы!$B$6:$JR$42,$I1,111) -> 24.12.2016 | N70: 24.12.2016 | O70: =INDEX(Предметы!$B$6:$JR$42,$I1,112) -> 0 | P70: Хорошо
A71: 3 | B71: =Предметы!DJ5 -> Социология | D71: =CONCATENATE(Предметы!DJ3," / ",Предметы!DJ3/36) -> 72 / 2 | E71: ------ | F71: Зачет | G71: 24.12.2016 | I71: 1 | J71: 16 | K71: =Предметы!DJ2 -> 3 | L71: =INDEX(Предметы!$B$6:$JR$42,$I1,113) -> 6 | M71: =INDEX(Предметы!$B$6:$JR$42,$I1,114) -> 24.12.2016 | N71: 24.12.2016 | O71: =INDEX(Предметы!$B$6:$JR$42,$I1,115) -> 0 | P71: Зачет
A72: 3 | B72: =Предметы!DM5 -> Политология | D72: =CONCATENATE(Предметы!DM3," / ",Предметы!DM3/36) -> 180 / 5 | E72: Отлично | F72: ------ | G72: 24.12.2016 | I72: 1 | J72: 17 | K72: =Предметы!DM2 -> 3 | L72: =INDEX(Предметы!$B$6:$JR$42,$I1,116) -> 5 | M72: =INDEX(Предметы!$B$6:$JR$42,$I1,117) -> 24.12.2016 | N72: 24.12.2016 | O72: =INDEX(Предметы!$B$6:$JR$42,$I1,118) -> 0 | P72: Отлично
A73: 3 | B73: =Предметы!DP5 -> Теория вероятностей и математическая статистика | D73: =CONCATENATE(Предметы!DP3," / ",Предметы!DP3/36) -> 144 / 4 | E73: Хорошо | F73: ------ | G73: 24.12.2016 | I73: 1 | J73: 18 | K73: =Предметы!DP2 -> 3 | L73: =INDEX(Предметы!$B$6:$JR$42,$I1,119) -> 4 | M73: =INDEX(Предметы!$B$6:$JR$42,$I1,120) -> 24.12.2016 | N73: 24.12.2016 | O73: =INDEX(Предметы!$B$6:$JR$42,$I1,121) -> 0 | P73: Хорошо
A74: 3 | B74: =Предметы!DS5 -> Макроэкономика (З) | D74: =CONCATENATE(Предметы!DS3," / ",Предметы!DS3/36) -> 76 / 2,11111111111111 | E74: ------ | F74: Зачет | G74: 24.12.2016 | I74: 1 | J74: 19 | K74: =Предметы!DS2 -> 3 | L74: =INDEX(Предметы!$B$6:$JR$42,$I1,122) -> 6 | M74: =INDEX(Предметы!$B$6:$JR$42,$I1,123) -> 24.12.2016 | N74: 24.12.2016 | O74: =INDEX(Предметы!$B$6:$JR$42,$I1,124) -> 0 | P74: Зачет
A75: 3 | B75: =Предметы!DV5 -> Эконометрика | D75: =CONCATENATE(Предметы!DV3," / ",Предметы!DV3/36) -> 180 / 5 | E75: Хорошо | F75: ------ | G75: 24.12.2016 | I75: 1 | J75: 20 | K75: =Предметы!DV2 -> 3 | L75: =INDEX(Предметы!$B$6:$JR$42,$I1,125) -> 4 | M75: =INDEX(Предметы!$B$6:$JR$42,$I1,126) -> 24.12.2016 | N75: 24.12.2016 | O75: =INDEX(Предметы!$B$6:$JR$42,$I1,127) -> 0 | P75: Хорошо
A76: 4 | B76: =Предметы!DY5 -> Макроэкономика | D76: =CONCATENATE(Предметы!DY3," / ",Предметы!DY3/36) -> 212 / 5,88888888888889 | E76: Хорошо | F76: ------ | G76: 21.04.2017 | I76: 1 | J76: 21 | K76: =Предметы!DY2 -> 4 | L76: =INDEX(Предметы!$B$6:$JR$42,$I1,128) -> 4 | M76: =INDEX(Предметы!$B$6:$JR$42,$I1,129) -> 21.04.2017 | N76: 21.04.2017 | O76: =INDEX(Предметы!$B$6:$JR$42,$I1,130) -> 0 | P76: Хорошо
A77: 4 | B77: =Предметы!EB5 -> Философия | D77: =CONCATENATE(Предметы!EB3," / ",Предметы!EB3/36) -> 108 / 3 | E77: ------ | F77: Зачет | G77: 21.04.2017 | I77: 1 | J77: 22 | K77: =Предметы!EB2 -> 4 | L77: =INDEX(Предметы!$B$6:$JR$42,$I1,131) -> 6 | M77: =INDEX(Предметы!$B$6:$JR$42,$I1,132) -> 21.04.2017 | N77: 21.04.2017 | O77: =INDEX(Предметы!$B$6:$JR$42,$I1,133) -> 0 | P77: Зачет
A78: 4 | B78: =Предметы!EE5 -> Инструментальные средства программирования бухгалтерских операций | D78: =CONCATENATE(Предметы!EE3," / ",Предметы!EE3/36) -> 216 / 6 | E78: Хорошо | F78: ------ | G78: 21.04.2017 | I78: 1 | J78: 23 | K78: =Предметы!EE2 -> 4 | L78: =INDEX(Предметы!$B$6:$JR$42,$I1,134) -> 4 | M78: =INDEX(Предметы!$B$6:$JR$42,$I1,135) -> 21.04.2017 | N78: 21.04.2017 | O78: =INDEX(Предметы!$B$6:$JR$42,$I1,136) -> 0 | P78: Хорошо
A79: 4 | B79: =Предметы!EH5 -> Статистика | D79: =CONCATENATE(Предметы!EH3," / ",Предметы!EH3/36) -> 216 / 6 | E79: Хорошо | F79: ------ | G79: 21.04.2017 | I79: 1 | J79: 24 | K79: =Предметы!EH2 -> 4 | L79: =INDEX(Предметы!$B$6:$JR$42,$I1,137) -> 4 | M79: =INDEX(Предметы!$B$6:$JR$42,$I1,138) -> 21.04.2017 | N79: 21.04.2017 | O79: =INDEX(Предметы!$B$6:$JR$42,$I1,139) -> 0 | P79: Хорошо
A80: 4 | B80: =Предметы!EK5 -> Менеджмент | D80: =CONCATENATE(Предметы!EK3," / ",Предметы!EK3/36) -> 144 / 4 | E80: Отлично | F80: ------ | G80: 21.04.2017 | I80: 1 | J80: 25 | K80: =Предметы!EK2 -> 4 | L80: =INDEX(Предметы!$B$6:$JR$42,$I1,140) -> 5 | M80: =INDEX(Предметы!$B$6:$JR$42,$I1,141) -> 21.04.2017 | N80: 21.04.2017 | O80: =INDEX(Предметы!$B$6:$JR$42,$I1,142) -> 0 | P80: Отлично
A81: 4 | B81: =Предметы!EN5 -> Физическая культура и спорт | D81: =CONCATENATE(Предметы!EN3," / ",Предметы!EN3/36) -> 72 / 2 | E81: ------ | F81: Зачет | G81: 21.04.2017 | I81: 1 | J81: 26 | K81: =Предметы!EQ2 -> 4 | L81: =INDEX(Предметы!$B$6:$JR$42,$I1,143) -> 6 | M81: =INDEX(Предметы!$B$6:$JR$42,$I1,144) -> 21.04.2017 | N81: 21.04.2017 | O81: =INDEX(Предметы!$B$6:$JR$42,$I1,145) -> 0 | P81: Зачет
A82: 4 | B82: =Предметы!EQ5 -> Деловые коммуникации | D82: =CONCATENATE(Предметы!EQ3," / ",Предметы!EQ3/36) -> 72 / 2 | E82: ------ | F82: Зачет | G82: 21.04.2017 | I82: 1 | J82: 27 | K82: =Предметы!ET2 -> 4 | L82: =INDEX(Предметы!$B$6:$JR$42,$I1,146) -> 6 | M82: =INDEX(Предметы!$B$6:$JR$42,$I1,147) -> 21.04.2017 | N82: 21.04.2017 | O82: =INDEX(Предметы!$B$6:$JR$42,$I1,148) -> 0 | P82: Зачет
A83: 5 | B83: =Предметы!EW5 -> Право | D83: =CONCATENATE(Предметы!EW3," / ",Предметы!EW3/36) -> 144 / 4 | E83: Хорошо | F83: ------ | G83: 30.11.2017 | I83: 1 | J83: 28 | K83: =Предметы!EW2 -> 5 | L83: =INDEX(Предметы!$B$6:$JR$42,$I1,152) -> 4 | M83: =INDEX(Предметы!$B$6:$JR$42,$I1,153) -> 30.11.2017 | N83: 30.11.2017 | O83: =INDEX(Предметы!$B$6:$JR$42,$I1,154) -> 0 | P83: Хорошо
A84: 5 | B84: =Предметы!EZ5 -> Регионалистика | D84: =CONCATENATE(Предметы!EZ3," / ",Предметы!EZ3/36) -> 144 / 4 | E84: Хорошо | F84: ------ | G84: 30.11.2017 | I84: 1 | J84: 29 | K84: =Предметы!EZ2 -> 5 | L84: =INDEX(Предметы!$B$6:$JR$42,$I1,155) -> 4 | M84: =INDEX(Предметы!$B$6:$JR$42,$I1,156) -> 30.11.2017 | N84: 30.11.2017 | O84: =INDEX(Предметы!$B$6:$JR$42,$I1,157) -> 0 | P84: Хорошо
A85: 5 | B85: =Предметы!FC5 -> Методы оптимальных решений | D85: =CONCATENATE(Предметы!FC3," / ",Предметы!FC3/36) -> 144 / 4 | E85: Хорошо | F85: ------ | G85: 30.11.2017 | I85: 1 | J85: 30 | K85: =Предметы!FC2 -> 5 | L85: =INDEX(Предметы!$B$6:$JR$42,$I1,158) -> 4 | M85: =INDEX(Предметы!$B$6:$JR$42,$I1,159) -> 30.11.2017 | N85: 30.11.2017 | O85: =INDEX(Предметы!$B$6:$JR$42,$I1,160) -> 0 | P85: Хорошо
A86: 5 | B86: =Предметы!FF5 -> Информационные технологии и базы данных в бухгалтерском учете | D86: =CONCATENATE(Предметы!FF3," / ",Предметы!FF3/36) -> 144 / 4 | E86: Хорошо | F86: ------ | G86: 30.11.2017 | I86: 1 | J86: 31 | K86: =Предметы!FF2 -> 5 | L86: =INDEX(Предметы!$B$6:$JR$42,$I1,161) -> 4 | M86: =INDEX(Предметы!$B$6:$JR$42,$I1,162) -> 30.11.2017 | N86: 30.11.2017 | O86: =INDEX(Предметы!$B$6:$JR$42,$I1,163) -> 0 | P86: Хорошо
A87: 5 | B87: =Предметы!FI5 -> Финансы | D87: =CONCATENATE(Предметы!FI3," / ",Предметы!FI3/36) -> 144 / 4 | E87: Хорошо | F87: ------ | G87: 30.11.2017 | I87: 1 | J87: 32 | K87: =Предметы!FI2 -> 5 | L87: =INDEX(Предметы!$B$6:$JR$42,$I1,164) -> 4 | M87: =INDEX(Предметы!$B$6:$JR$42,$I1,165) -> 30.11.2017 | N87: 30.11.2017 | O87: =INDEX(Предметы!$B$6:$JR$42,$I1,166) -> 0 | P87: Хорошо
A88: 5 | B88: =Предметы!FL5 -> Мировая экономика и международные экономические отношения | D88: =CONCATENATE(Предметы!FL3," / ",Предметы!FL3/36) -> 144 / 4 | E88: Отлично | F88: ------ | G88: 30.11.2017 | I88: 1 | J88: 33 | K88: =Предметы!FL2 -> 5 | L88: =INDEX(Предметы!$B$6:$JR$42,$I1,167) -> 5 | M88: =INDEX(Предметы!$B$6:$JR$42,$I1,168) -> 30.11.2017 | N88: 30.11.2017 | O88: =INDEX(Предметы!$B$6:$JR$42,$I1,169) -> 0 | P88: Отлично
A89: 5 | B89: =Предметы!FO5 -> Моделирование социально-экономических систем | D89: =CONCATENATE(Предметы!FO3," / ",Предметы!FO3/36) -> 288 / 8 | E89: Хорошо | F89: ------ | G89: 30.11.2017 | I89: 1 | J89: 34 | K89: =Предметы!FR2 -> 5 | L89: =INDEX(Предметы!$B$6:$JR$42,$I1,170) -> 4 | M89: =INDEX(Предметы!$B$6:$JR$42,$I1,171) -> 30.11.2017 | N89: 30.11.2017 | O89: =INDEX(Предметы!$B$6:$JR$42,$I1,172) -> 0 | P89: Хорошо
A90: 6 | B90: =Предметы!FU5 -> Методы принятия управленческих решений в сфере бухгалтерского учета | D90: =CONCATENATE(Предметы!FU3," / ",Предметы!FU3/36) -> 72 / 2 | E90: ------ | F90: Зачет | G90: 07.06.2018 № 7819542 | I90: 1 | J90: 35 | K90: =Предметы!FU2 -> 6 | L90: =INDEX(Предметы!$B$6:$JR$42,$I1,176) -> 6 | M90: =INDEX(Предметы!$B$6:$JR$42,$I1,177) -> 43258 | N90: 07.06.2018 | O90: =INDEX(Предметы!$B$6:$JR$42,$I1,178) -> 7819542 | P90: Зачет
A91: 6 | B91: =Предметы!FX5 -> Безопасность жизнедеятельности | D91: =CONCATENATE(Предметы!FX3," / ",Предметы!FX3/36) -> 144 / 4 | E91: Хорошо | F91: ------ | G91: 07.06.2018 № 78110074 | I91: 1 | J91: 36 | K91: =Предметы!GD2 -> 6 | L91: =INDEX(Предметы!$B$6:$JR$42,$I1,179) -> 4 | M91: =INDEX(Предметы!$B$6:$JR$42,$I1,180) -> 43258 | N91: 07.06.2018 | O91: =INDEX(Предметы!$B$6:$JR$42,$I1,181) -> 78110074 | P91: Хорошо
A92: 6 | B92: =Предметы!GA5 -> Бухгалтерский учет и анализ | D92: =CONCATENATE(Предметы!GA3," / ",Предметы!GA3/36) -> 252 / 7 | E92: Хорошо | F92: ------ | G92: 07.06.2018 № 7819514 | I92: 1 | J92: 37 | K92: =Предметы!GJ2 -> 6 | L92: =INDEX(Предметы!$B$6:$JR$42,$I1,182) -> 4 | M92: =INDEX(Предметы!$B$6:$JR$42,$I1,183) -> 43258 | N92: 07.06.2018 | O92: =INDEX(Предметы!$B$6:$JR$42,$I1,184) -> 7819514 | P92: Хорошо
A93: 6 | B93: =Предметы!GG5 -> Деньги, кредит, банки | D93: =CONCATENATE(Предметы!GG3," / ",Предметы!GG3/36) -> 144 / 4 | E93: Хорошо | F93: ------ | G93: 07.06.2018 № 7819557 | I93: 1 | J93: 38 | K93: =Предметы!GM2 -> 6 | L93: =INDEX(Предметы!$B$6:$JR$42,$I1,188) -> 4 | M93: =INDEX(Предметы!$B$6:$JR$42,$I1,189) -> 43258 | N93: 07.06.2018 | O93: =INDEX(Предметы!$B$6:$JR$42,$I1,190) -> 7819557 | P93: Хорошо
A94: 6 | B94: =Предметы!GJ5 -> Экономика организаций (предприятий) | D94: =CONCATENATE(Предметы!GJ3," / ",Предметы!GJ3/36) -> 180 / 5 | E94: Отлично | F94: ------ | G94: 07.06.2018 № 7819711 | I94: 1 | J94: 39 | K94: =Предметы!GP2 -> 6 | L94: =INDEX(Предметы!$B$6:$JR$42,$I1,191) -> 5 | M94: =INDEX(Предметы!$B$6:$JR$42,$I1,192) -> 43258 | N94: 07.06.2018 | O94: =INDEX(Предметы!$B$6:$JR$42,$I1,193) -> 7819711 | P94: Отлично
A95: 6 | B95: =Предметы!GP5 -> Планирование на предприятии | D95: =CONCATENATE(Предметы!GP3," / ",Предметы!GP3/36) -> 144 / 4 | E95: Отлично | F95: ------ | G95: 07.06.2018 № 7819720 | I95: 1 | J95: 40 | K95: =Предметы!GS2 -> 6 | L95: =INDEX(Предметы!$B$6:$JR$42,$I1,197) -> 5 | M95: =INDEX(Предметы!$B$6:$JR$42,$I1,198) -> 43258 | N95: 07.06.2018 | O95: =INDEX(Предметы!$B$6:$JR$42,$I1,199) -> 7819720 | P95: Отлично
A96: 6 | B96: =Предметы!GS5 -> Аудит | D96: =CONCATENATE(Предметы!GS3," / ",Предметы!GS3/36) -> 144 / 4 | E96: Хорошо | F96: ------ | G96: 07.06.2018 № 7819517 | I96: 1 | J96: 41 | K96: =Предметы!GY2 -> 6 | L96: =INDEX(Предметы!$B$6:$JR$42,$I1,200) -> 4 | M96: =INDEX(Предметы!$B$6:$JR$42,$I1,201) -> 43258 | N96: 07.06.2018 | O96: =INDEX(Предметы!$B$6:$JR$42,$I1,202) -> 7819517 | P96: Хорошо
A97: 7 | B97: =Предметы!HB5 -> Маркетинг | D97: =CONCATENATE(Предметы!HB3," / ",Предметы!HB3/36) -> 108 / 3 | E97: ------ | F97: ------ | I97: 1 | J97: 42 | K97: =Предметы!HB2 -> 7 | L97: =INDEX(Предметы!$B$6:$JR$42,$I1,209) -> 0 | M97: =INDEX(Предметы!$B$6:$JR$42,$I1,210) ->  | O97: =INDEX(Предметы!$B$6:$JR$42,$I1,211) -> 0
A98: 7 | B98: =Предметы!HE5 -> Корпоративные финансы | D98: =CONCATENATE(Предметы!HE3," / ",Предметы!HE3/36) -> 144 / 4 | E98: ------ | F98: ------ | I98: 1 | J98: 43 | K98: =Предметы!HE2 -> 7 | L98: =INDEX(Предметы!$B$6:$JR$42,$I1,212) -> 0 | M98: =INDEX(Предметы!$B$6:$JR$42,$I1,213) ->  | O98: =INDEX(Предметы!$B$6:$JR$42,$I1,214) -> 0
A99: 7 | B99: =Предметы!HH5 -> Бухгалтерский управленческий учет | D99: =CONCATENATE(Предметы!HH3," / ",Предметы!HH3/36) -> 180 / 5 | E99: ------ | F99: ------ | I99: 1 | J99: 44 | K99: =Предметы!HH2 -> 7 | L99: =INDEX(Предметы!$B$6:$JR$42,$I1,215) -> 0 | M99: =INDEX(Предметы!$B$6:$JR$42,$I1,216) ->  | O99: =INDEX(Предметы!$B$6:$JR$42,$I1,217) -> 0
A100: 7 | B100: =Предметы!HK5 -> Комплексный анализ хозяйственной деятельности | D100: =CONCATENATE(Предметы!HK3," / ",Предметы!HK3/36) -> 144 / 4 | E100: ------ | F100: ------ | I100: 1 | J100: 45 | K100: =Предметы!HK2 -> 7 | L100: =INDEX(Предметы!$B$6:$JR$42,$I1,218) -> 0 | M100: =INDEX(Предметы!$B$6:$JR$42,$I1,219) ->  | O100: =INDEX(Предметы!$B$6:$JR$42,$I1,220) -> 0
A101: 7 | B101: =Предметы!HQ5 -> Международные стандарты финансовой отчетности | D101: =CONCATENATE(Предметы!HQ3," / ",Предметы!HQ3/36) -> 108 / 3 | E101: ------ | F101: ------ | I101: 1 | J101: 46 | K101: =Предметы!HT2 -> 7 | L101: =INDEX(Предметы!$B$6:$JR$42,$I1,224) -> 0 | M101: =INDEX(Предметы!$B$6:$JR$42,$I1,225) ->  | O101: =INDEX(Предметы!$B$6:$JR$42,$I1,226) -> 0
A102: 7 | B102: =Предметы!HT5 -> Логистика | D102: =CONCATENATE(Предметы!HT3," / ",Предметы!HT3/36) -> 180 / 5 | E102: ------ | F102: ------ | I102: 1 | J102: 47 | K102: =Предметы!HW2 -> 7 | L102: =INDEX(Предметы!$B$6:$JR$42,$I1,227) -> 0 | M102: =INDEX(Предметы!$B$6:$JR$42,$I1,228) ->  | O102: =INDEX(Предметы!$B$6:$JR$42,$I1,229) -> 0
A103: 7 | B103: =Предметы!HW5 -> Бухгалтерский финансовый учет (З) | D103: =CONCATENATE(Предметы!HW3," / ",Предметы!HW3/36) -> 289 / 8,02777777777778 | E103: ------ | F103: ------ | I103: 1 | J103: 48 | K103: =Предметы!HZ2 -> 7 | L103: =INDEX(Предметы!$B$6:$JR$42,$I1,230) -> 0 | M103: =INDEX(Предметы!$B$6:$JR$42,$I1,231) ->  | O103: =INDEX(Предметы!$B$6:$JR$42,$I1,232) -> 0
A104: 8 | B104: =Предметы!IC5 -> Макроэкономическое планирование и прогнозирование | D104: =CONCATENATE(Предметы!IC3," / ",Предметы!IC3/36) -> 144 / 4 | E104: ------ | F104: ------ | I104: 1 | J104: 49 | K104: =Предметы!IC2 -> 8 | L104: =INDEX(Предметы!$B$6:$JR$42,$I1,236) -> 0 | M104: =INDEX(Предметы!$B$6:$JR$42,$I1,237) ->  | O104: =INDEX(Предметы!$B$6:$JR$42,$I1,238) -> 0
A105: 8 | B105: =Предметы!IF5 -> Налоги и налогообложение | D105: =CONCATENATE(Предметы!IF3," / ",Предметы!IF3/36) -> 108 / 3 | E105: ------ | F105: ------ | I105: 1 | J105: 50 | K105: =Предметы!IF2 -> 8 | L105: =INDEX(Предметы!$B$6:$JR$42,$I1,239) -> 0 | M105: =INDEX(Предметы!$B$6:$JR$42,$I1,240) ->  | O105: =INDEX(Предметы!$B$6:$JR$42,$I1,241) -> 0
A106: 8 | B106: =Предметы!II5 -> Анализ финансовой отчетности | D106: =CONCATENATE(Предметы!II3," / ",Предметы!II3/36) -> 108 / 3 | E106: ------ | F106: ------ | I106: 1 | J106: 51 | K106: =Предметы!IL2 -> 8 | L106: =INDEX(Предметы!$B$6:$JR$42,$I1,242) -> 0 | M106: =INDEX(Предметы!$B$6:$JR$42,$I1,243) ->  | O106: =INDEX(Предметы!$B$6:$JR$42,$I1,244) -> 0
A107: 8 | B107: =Предметы!IL5 -> Бухгалтерский финансовый учет | D107: =CONCATENATE(Предметы!IL3," / ",Предметы!IL3/36) -> 71 / 1,97222222222222 | E107: ------ | F107: ------ | I107: 1 | J107: 52 | K107: =Предметы!IO2 -> 8 | L107: =INDEX(Предметы!$B$6:$JR$42,$I1,245) -> 0 | M107: =INDEX(Предметы!$B$6:$JR$42,$I1,246) ->  | O107: =INDEX(Предметы!$B$6:$JR$42,$I1,247) -> 0
A108: 8 | B108: =Предметы!IR5 -> Лабораторный практикум по бухгалтерскому учету | D108: =CONCATENATE(Предметы!IR3," / ",Предметы!IR3/36) -> 144 / 4 | E108: ------ | F108: ------ | I108: 1 | J108: 53 | K108: =Предметы!IR2 -> 8 | L108: =INDEX(Предметы!$B$6:$JR$42,$I1,251) -> 0 | M108: =INDEX(Предметы!$B$6:$JR$42,$I1,252) ->  | O108: =INDEX(Предметы!$B$6:$JR$42,$I1,253) -> 0
A109: 8 | B109: =Предметы!IU5 -> Бухгалтерский учет на предприятиях малого бизнеса | D109: =CONCATENATE(Предметы!IU3," / ",Предметы!IU3/36) -> 180 / 5 | E109: ------ | F109: ------ | I109: 1 | J109: 54 | K109: =Предметы!IU2 -> 8 | L109: =INDEX(Предметы!$B$6:$JR$42,$I1,254) -> 0 | M109: =INDEX(Предметы!$B$6:$JR$42,$I1,255) ->  | O109: =INDEX(Предметы!$B$6:$JR$42,$I1,256) -> 0
A110: 8 | B110: =Предметы!IX5 -> Практикум 1С:Бухгалтерия | D110: =CONCATENATE(Предметы!IX3," / ",Предметы!IX3/36) -> 72 / 2 | E110: ------ | F110: ------ | I110: 1 | J110: 55 | K110: =Предметы!IX2 -> 8 | L110: =INDEX(Предметы!$B$6:$JR$42,$I1,257) -> 0 | M110: =INDEX(Предметы!$B$6:$JR$42,$I1,258) ->  | O110: =INDEX(Предметы!$B$6:$JR$42,$I1,259) -> 0
A111: 8 | B111: =Предметы!JA5 -> Бухгалтерская (финансовая) отчетность | D111: =CONCATENATE(Предметы!JA3," / ",Предметы!JA3/36) -> 180 / 5 | E111: ------ | F111: ------ | I111: 1 | J111: 56 | K111: =Предметы!JA2 -> 8 | L111: =INDEX(Предметы!$B$6:$JR$42,$I1,260) -> 0 | M111: =INDEX(Предметы!$B$6:$JR$42,$I1,261) ->  | O111: =INDEX(Предметы!$B$6:$JR$42,$I1,262) -> 0
A112: 0 | E112: ------ | F112: ------ | G112: ------ | I112: =IF(M112=0,0,1) -> 0 | J112: 57 | N112: 00.01.1900
A113: 0 | E113: ------ | F113: ------ | G113: ------ | I113: 0 | J113: 58 | N113: 00.01.1900
A114: 0 | E114: ------ | F114: ------ | G114: ------ | I114: 0 | J114: 59 | N114: 00.01.1900
A115: 0 | E115: ------ | F115: ------ | G115: ------ | I115: 0 | J115: 60 | N115: 00.01.1900
A116: 0 | E116: ------ | F116: ------ | G116: ------ | I116: 0 | J116: 61 | L116: =INDIRECT(ADDRESS(J116,$J$59*3+4,,,"Предметы")) -> 0 | N116: 00.01.1900
A117: 0 | E117: ------ | F117: ------ | G117: ------ | I117: 0 | J117: 62 | L117: 0 | N117: 00.01.1900
A118: 0 | E118: ------ | F118: ------ | G118: ------ | I118: 0 | J118: 63 | L118: 0 | N118: 00.01.1900
A119: 0 | E119: ------ | F119: ------ | G119: ------ | I119: 0 | J119: 64 | L119: 0 | N119: 00.01.1900
A120: 0 | E120: ------ | F120: ------ | G120: ------ | I120: 0 | J120: 65 | L120: 0 | N120: 00.01.1900
A121: 0 | E121: ------ | F121: ------ | G121: ------ | I121: 0 | J121: 66 | L121: 0 | N121: 00.01.1900
A122: 0 | E122: ------ | F122: ------ | G122: ------ | I122: 0 | J122: 67 | L122: 0 | N122: 00.01.1900
A123: 0 | E123: ------ | F123: ------ | G123: ------ | I123: 0 | J123: 68 | L123: 0 | N123: 00.01.1900
A124: 0 | E124: ------ | F124: ------ | G124: ------ | I124: 0 | J124: 69 | L124: =INDIRECT(ADDRESS(J124,$J$59*3+4,,,"Предметы")) -> 0 | N124: 00.01.1900
A125: =K125 -> 0 | E125: =IF(AND(L125>2, L125<6),P125,"------") -> ------ | F125: =IF(M125=0,"------",IF(L125=6,P125,"------")) -> ------ | G125: =CONCATENATE(IF(M125=0,"------",N125)," ",IF(O125=0,"",CONCATENATE("№ ",O125))) -> ------ | I125: =IF(M125=0,0,1) -> 0 | J125: 70 | L125: 0 | N125: =TEXT(M125,"ДД.ММ.ГГГГ") -> 00.01.1900 | P125: =CHOOSE(L125,$O$1,$O$2,$O$3,$O$4,$O$5,$O$6) -> 
A126: 0 | E126: ------ | F126: ------ | G126: ------ | I126: 0 | J126: =J125+1 -> 71 | L126: 0 | N126: 00.01.1900
A127: 0 | E127: ------ | F127: ------ | G127: ------ | I127: 0 | J127: 72 | L127: 0 | N127: 00.01.1900
A128: 0 | E128: ------ | F128: ------ | G128: ------ | I128: 0 | J128: 73 | L128: 0 | N128: 00.01.1900
A129: 0 | E129: ------ | F129: ------ | G129: ------ | I129: 0 | J129: 74 | L129: 0 | N129: 00.01.1900
A130: 0 | E130: ------ | F130: ------ | G130: ------ | I130: 0 | J130: 75 | L130: 0 | N130: 00.01.1900
A131: 0 | E131: ------ | F131: ------ | G131: ------ | I131: 0 | J131: 76 | L131: 0 | N131: 00.01.1900
A132: 0 | E132: ------ | F132: ------ | G132: ------ | I132: 0 | J132: 77 | L132: 0 | N132: 00.01.1900
A133: 0 | E133: ------ | F133: ------ | G133: ------ | I133: 0 | J133: 78 | L133: 0 | N133: 00.01.1900
A134: 0 | E134: ------ | F134: ------ | G134: ------ | I134: 0 | J134: 79 | L134: 0 | N134: 00.01.1900
A135: 0 | E135: ------ | F135: ------ | G135: ------ | I135: 0 | J135: 80 | L135: 0 | N135: 00.01.1900
A136: 0 | E136: ------ | F136: ------ | G136: ------ | I136: 0 | J136: 81 | L136: 0 | N136: 00.01.1900
A137: 0 | E137: ------ | F137: ------ | G137: ------ | I137: 0 | J137: 82 | L137: 0 | N137: 00.01.1900
A138: 0 | E138: ------ | F138: ------ | G138: ------ | I138: 0 | J138: 83 | L138: 0 | N138: 00.01.1900
A139: 0 | E139: ------ | F139: ------ | G139: ------ | I139: 0 | J139: =J138+1 -> 84 | L139: 0 | N139: 00.01.1900
A140: 0 | E140: ------ | F140: ------ | G140: ------ | I140: 0 | J140: 85 | L140: 0 | N140: 00.01.1900
A141: 0 | E141: ------ | F141: ------ | G141: ------ | I141: 0 | J141: 86 | L141: 0 | N141: 00.01.1900
A142: 0 | E142: ------ | F142: ------ | G142: ------ | I142: 0 | J142: 87 | L142: 0 | N142: 00.01.1900
A143: 0 | E143: ------ | F143: ------ | G143: ------ | I143: 0 | J143: 88 | L143: 0 | N143: 00.01.1900
A144: 0 | E144: ------ | F144: ------ | G144: ------ | I144: 0 | J144: 89 | L144: 0 | N144: 00.01.1900
A145: 0 | E145: ------ | F145: ------ | G145: ------ | I145: 0 | J145: 90 | L145: 0 | N145: 00.01.1900
A146: 0 | E146: ------ | F146: ------ | G146: ------ | I146: 0 | J146: 91 | L146: 0 | N146: 00.01.1900
A147: 0 | E147: ------ | F147: ------ | G147: ------ | I147: 0 | J147: 92 | L147: 0 | N147: 00.01.1900
A148: 0 | E148: =IF(AND(L148>2, L148<6),P148,"------") -> ------ | F148: =IF(M148=0,"------",IF(L148=6,P148,"------")) -> ------ | G148: ------ | I148: 0 | J148: 93 | L148: 0 | N148: 00.01.1900
A149: 0 | E149: =IF(AND(L149>2, L149<6),P149,"------") -> ------ | F149: =IF(M149=0,"------",IF(L149=6,P149,"------")) -> ------ | G149: ------ | I149: 0 | J149: 94 | L149: 0 | N149: 00.01.1900
A150: 0 | E150: ------ | F150: ------ | G150: ------ | I150: 0 | J150: 95 | L150: 0 | N150: 00.01.1900
A151: 0 | E151: ------ | F151: ------ | G151: ------ | I151: 0 | J151: 96 | L151: 0 | N151: 00.01.1900
A152: 0 | E152: ------ | F152: ------ | G152: ------ | I152: 0 | J152: 97 | L152: 0 | N152: 00.01.1900
A153: 0 | E153: ------ | F153: ------ | G153: ------ | I153: 0 | J153: 98 | L153: 0 | N153: 00.01.1900
A154: 0 | E154: ------ | F154: ------ | G154: ------ | I154: 0 | J154: 99 | L154: 0 | N154: 00.01.1900
A155: 0 | E155: ------ | F155: ------ | G155: ------ | I155: 0 | J155: 100 | L155: 0 | N155: 00.01.1900
A156: 0 | E156: ------ | F156: ------ | G156: ------ | I156: 0 | J156: 101 | L156: 0 | N156: 00.01.1900
A157: 0 | E157: ------ | F157: ------ | G157: ------ | I157: 0 | J157: 102 | L157: 0 | N157: 00.01.1900
A158: 0 | E158: ------ | F158: ------ | G158: ------ | I158: 0 | J158: 103 | L158: 0 | N158: 00.01.1900
A159: 0 | E159: ------ | F159: ------ | G159: ------ | I159: 0 | J159: 104 | L159: 0 | N159: 00.01.1900
I160: 1
A161: =A58+I58 -> 19 | B161: Курсовые работы | I161: 1
A162: Семестры | B162: Название дисциплины | C162: Тема курсовой работы | F162: Оценка | G162: Дата сдачи | I162: 1
A163: =K163 -> 5 | B163: Моделирование социально-экономических систем | C163: =O163 -> Оптимизация структуры кормопроизводства сельскохозяйственного предприятия | F163: =IF(L163=0,"------",P163) -> Удовлет. | G163: =IF(M163=0,"------",N163) -> 30.11.2017 | I163: =IF(M163=0,0,1) -> 1 | J163: 107 | K163: =Предметы!FR2 -> 5 | L163: =INDEX(Предметы!$B$6:$JR$42,$I1,173) -> 3 | M163: =INDEX(Предметы!$B$6:$JR$42,$I1,174) -> 30.11.2017 | N163: =TEXT(M163,"ДД.ММ.ГГГГ") -> 30.11.2017 | O163: =INDEX(Предметы!$B$6:$JR$42,$I1,175) -> Оптимизация структуры кормопроизводства сельскохозяйственного предприятия | P163: =CHOOSE(L163,$O$1,$O$2,$O$3,$O$4,$O$5,$O$6) -> Удовлет.
A164: =K164 -> 6 | B164: Бухгалтерский учет и анализ | C164: =O164 -> Система нормативного регулирования бухгалтерского учета в России | F164: =IF(L164=0,"------",P164) -> Отлично | G164: 07.06.2018 | I164: 1 | J164: =J163+1 -> 108 | K164: =Предметы!GD2 -> 6 | L164: =INDEX(Предметы!$B$6:$JR$42,$I1,185) -> 5 | M164: =INDEX(Предметы!$B$6:$JR$42,$I1,186) -> 43258 | N164: 07.06.2018 | O164: =INDEX(Предметы!$B$6:$JR$42,$I1,187) -> Система нормативного регулирования бухгалтерского учета в России | P164: Отлично
A165: 6 | B165: Экономика организаций (предприятий) | C165: Формирование и использование прибыли организации | F165: Хорошо | G165: 07.06.2018 | I165: 1 | J165: 109 | K165: =Предметы!GM2 -> 6 | L165: =INDEX(Предметы!$B$6:$JR$42,$I1,194) -> 4 | M165: =INDEX(Предметы!$B$6:$JR$42,$I1,195) -> 43258 | N165: 07.06.2018 | O165: =INDEX(Предметы!$B$6:$JR$42,$I1,196) -> Формирование и использование прибыли организации | P165: Хорошо
A166: 6 | B166: Аудит | C166: Правовое регулирование аудиторской деятельности в РФ | F166: Отлично | G166: 07.06.2018 | I166: 1 | J166: 110 | K166: =Предметы!GV2 -> 6 | L166: =INDEX(Предметы!$B$6:$JR$42,$I1,203) -> 5 | M166: =INDEX(Предметы!$B$6:$JR$42,$I1,204) -> 43258 | N166: 07.06.2018 | O166: =INDEX(Предметы!$B$6:$JR$42,$I1,205) -> Правовое регулирование аудиторской деятельности в РФ | P166: Отлично
A167: 7 | B167: Комплексный анализ хозяйственной деятельности | C167: 0 | F167: ------ | G167: ------ | I167: 0 | J167: 111 | K167: =Предметы!HN2 -> 7 | L167: =INDEX(Предметы!$B$6:$JR$42,$I1,221) -> 0 | M167: =INDEX(Предметы!$B$6:$JR$42,$I1,222) -> 0 | N167: 00.01.1900 | O167: =INDEX(Предметы!$B$6:$JR$42,$I1,223) -> 0
A168: 8 | B168: Бухгалтерский финансовый учет | C168: 0 | F168: ------ | G168: ------ | I168: 0 | J168: 112 | K168: =Предметы!IO2 -> 8 | L168: =INDEX(Предметы!$B$6:$JR$42,$I1,248) -> 0 | M168: =INDEX(Предметы!$B$6:$JR$42,$I1,249) -> 0 | N168: 00.01.1900 | O168: =INDEX(Предметы!$B$6:$JR$42,$I1,250) -> 0
A169: 0 | C169: 0 | F169: ------ | G169: ------ | I169: 0 | J169: 113 | N169: 00.01.1900
A170: 0 | C170: 0 | F170: ------ | G170: ------ | I170: 0 | J170: 114 | N170: 00.01.1900
A171: 0 | C171: 0 | F171: ------ | G171: ------ | I171: 0 | J171: 115 | N171: 00.01.1900
A172: 0 | C172: 0 | F172: ------ | G172: ------ | I172: 0 | J172: 116 | N172: 00.01.1900
A173: 0 | C173: 0 | F173: ------ | G173: ------ | I173: 0 | J173: 117 | N173: 00.01.1900
C174: 0 | F174: ------ | G174: ------ | I174: 0 | J174: 118 | N174: 00.01.1900
A175: 13 | C175: 0 | F175: ------ | G175: ------ | I175: 0 | J175: 119 | N175: 00.01.1900
A176: 14 | C176: 0 | F176: ------ | G176: ------ | I176: 0 | J176: 120 | N176: 00.01.1900
A177: 15 | C177: 0 | F177: ------ | G177: ------ | I177: 0 | J177: 121 | N177: 00.01.1900
A178: 16 | C178: 0 | F178: ------ | G178: ------ | I178: 0 | J178: 122 | N178: 00.01.1900
A179: 17 | C179: 0 | F179: ------ | G179: ------ | I179: 0 | J179: 123 | N179: 00.01.1900
A180: 18 | C180: 0 | F180: ------ | G180: ------ | I180: 0 | J180: 124 | N180: 00.01.1900
A181: 19 | C181: 0 | F181: ------ | G181: ------ | I181: 0 | J181: 125 | N181: 00.01.1900
A182: 20 | C182: 0 | F182: ------ | G182: ------ | I182: 0 | J182: 126 | N182: 00.01.1900
I183: 1
A184: =A161+I161 -> 20 | B184: Прохождение практик | I184: 1
A185: Курс | B185: Наименование практики | C185: Место практики | E185: Продолжи- тельность | F185: Оценка | G185: Дата ведомости | I185: 1
A186: =INT(K186/2+0.5) ->  | E186: =IF(Q186=0,"",CONCATENATE(Q186," ",T186)) ->  | F186: =IF(L186=0,"------",P186) -> ------ | G186: =CONCATENATE(IF(M186=0,"------",N186)," ",IF(O186=0,"",CONCATENATE("№ ",O186))) -> ------ | I186: =IF(M186=0,0,1) -> 0 | J186: 129 | L186: =INDIRECT(ADDRESS(J186,$J$59*3+4,,,"Предметы")) -> 0 | M186: =INDIRECT(ADDRESS(J186,$J$59*3+5,,,"Предметы")) -> 0 | N186: =TEXT(M186,"ДД.ММ.ГГГГ") -> 00.01.1900 | O186: =INDIRECT(ADDRESS(J186,$J$59*3+6,,,"Предметы")) -> 0 | P186: =CHOOSE(L186,$O$1,$O$2,$O$3,$O$4,$O$5,$O$6) ->  | R186: 1 | S186: неделя | T186: =CHOOSE(Q186,$S$186,$S$187,$S$188,$S$189,$S$190,$S$191,$S$192,$S$193,$S$194,$S$195) -> 
A187: =INT(K187/2+0.5) -> 2 | B187: Учебная. Практика по получению первичных профессиональных умений и навыков, в том числе первичных умений и навыков научно-исследовательской деятельности | C187: =O187 -> 0 | E187: =IF(Q187=0,"",CONCATENATE(Q187," ",T187)) -> 2 недели | F187: =IF(L187=0,"------",P187) -> Отлично | G187: =IF(M187=0,"------",N187) -> 05.04.2016 | I187: 1 | J187: =J186+1 -> 130 | K187: =Предметы!EN2 -> 4 | L187: =INDEX(Предметы!$B$6:$JR$42,$I1,149) -> 5 | M187: =INDEX(Предметы!$B$6:$JR$42,$I1,150) -> 05.04.2016 | N187: 05.04.2016 | O187: =INDEX(Предметы!$B$6:$JR$42,$I1,151) -> 0 | P187: =CHOOSE(L187,$O$1,$O$2,$O$3,$O$4,$O$5,$O$6) -> Отлично | Q187: 2 | R187: 2 | S187: недели | T187: =CHOOSE(Q187,$S$186,$S$187,$S$188,$S$189,$S$190,$S$191,$S$192,$S$193,$S$194,$S$195) -> недели
A188: 3 | B188: Производственная. Практика по получению профессиональных умений и опыта профессиональной деятельности | C188: =O188 -> 0 | E188: 2 недели | F188: Отлично | G188: =IF(M188=0,"------",N188) -> 05.04.2016 | I188: 1 | J188: =J187+1 -> 131 | K188: =Предметы!GA2 -> 6 | L188: =INDEX(Предметы!$B$6:$JR$42,$I1,206) -> 5 | M188: =INDEX(Предметы!$B$6:$JR$42,$I1,207) -> 05.04.2016 | N188: 05.04.2016 | O188: =INDEX(Предметы!$B$6:$JR$42,$I1,208) -> 0 | P188: Отлично | Q188: 2 | R188: 3 | S188: недели | T188: недели
A189: 4 | B189: Производственная. Технологическая | C189: 0 | E189: 2 недели | F189: Отлично | G189: п/зач 05.04.16 | I189: 1 | J189: 132 | K189: =Предметы!HQ2 -> 7 | L189: =INDEX(Предметы!$B$6:$JR$42,$I1,233) -> 5 | M189: =INDEX(Предметы!$B$6:$JR$42,$I1,234) -> п/зач 05.04.16 | N189: п/зач 05.04.16 | O189: =INDEX(Предметы!$B$6:$JR$42,$I1,235) -> 0 | P189: Отлично | Q189: 2 | R189: 4 | S189: недели | T189: недели
A190: 4 | B190: Научно-исследовательская работа | C190: 0 | E190: 2 недели | F190: ------ | G190: ------ | I190: 0 | J190: 133 | K190: =Предметы!JD2 -> 8 | L190: =INDEX(Предметы!$B$6:$JR$42,$I1,263) -> 0 | M190: =INDEX(Предметы!$B$6:$JR$42,$I1,264) -> 0 | N190: 00.01.1900 | O190: =INDEX(Предметы!$B$6:$JR$42,$I1,265) -> 0 | Q190: 2 | R190: 5 | S190: недель | T190: недели
A191: 4 | B191: Преддипломная | C191: 0 | E191: 2 недели | F191: ------ | I191: 1 | J191: 134 | K191: =Предметы!JG2 -> 8 | L191: =INDEX(Предметы!$B$6:$JR$42,$I1,266) -> 0 | M191: =INDEX(Предметы!$B$6:$JR$42,$I1,267) ->  | O191: =INDEX(Предметы!$B$6:$JR$42,$I1,268) -> 0 | Q191: 2 | R191: 6 | S191: недель | T191: недели
F192: ------ | G192: ------ | I192: 0 | J192: 135 | L192: =INDIRECT(ADDRESS(J192,$J$59*3+4,,,"Предметы")) -> 0 | M192: =INDIRECT(ADDRESS(J192,$J$59*3+5,,,"Предметы")) -> 0 | N192: 00.01.1900 | O192: =INDIRECT(ADDRESS(J192,$J$59*3+6,,,"Предметы")) -> 0 | R192: 7 | S192: недель
F193: =IF(L193=0,"",P193) ->  | G193: =CONCATENATE(IF(M193=0,"",N193)," ",IF(O193=0,"",CONCATENATE("№ ",O193))) ->  | I193: 0 | J193: 136 | L193: 0 | M193: 0 | N193: 00.01.1900 | O193: 0 | R193: 8 | S193: недель
F194: =IF(L194=0,"",P194) ->  | G194: =CONCATENATE(IF(M194=0,"",N194)," ",IF(O194=0,"",CONCATENATE("№ ",O194))) ->  | I194: 0 | J194: 137 | L194: 0 | M194: 0 | N194: 00.01.1900 | O194: 0 | R194: 9 | S194: недель
F195: =IF(L195=0,"",P195) ->  | G195: =CONCATENATE(IF(M195=0,"",N195)," ",IF(O195=0,"",CONCATENATE("№ ",O195))) ->  | I195: 0 | J195: 138 | L195: 0 | M195: 0 | N195: 00.01.1900 | O195: 0 | R195: 10 | S195: недель
I196: 1
B197: И. о. декана факультета ____________________________ Н. А. Середа | I197: 1
I198: 1
B199: Специалист по УМР ________________________ О. В. Сосова | I199: 1

Sheet !справочники
A1: Муж | B1: 07.02.01 Архитектура | C1: =RIGHT(LEFT(D1,5),2) -> 02 | D1: =LEFT(B1,8) -> 07.02.01 | E1: =RIGHT(B1,LEN(B1)-9) -> Архитектура | O1: Муж | P1: Жен
A2: Жен | B2: 23.02.03 Техническое обслуживание и ремонт автомобильного транспорта | C2: 02 | D2: 23.02.03 | E2: =RIGHT(B2,LEN(B2)-9) -> Техническое обслуживание и ремонт автомобильного транспорта | O2: холост | P2: не замужем
B3: 35.02.15 Кинология | C3: 02 | D3: 35.02.15 | E3: Кинология | O3: женат | P3: замужем
B4: 38.02.01 Экономика и бухгалтерский учет | C4: 02 | D4: 38.02.01 | E4: Экономика и бухгалтерский учет
A5: БАКАЛАВР | B5: 43.02.05 Флористика | C5: 02 | D5: 43.02.05 | E5: Флористика
A6: МАГИСТР | B6: 07.03.01 Архитектура | C6: 03 | D6: 07.03.01 | E6: Архитектура
A7: ИНЖЕНЕР | B7: 08.03.01 Строительство | C7: 03 | D7: 08.03.01 | E7: Строительство
A8: ВЕТЕРИНАРНЫЙ ВРАЧ | B8: 13.03.02 Электроэнергетика и электротехника | C8: 03 | D8: 13.03.02 | E8: Электроэнергетика и электротехника
A9: АРХИТЕКТОР | B9: 23.03.03 Эксплуатация транспортно-технологических машин и комплексов | C9: 03 | D9: 23.03.03 | E9: Эксплуатация транспортно-технологических машин и комплексов
A10: КИНОЛОГ | B10: 35.03.04 Агрономия | C10: 03 | D10: 35.03.04 | E10: Агрономия
A11: ТЕХНИК | B11: 35.03.06 Агроинженерия | C11: 03 | D11: 35.03.06 | E11: Агроинженерия
B12: 36.03.02 Зоотехния | C12: 03 | D12: 36.03.02 | E12: Зоотехния
B13: 38.03.01 Экономика | C13: 03 | D13: 38.03.01 | E13: Экономика
B14: 38.03.02 Менеджмент | C14: 03 | D14: 38.03.02 | E14: Менеджмент
B15: 08.04.01 Строительство | C15: 04 | D15: 08.04.01 | E15: Строительство
B16: 35.04.04 Агрономия | C16: 04 | D16: 35.04.04 | E16: Агрономия
B17: 35.04.06 Агроинженерия | C17: 04 | D17: 35.04.06 | E17: Агроинженерия
B18: 36.04.02 Зоотехния | C18: 04 | D18: 36.04.02 | E18: Зоотехния
B19: 38.04.01 Экономика | C19: 04 | D19: 38.04.01 | E19: Экономика
B20: 38.04.02 Менеджмент | C20: 04 | D20: 38.04.02 | E20: Менеджмент
B21: 23.05.01 Наземные и транспортно-технологические средства | C21: 05 | D21: 23.05.01 | E21: Наземные и транспортно-технологические средства
B22: 36.05.01 Ветеринария | C22: 05 | D22: 36.05.01 | E22: Ветеринария
B23: 06.06.01 Паразитология | C23: 06 | D23: 06.06.01 | E23: Паразитология
B24: 08.06.01 Строительные материалы и изделия | C24: 06 | D24: 08.06.01 | E24: Строительные материалы и изделия
B25: 13.06.01 Тепловые двигатели | C25: 06 | D25: 13.06.01 | E25: Тепловые двигатели
B26: 35.06.01 Общее земледелие, растениеводство | C26: 06 | D26: 35.06.01 | E26: Общее земледелие, растениеводство
B27: 35.06.04 Технологии и средства механизации сельского хозяйства | C27: 06 | D27: 35.06.04 | E27: Технологии и средства механизации сельского хозяйства
B28: 36.06.01 Диагностика болезней и терапия животных, патология, онкология и морфология животных | C28: 06 | D28: 36.06.01 | E28: Диагностика болезней и терапия животных, патология, онкология и морфология животных
B29: 38.06.01 Экономика и управление народным хозяйством | C29: 06 | D29: 38.06.01 | E29: Экономика и управление народным хозяйством
B30: 46.06.01 Отечественная история | C30: 06 | D30: 46.06.01 | E30: Отечественная история
B31: 47.06.01 Этика | C31: 06 | D31: 47.06.01 | E31: Этика
B50: Техник деканата
B51: Специалист по УМР

Sheet Отчисленные
A1: 42 | B1: Новожилова | C1: Светлана | D1: Сергеевна | E1: =CONCATENATE(B1," ",LEFT(C1,1),". ",LEFT(D1,1),".") -> Новожилова С. С. | G1: Новожиловой | H1: Светлане | I1: Сергеевне | J1: 1994-09-30 | K1: г. Буй Костромской обл. | L1: РФ | M1: ж | N1: ОГБОУ СПО Буйский сельскохозяйственный техникум | O1: 2013 | P1: замужем | Q1: Костромская обл., г. Буй, ул. Октябрьской революции, д. 249, кв. 1 | Y1: 13116 | Z1: Экономический | AA1: 38.03.01 | AB1: Экономика | AC1: Бухгалтерский учет, анализ и аудит | AD1: 4 года | AE1: БАКАЛАВР | AF1: 2-552 | AG1: 2013-08-30 | AH1: по договору с полным возмещением затрат | AI1: 000000921 | AJ1: 2013-08-15 | AM1: 2-565 | AN1: 2018-06-25 | AO1: за академическую неуспеваемость | AP1: 2-610 | AQ1: 2016-09-27 | CA1: 3 | CB1: 238z | CF1: 6 | CG1: 2018-06-07 | CH1: 78310110 | CI1: 4 | CJ1: 30.05.2014 | CL1: 6 | CM1: 03.06.2014 | CO1: 6 | CP1: 30.05.2014 | CR1: 3 | CS1: 09.06.2016 | CU1: 5 | CV1: 05.06.2014 | CX1: 5 | CY1: 02.06.2014 | DA1: 4 | DB1: 11.10.2017 | DD1: 6 | DE1: 21.05.2014 | DG1: 4 | DH1: 24.12.2016 | DJ1: 6 | DK1: 24.12.2016 | EB1: 6 | EC1: 16.12.2016 | EH1: 4 | EI1: 21.04.2017 | ET1: 4 | EU1: 05.04.2016 | GY1: 4 | GZ1: 05.04.2016 | HP1: 0 | HZ1: 4 | IA1: п/зач | JD1: 4 | JE1: 05.04.2016 | JJ1: =(JL1*3+JM1*4+JN1*5)/50 -> 0.9 | JL1: =COUNTIF(CC1:JG1,3) -> 1 | JM1: =COUNTIF(CC1:JG1,4) -> 8 | JN1: =COUNTIF(CC1:JG1,5) -> 2 | JO1: =COUNTIF(CC1:JG1,6) -> 6 | JP1: =SUM(JL1:JN1) -> 11 | JQ1: =SUMIF(CC1:JG1,">0",$CC$3:$JG$3) -> 78353440 | JR1: =INT(JQ1/8+0.5) -> 9794180
A2: =A1+1 -> 43 | B2: Сайкина | C2: Екатерина | D2: Алексеевна | E2: Сайкина Е. А. | G2: Сайкиной | H2: Екатерине | I2: Алексеевне | J2: 1996-02-21 | K2: г. Галич | L2: РФ | M2: ж | N2: Галичский аграрный техникум | O2: 2015 | P2: не замужем | Q2: Костромская обл., г. Галич, ул. Набережная, д. 121 | Y2: 15842з | Z2: Экономический | AA2: 38.03.01 | AB2: Экономика | AC2: Бухгалтерский учет, анализ и аудит | AD2: 4 года | AE2: БАКАЛАВР | AF2: 2-557 | AG2: 2015-08-21 | AH2: по договору с полным возмещением затрат | AI2: 000003611 | AJ2: 2015-08-11 | AM2: 2-565 | AN2: 2018-06-25 | AO2: за академическую неуспеваемость | AX2: 2-561 | AY2: 2016-09-01 | CA2: 3 | CB2: 238z | CF2: 6 | CG2: 2018-06-07 | CH2: 78310110 | CI2: 3 | CJ2: 11.06.2016 | CL2: 6 | CM2: 04.05.2014 | CO2: 6 | CP2: 20.09.2016 | CR2: 3 | CS2: 09.09.2016 | CU2: 4 | CV2: 09.09.2016 | CX2: 4 | CY2: 11.06.2016 | DA2: 3 | DB2: 06.05.2017 | DD2: 6 | DE2: 12.09.2016 | DG2: 4 | DH2: 27.11.2017 | DJ2: 6 | DK2: 24.12.2016 | DM2: 4 | DN2: 24.12.2016 | DP2: 4 | DQ2: 13.12.2017 | DV2: 5 | DW2: 13.12.2017 | EB2: 6 | EC2: 2017-12-25 | ED2: 486 | EO2: 21.04.2017 | EQ2: 6 | ER2: 21.04.2017 | ET2: 5 | EU2: 05.04.2016 | EW2: 5 | EX2: 2017-11-30 | EY2: Z-7839490 | GY2: 5 | GZ2: 05.04.2016 | HP2: 0 | HZ2: 5 | IA2: п/зач 05.04.16 | JD2: 5 | JE2: 05.04.2016 | JJ2: 1.18 | JL2: 3 | JM2: 5 | JN2: 6 | JO2: 7 | JP2: 14 | JQ2: 78396524 | JR2: 9799566
A3: 44 | B3: Седова | C3: Светлана | D3: Сергеевна | E3: Седова С. С. | G3: Седовой | H3: Светлане | I3: Сергеевне | J3: 1995-05-07 | K3: г. Буй Костромской обл. | L3: РФ | M3: ж | P3: не замужем | Q3: Костромская обл., г. Буй, ул. Октябрьской Революции, д. 17, кв. 72 | Y3: 15867з | Z3: Экономический | AA3: 38.03.01 | AB3: Экономика | AC3: Бухгалтерский учет, анализ и аудит | AD3: 4 года | AE3: БАКАЛАВР | AF3: 2-557 | AG3: 2015-08-21 | AH3: по договору с полным возмещением затрат | AI3: 000003551 | AJ3: 2015-08-10 | AM3: 2-565 | AN3: 2018-06-25 | AO3: за академическую неуспеваемость | AX3: 2-561 | AY3: 2016-09-01 | CA3: 3 | CB3: 238z | CC3: 3 | CD3: 2018-06-07 | CE3: 78310135 | CF3: 6 | CG3: 2018-06-07 | CH3: 78310110 | CI3: 5 | CJ3: 11.06.2016 | CL3: 6 | CM3: 11.06.2016 | CO3: 6 | CP3: 20.09.2016 | CR3: 3 | CS3: 11.06.2016 | CU3: 5 | CV3: 11.06.2016 | CX3: 5 | CY3: 11.06.2016 | DA3: 3 | DB3: 03.10.2016 | DD3: 6 | DE3: 11.06.2006 | DG3: 3 | DH3: 24.12.2016 | DJ3: 6 | DK3: 24.12.2016 | DM3: 4 | DN3: 2017-12-25 | DO3: 487 | EN3: 6 | EO3: 21.04.2017 | EQ3: 6 | ER3: 21.04.2017 | ET3: 5 | EU3: 05.04.2016 | EW3: 5 | EX3: 2017-11-30 | EY3: Z-7839490 | GY3: 5 | GZ3: 05.04.2016 | HP3: 0 | HZ3: 4 | IA3: п/зач 05.04.16 | JD3: 4 | JE3: 05.04.2016 | JJ3: 1.08 | JL3: 4 | JM3: 3 | JN3: 6 | JO3: 7 | JP3: 13 | JQ3: 156793507 | JR3: 19599188
A4: 45 | B4: Ерехинская | C4: Алеся | D4: Сергеевна | E4: Ерехинская А. С. | G4: Ерехинской | H4: Алесе | I4: Сергеевне | J4: 1992-11-14 | K4: п. Высоковский Солигаличского р-на Костромской обл. | L4: РФ | M4: ж | N4: Шаличский аграрный техникум | O4: 2012 | P4: не замужем | Q4: Костромская обл., г. Солигалич, ул. Гагарина, д. 48 | Y4: 13118 | Z4: Экономический | AA4: 38.03.01 | AB4: Экономика | AC4: Бухгалтерский учет, анализ и аудит | AD4: 4 года | AE4: БАКАЛАВР | AF4: 2-552 | AG4: 2013-08-30 | AH4: по договору с полным возмещением затрат | AI4: 000001166 | AJ4: 2013-08-26 | AM4: 2-596 | AN4: 2018-07-03 | AO4: как не вышедшея из академического отпуска | AS4: 2-635 | AT4: 2017-07-04 | AU4: по семейным обстоятельствам | AV4: 2017-07-01 | AW4: 2018-06-30 | AX4: 2-532 | AY4: 2014-09-01 | AZ4: 2-561 | BA4: 2016-09-01 | CA4: 3 | CB4: АО | CC4: 5 | CD4: 27.01.2014 | CF4: 6 | CG4: 08.09.2016 | CI4: 5 | CJ4: 21.12.2013 | CL4: 6 | CM4: 16.04.2014 | CO4: 6 | CP4: 23.06.2014 | CR4: 4 | CS4: 18.06.2014 | CU4: 3 | CV4: 27.06.2014 | CX4: 4 | CY4: 27.06.2014 | DA4: 5 | DB4: 26.06.2014 | DD4: 6 | DE4: 24.04.2014 | DG4: 3 | DH4: 01.07.2016 | DJ4: 6 | DK4: 22.12.2015 | DM4: 3 | DN4: 14.09.2016 | DP4: 3 | DQ4: 08.09.2016 | DS4: 6 | DT4: 25.12.2016 | DV4: 3 | DW4: 28.12.2015 | DY4: 3 | DZ4: 25.04.2016 | EB4: 6 | EC4: 25.04.2016 | EH4: 3 | EI4: 06.03.2017 | EK4: 4 | EL4: 14.09.2016 | ET4: 3 | EU4: п/зач 08.09.2014 | EV4: ФГБОУ ВО Костромская ГСХА, кафедра экономической кибернетики | EW4: 4 | EX4: 01.12.2016 | EZ4: 5 | FA4: 01.12.2016 | FF4: 4 | FG4: 02.02.2017 | FI4: 5 | FJ4: 01.12.2016 | FO4: 4 | FP4: 01.12.2016 | FR4: 4 | FS4: 01.12.2016 | FT4: Оптимизация структуры посевных площадей предприятия | FU4: 6 | FV4: 03.06.2017 | FX4: 4 | FY4: 03.06.2017 | GA4: 5 | GB4: 03.06.2017 | GD4: 4 | GE4: 03.06.2017 | GF4: Система нормативного регулирования бухгалтерского учета в России | GG4: 5 | GH4: 03.06.2017 | GJ4: 4 | GK4: 03.06.2017 | GS4: 4 | GT4: 03.06.2017 | GV4: 4 | GW4: 03.06.2017 | GX4: Правовое регулирование аудиторской деятельности в Российской Федерации | GY4: 4 | GZ4: п/зач 08.09.2014 | HZ4: 4 | IA4: п/зач 08.09.14 | JJ4: 2.3 | JL4: 8 | JM4: 14 | JN4: 7 | JO4: 8 | JP4: 29 | JQ4: 80 | JR4: 10

Sheet Для диплома
A2: № п.п. | B2: Фамилия | C2: Имя | D2: Отчество | E2: Пол | F2: день (цифры) дата рождения | G2: месяц (цифры) дата рождения | H2: год (цифры) дата рождения | I2: Год поступления | J2: Отличие (цифра 5) | K2: гражданство (РФ, ближнее, дальнее, без гражданства) | L2: источник финансирования (платно, бюджет, целевое) | M2: Предыдущий документ, год выдачи, (С УКАЗАНИЕМ СТРАНЫ ВЫДАЧИ КРОМЕ РФ) | N2: Примечание | O2: государственный экзамен | P2: Вид выпускной работы (ДП, ДР, МД) | Q2: Тема диплома | R2: выпускная квалификационная работа | S2: № протокола аттестационной комиссии | T2: день (цифры) дата защиты | U2: месяц (цифры) дата защиты | V2: год (цифры) дата защиты | W2: № приказа об отчислении | X2: день (цифры) дата приказа об отчислении | Y2: месяц (цифры) дата приказа об отчислении | Z2: год (цифры) дата приказа об отчислении | AA2: Серия диплома | AB2: № диплома | AC2: Серия приложения к диплому | AD2: № приложения к диплому | AE2: Регистрационный номер | AG2: Моделирование социально-экономических систем | AI2: Бухгалтерский учет и анализ | AK2: Экономика организаций (предприятий) | AM2: Аудит | AO2: Комплексный анализ хозяйственной деятельности | AQ2: Бухгалтерский финансовый учет | AS2: 0 | AU2: 0 | AW2: 0 | AY2: 0 | BA2: 0 | BC2: 0 | BE2: 0 | BG2: 0 | BI2: 0 | BK2: 0 | BM2: 0 | BO2: 0 | BQ2: 0 | BS2: 0 | BV2: Учебная (практика по получению первичных профессиональных умений и навыков, в том | BW2: числе первичных умений и навыков научно-исследовательской деятельности) | BX2: Производственная (научно-исследовательская работа) | BY2: Производственная (практика по получению профессиональных | BZ2: умений и опыта профессиональной деятельности) | CA2: Производственная (технологическая) | CB2: Производственная (преддипломная) | CC2: 0 | CD2: 0 | CE2: 0 | CG2: История | CH2: Философия | CI2: Иностранный язык | CJ2: Право | CK2: Социология | CL2: Психология | CM2: Математический анализ | CN2: Линейная алгебра | CO2: Теория вероятности и математическая статистика | CP2: Методы оптимальных решений | CQ2: Макроэкономика | CR2: Микроэкономика | CS2: Эконометрика | CT2: Статистика | CU2: Безопасность жизнедеятельности | CV2: Финансы | CW2: Бухгалтерский учет и анализ | CX2: Деньги, кредит, банки | CY2: Менеджмент | CZ2: Маркетинг | DA2: Мировая экономика и международные экономические отношения | DB2: Макроэкономическое планирование и прогнозирование | DC2: Корпоративные финансы | DD2: Физическая культура и спорт | DE2: Политология | DF2: Введение в профессию и основы научных исследований | DG2: Информатика и информационное обеспечение бухгалтеского учета | DH2: Информационные технологии и базы данных в бухгалтерском учете | DI2: Методы принятия управленческих решений в сфере бухгалтерского учета | DJ2: Регионалистика | DK2: Бухгалтерский финансовый учет | DL2: Бухгалтерский управленческий учет | DM2: Бухгалтерская (финансовая) отчетность | DN2: Комплексный анализ хозяйственной деятельности | DO2: Аудит | DP2: Лабораторный практикум по бухгалтерскому учету | DQ2: Международные стандарты финансовой отчетности | DR2: Бухгалтерский учет на предприятиях малого бизнеса | DS2: Практикум 1С: Бухгалтерия | DT2: Делопроизводство и документооборот | DU2: Инструментальные средства программирования бухгалтерских операций | DV2: Экономика организаций (предприятий) | DW2: Логистика | DX2: Моделирование социально-экономических систем | DY2: Налоги и налогообложение | DZ2: Планирование на предприятии | EA2: Анализ финансовой отчетности | EB2: Общая физическая подготовка | EC2: =[5]Предметы!$B50 -> 0 | ED2: 0 | EE2: 0 | EF2: 0 | EG2: 0 | EH2: 0 | EI2: 0 | EJ2: 0 | EK2: 0 | EL2: 0 | EM2: 0 | EN2: 0 | EO2: 0 | EP2: 0 | EQ2: 0 | ER2: 0 | ES2: 0 | ET2: 0 | EU2: 0 | EV2: 0 | EW2: 0 | EX2: 0 | EY2: 0 | EZ2: 0 | FA2: 0 | FB2: 0 | FC2: 0 | FD2: 0 | FE2: 0 | FF2: 0 | FG2: 0 | FH2: 0 | FI2: 0 | FJ2: 0 | FK2: 0 | FL2: 0 | FM2: 0 | FN2: 0 | FO2: 0 | FP2: 0 | FQ2: 0 | FR2: 0 | FS2: 0 | FT2: 0 | FU2: 0 | FV2: 0 | FW2: 0 | FX2: 0 | FY2: 0 | FZ2: 0 | GA2: 0 | GB2: 0 | GC2: факультативные дисциплины | GD2: 0 | GE2: 0 | GF2: 0 | GG2: 0 | GH2: 0 | GI2: 0 | GJ2: 0 | GK2: 0 | GL2: 0 | GM2: 0 | GN2: 0 | GO2: 0 | GP2: 0 | GQ2: 0 | GR2: 0
AG3: 1 | AI3: 2 | AK3: 3 | AM3: 4 | AO3: 5 | AQ3: 6 | AS3: 7 | AU3: 8 | AW3: 9 | AY3: 10 | BA3: 11 | BC3: 12 | BE3: 13 | BG3: 14 | BI3: 15 | BK3: 16 | BM3: 17 | BO3: 18 | BQ3: 19 | BS3: 20 | BW3: 3 з.е. | BX3: 3 з.е. | BZ3: 3 з.е. | CA3: 3 з.е. | CB3: 3 з.е. | CG3: 3 з.е. | CH3: 3 з.е. | CI3: 6 з.е. | CJ3: 4 з.е. | CK3: 2 з.е. | CL3: 2 з.е. | CM3: 6 з.е. | CN3: 7 з.е. | CO3: 4 з.е. | CP3: 4 з.е. | CQ3: 8 з.е. | CR3: 6 з.е. | CS3: 5 з.е. | CT3: 6 з.е. | CU3: 4 з.е. | CV3: 4 з.е. | CW3: 7 з.е. | CX3: 4 з.е. | CY3: 4 з.е. | CZ3: 3 з.е. | DA3: 4 з.е. | DB3: 4 з.е. | DC3: 4 з.е. | DD3: 2 з.е. | DE3: 5 з.е. | DF3: 6 з.е. | DG3: 10 з.е. | DH3: 4 з.е. | DI3: 2 з.е. | DJ3: 4 з.е. | DK3: 10 з.е. | DL3: 5 з.е. | DM3: 5 з.е. | DN3: 4 з.е. | DO3: 4 з.е. | DP3: 4 з.е. | DQ3: 3 з.е. | DR3: 5 з.е. | DS3: 2 з.е. | DT3: 3 з.е. | DU3: 6 з.е. | DV3: 5 з.е. | DW3: 5 з.е. | DX3: 8 з.е. | DY3: 3 з.е. | DZ3: 4 з.е. | EA3: 3 з.е. | EB3: 328 час. | EC3: =IF([5]Предметы!$C50=0,CONCATENATE([5]Предметы!$D50," час."),CONCATENATE([5]Предметы!$C50," з.е.")) -> час. | ED3: час. | EE3: час. | EF3: час. | EG3: час. | EH3: час. | EI3: час. | EJ3: час. | EK3: час. | EL3: час. | EM3: час. | EN3: час. | EO3: час. | EP3: час. | EQ3: час. | ER3: час. | ES3: час. | ET3: час. | EU3: час. | EV3: час. | EW3: час. | EX3: час. | EY3: час. | EZ3: час. | FA3: час. | FB3: час. | FC3: час. | FD3: час. | FE3: час. | FF3: час. | FG3: час. | FH3: час. | FI3: час. | FJ3: час. | FK3: час. | FL3: час. | FM3: час. | FN3: час. | FO3: час. | FP3: час. | FQ3: час. | FR3: час. | FS3: час. | FT3: час. | FU3: час. | FV3: час. | FW3: час. | FX3: час. | FY3: час. | FZ3: час. | GA3: час. | GB3: час. | GD3: 0 | GE3: 0 | GF3: 0 | GG3: 0 | GH3: 0 | GI3: 0 | GJ3: 0 | GK3: 0 | GL3: 0 | GM3: 0 | GN3: 0 | GO3: 0 | GP3: 0 | GQ3: 0 | GR3: 0
A4: 25 | B4: =VLOOKUP(A4,Предметы!$A$6:$JI$39,2,FALSE) -> Семёнова | C4: =VLOOKUP(A4,Предметы!$A$6:$JI$39,3) -> Светлана | D4: =VLOOKUP(A4,Предметы!$A$6:$JI$39,4) -> Александровна | E4: =VLOOKUP(A4,Предметы!$A$6:$JI$39,13) -> ж | F4: =DAY(VLOOKUP(A4,Предметы!$A$6:$JI$39,10)) -> 23 | G4: =MONTH(VLOOKUP(A4,Предметы!$A$6:$JI$39,10)) -> 9 | H4: =YEAR(VLOOKUP(A4,Предметы!$A$6:$JI$39,10)) -> 1988 | I4: =YEAR(VLOOKUP(A4,Предметы!$A$6:$JI$39,33)) -> 2015 | K4: =VLOOKUP(A4,Предметы!$A$6:$JI$39,12) -> РФ | L4: платно | O4: =VLOOKUP(A4,Предметы!$A$6:$JI$39,66) -> 0 | Q4: =VLOOKUP(A4,Предметы!$A$6:$JI$39,70) -> 0 | R4: ВКР | S4: =VLOOKUP(A4,Предметы!$A$6:$JI$39,72) -> 0 | T4: =DAY(VLOOKUP(A4,Предметы!$A$6:$JI$39,73)) -> 0 | U4: =MONTH(VLOOKUP(A4,Предметы!$A$6:$JI$39,73)) -> 1 | V4: =YEAR(VLOOKUP(A4,Предметы!$A$6:$JI$39,73)) -> 1900 | X4: 29 | Y4: 6 | Z4: 2018 | AA4: 104406 | AB4: 0005647 | AC4: 104406 | AD4: 0012997 | AE4: 35385 | AH4: =VLOOKUP(A4,Предметы!$A$6:$JI$39,174) -> 5 | AJ4: =VLOOKUP(A4,Предметы!$A$6:$JI$39,186) -> 5 | AL4: =VLOOKUP(A4,Предметы!$A$6:$JI$39,195) -> 5 | AN4: =VLOOKUP(A4,Предметы!$A$6:$JI$39,204) -> 5 | AP4: =VLOOKUP(A4,Предметы!$A$6:$JI$39,222) -> 0 | AR4: =VLOOKUP(A4,Предметы!$A$6:$JI$39,249) -> 0 | BW4: =VLOOKUP(A4,Предметы!$A$6:$JI$39,150) -> 5 | BX4: =VLOOKUP(A4,Предметы!$A$6:$JI$39,264) -> 0 | BZ4: =VLOOKUP(A4,Предметы!$A$6:$JI$39,207) -> 4 | CA4: =VLOOKUP(A4,Предметы!$A$6:$JI$39,234) -> 4 | CB4: =VLOOKUP(A4,Предметы!$A$6:$JI$39,267) -> 0 | CG4: =VLOOKUP(A4,Предметы!$A$6:$JI$39,87) -> 3 | CH4: =VLOOKUP(A4,Предметы!$A$6:$JI$39,132) -> 6 | CI4: =VLOOKUP(A4,Предметы!$A$6:$JI$39,111) -> 5 | CJ4: =VLOOKUP(A4,Предметы!$A$6:$JI$39,153) -> 5 | CK4: =VLOOKUP(A4,Предметы!$A$6:$JI$39,114) -> 6 | CL4: =VLOOKUP(A4,Предметы!$A$6:$JI$39,90) -> 6 | CM4: =VLOOKUP(A4,Предметы!$A$6:$JI$39,96) -> 3 | CN4: =VLOOKUP(A4,Предметы!$A$6:$JI$39,99) -> 3 | CO4: =VLOOKUP(A4,Предметы!$A$6:$JI$39,120) -> 3 | CP4: =VLOOKUP(A4,Предметы!$A$6:$JI$39,159) -> 4 | CQ4: =VLOOKUP(A4,Предметы!$A$6:$JI$39,129) -> 3 | CR4: =VLOOKUP(A4,Предметы!$A$6:$JI$39,105) -> 3 | CS4: =VLOOKUP(A4,Предметы!$A$6:$JI$39,126) -> 5 | CT4: =VLOOKUP(A4,Предметы!$A$6:$JI$39,138) -> 4 | CU4: =VLOOKUP(A4,Предметы!$A$6:$JI$39,180) -> 5 | CV4: =VLOOKUP(A4,Предметы!$A$6:$JI$39,165) -> 4 | CW4: =VLOOKUP(A4,Предметы!$A$6:$JI$39,183) -> 5 | CX4: =VLOOKUP(A4,Предметы!$A$6:$JI$39,189) -> 4 | CY4: =VLOOKUP(A4,Предметы!$A$6:$JI$39,141) -> 4 | CZ4: =VLOOKUP(A4,Предметы!$A$6:$JI$39,210) -> 0 | DA4: =VLOOKUP(A4,Предметы!$A$6:$JI$39,168) -> 5 | DB4: =VLOOKUP(A4,Предметы!$A$6:$JI$39,237) -> 0 | DC4: =VLOOKUP(A4,Предметы!$A$6:$JI$39,213) -> 0 | DD4: 6 | DE4: =VLOOKUP(A4,Предметы!$A$6:$JI$39,117) -> 5 | DF4: =VLOOKUP(A4,Предметы!$A$6:$JI$39,84) -> 6 | DG4: =VLOOKUP(A4,Предметы!$A$6:$JI$39,102) -> 5 | DH4: =VLOOKUP(A4,Предметы!$A$6:$JI$39,162) -> 5 | DI4: =VLOOKUP(A4,Предметы!$A$6:$JI$39,177) -> 6 | DJ4: =VLOOKUP(A4,Предметы!$A$6:$JI$39,156) -> 3 | DK4: =VLOOKUP(A4,Предметы!$A$6:$JI$39,246) -> 0 | DL4: =VLOOKUP(A4,Предметы!$A$6:$JI$39,216) -> 0 | DM4: =VLOOKUP(A4,Предметы!$A$6:$JI$39,261) -> 0 | DN4: =VLOOKUP(A4,Предметы!$A$6:$JI$39,219) -> 0 | DO4: =VLOOKUP(A4,Предметы!$A$6:$JI$39,201) -> 5 | DP4: =VLOOKUP(A4,Предметы!$A$6:$JI$39,252) -> 0 | DQ4: =VLOOKUP(A4,Предметы!$A$6:$JI$39,225) -> 0 | DR4: =VLOOKUP(A4,Предметы!$A$6:$JI$39,255) -> 0 | DS4: =VLOOKUP(A4,Предметы!$A$6:$JI$39,258) -> 0 | DT4: =VLOOKUP(A4,Предметы!$A$6:$JI$39,81) -> 5 | DU4: =VLOOKUP(A4,Предметы!$A$6:$JI$39,135) -> 4 | DV4: =VLOOKUP(A4,Предметы!$A$6:$JI$39,192) -> 4 | DW4: =VLOOKUP(A4,Предметы!$A$6:$JI$39,228) -> 0 | DX4: =VLOOKUP(A4,Предметы!$A$6:$JI$39,171) -> 5 | DY4: =VLOOKUP(A4,Предметы!$A$6:$JI$39,240) -> 0 | DZ4: =VLOOKUP(A4,Предметы!$A$6:$JI$39,198) -> 4 | EA4: =VLOOKUP(A4,Предметы!$A$6:$JI$39,243) -> 0 | EB4: 6 | EC4: 6 | GD4: 6
M5: аттестат о среднем (полном) общем образовании, 2012 год

Sheet Лист1
A4: =Предметы!A6+1 -> 2 | B4: Бурова | C4: Наталья | D4: Сергеевна | E4: =CONCATENATE(B4," ",LEFT(C4,1),". ",LEFT(D4,1),".") -> Бурова Н. С. | G4: Буровой | H4: Наталье | I4: Сергеевне | J4: 1996-01-06 | K4: д. Харитоново Красносельского р-на Костромской обл. | L4: РФ | M4: ж | N4: Костромской торгово-экономический колледж | O4: 2014 | P4: не замужем | Q4: Костромская обл., Красносельский р-н, дер. Харитоново, д. 1. кв. 9 | Y4: 14108 | Z4: Экономический | AA4: 38.03.01 | AB4: Экономика | AC4: Бухгалтерский учет, анализ и аудит | AD4: 4 года | AE4: БАКАЛАВР | AF4: 2-525 | AG4: 2014-08-21 | AH4: по договору с полным возмещением затрат | AI4: 000002916 | AJ4: 2014-08-14 | AX4: 2-571 | AY4: 2015-09-01 | AZ4: 2-561 | BA4: 2016-09-01 | BB4: 2-703 | BC4: 2017-09-01 | BJ4: 2-395 | BK4: 2018-05-21 | BL4: Государственный экзамен | BM4: 2018-05-31 | BN4: 4 | BR4: Бухгалтерский учет и аудит расчетов с персоналом по оплате труда в СПК «Знамя Труда-1» Красносельского района Костромской области | BS4: 5 | BT4: 13 | BU4: 2018-06-25 | BW4: 36203 | BX4: 104406 | BY4: 0018142 | BZ4: 2018-06-29 | CA4: 4 | CB4: 246z | CC4: 4 | CD4: 2018-02-09 | CF4: 6 | CG4: 2018-02-09 | CI4: 3 | CJ4: 02.06.2015 | CL4: 6 | CM4: 04.06.2015 | CO4: 6 | CP4: 05.05.2016 | CR4: 3 | CS4: 30.05.2015 | CU4: 3 | CV4: 04.06.2015 | CX4: 3 | CY4: 03.06.2015 | DA4: 4 | DB4: 09.06.2015 | DD4: 6 | DE4: 22.05.2015 | DG4: 4 | DH4: 05.05.2016 | DJ4: 6 | DK4: 22.12.2015 | DM4: 4 | DN4: 29.12.2015 | DP4: 3 | DQ4: 26.05.2017 | DS4: 6 | DT4: 25.12.2015 | DV4: 3 | DW4: 28.12.2015 | DY4: 3 | DZ4: 13.04.2016 | EB4: 6 | EC4: 25.04.2016 | EE4: 3 | EF4: 22.04.2016 | EH4: 3 | EI4: 22.04.2016 | EK4: 5 | EL4: 21.04.2016 | ET4: 3 | EU4: п/зач 08.09.2014 | EW4: 4 | EX4: 01.12.2016 | EZ4: 4 | FA4: 01.12.2016 | FC4: 3 | FD4: 01.12.2016 | FF4: 3 | FG4: 01.12.2016 | FI4: 4 | FJ4: 01.12.2016 | FL4: 4 | FM4: 24.11.2016 | FO4: 3 | FP4: 01.12.2016 | FR4: 3 | FS4: 30.11.2016 | FT4: Оптимизация структуры кормопроизводства предприятия | FU4: 6 | FV4: 03.06.2017 | FX4: 3 | FY4: 03.06.2017 | GA4: 3 | GB4: 03.06.2017 | GD4: 4 | GE4: 03.06.2017 | GF4: Учет расчетов по налогам и сборам | GG4: 3 | GH4: 03.06.2017 | GJ4: 3 | GK4: 03.06.2017 | GM4: 3 | GN4: 03.06.2017 | GO4: Себестоимость и рентабельность производства продукции животноводства | GP4: 3 | GQ4: 03.06.2017 | GS4: 4 | GT4: 03.06.2017 | GV4: 5 | GW4: 03.06.2017 | GX4: Профессионально-этические нормы аудита | GY4: 3 | GZ4: 08.09.2014 | HB4: 4 | HC4: 11.10.2017 | HE4: 5 | HF4: 11.10.2017 | HH4: 3 | HI4: 11.10.2017 | HK4: 5 | HL4: 11.10.2017 | HN4: 4 | HO4: 11.10.2017 | HP4: Анализ персонала и эффективности использования трудовых ресурсов в ООО ПЗ"Романовские фермы" Костромской области | HQ4: 5 | HR4: 11.10.2017 | HT4: 5 | HU4: 11.10.2017 | HW4: 6 | HX4: 11.10.2017 | HZ4: 3 | IA4: 08.09.2014 | IC4: 3 | ID4: 2018-02-09 | IE4: Z-7739714 | IF4: 6 | IG4: 2018-02-09 | IH4: Z-7739563 | II4: 6 | IJ4: 2018-02-09 | IK4: Z-7739561 | IL4: 3 | IM4: 2018-02-09 | IN4: Z-7739521 | IO4: 5 | IP4: 2018-02-09 | IQ4: Учет труда и его оплаты в ООО Племенной завод "Романовские фермы" Сусанинского района Костромской области | IR4: 4 | IS4: 2018-02-09 | IT4: Z-7739509 | IU4: 3 | IV4: 2018-02-09 | IW4: Z-7739505 | IX4: 6 | IY4: 2018-02-09 | IZ4: Z-7739549 | JA4: 5 | JB4: 2018-02-09 | JC4: Z-7739516 | JD4: 5 | JE4: 2018-03-23 | JF4: ФГБОУ ВО Костромская ГСХА, кафедра бухгалтерский учет, анализ | JG4: 5 | JH4: 2018-03-31 | JI4: СПК "Знамя труда-1" Красносельского р-на Костромской обл. | JJ4: =(JL4*3+JM4*4+JN4*5)/50 -> 3.6 | JL4: =COUNTIF(CC4:JG4,3) -> 26 | JM4: =COUNTIF(CC4:JG4,4) -> 13 | JN4: =COUNTIF(CC4:JG4,5) -> 10 | JO4: =COUNTIF(CC4:JG4,6) -> 12 | JP4: =SUM(JL4:JN4) -> 49 | JQ4: =SUMIF(CC4:JG4,">0",Предметы!$CC$3:$JG$3) -> 7704 | JR4: =INT(JQ4/8+0.5) -> 963
A5: =A4+1 -> 3 | B5: Бурова | C5: Юлия | D5: Сергеевна | E5: Бурова Ю. С. | G5: Буровой | H5: Юлии | I5: Сергеевне | J5: 1988-12-30 | K5: д. Харитоново Красносельского р-на Костромской обл. | L5: РФ | M5: ж | N5: Костромской политехнический колледж | O5: 2009 | P5: не замужем | Q5: Костромская обл., Красносельский р-н, дер. Харитоново, д. 1. кв. 9 | Y5: 14199 | Z5: Экономический | AA5: 38.03.01 | AB5: Экономика | AC5: Бухгалтерский учет, анализ и аудит | AD5: 4 года | AE5: БАКАЛАВР | AF5: 2-525 | AG5: 2014-08-21 | AH5: по договору с полным возмещением затрат | AI5: 000002915 | AJ5: 2014-08-14 | AX5: 2-571 | AY5: 2015-09-01 | AZ5: 2-561 | BA5: 2016-09-01 | BB5: 2-703 | BC5: 2017-09-01 | BJ5: 2-395 | BK5: 2018-05-21 | BL5: Государственный экзамен | BM5: 2018-05-31 | BN5: 4 | BR5: Бухгалтерский учет и анализ продаж продукции в СПК «Знамя Труда-1» Красносельского района Костромской области | BS5: 3 | BT5: 24 | BU5: 2018-06-26 | BW5: 36204 | BX5: 104406 | BY5: 0018143 | BZ5: 2018-06-29 | CA5: 4 | CB5: 246z | CC5: 4 | CD5: 2018-02-09 | CF5: 6 | CG5: 2018-02-09 | CI5: 3 | CJ5: 02.06.2015 | CL5: 6 | CM5: 04.06.2015 | CO5: 6 | CP5: 29.05.2015 | CR5: 3 | CS5: 30.05.2015 | CU5: 3 | CV5: 04.06.2015 | CX5: 3 | CY5: 03.06.2015 | DA5: 4 | DB5: 09.06.2015 | DD5: 6 | DE5: 22.05.2015 | DG5: 4 | DH5: 25.12.2015 | DJ5: 6 | DK5: 22.12.2015 | DM5: 4 | DN5: 29.12.2015 | DP5: 4 | DQ5: 26.05.2017 | DS5: 6 | DT5: 25.12.2015 | DV5: 3 | DW5: 28.12.2015 | DY5: 3 | DZ5: 13.04.2016 | EB5: 6 | EC5: 25.04.2016 | EE5: 3 | EF5: 22.04.2016 | EH5: 3 | EI5: 22.04.2016 | EK5: 5 | EL5: 21.04.2016 | ET5: 4 | EU5: 2018-05-04 | EV5: ФГБОУ ВО Костромская ГСХА, кафедра экономической кибернетики | EW5: 4 | EX5: 01.12.2016 | EZ5: 3 | FA5: 2018-02-21 | FB5: 489 | FC5: 3 | FD5: 01.12.2016 | FF5: 3 | FG5: 09.12.2016 | FI5: 4 | FJ5: 01.12.2016 | FL5: 4 | FM5: 24.11.2016 | FO5: 3 | FP5: 2018-03-27 | FQ5: 577 | FR5: 3 | FS5: 2018-03-27 | FT5: Экономико-математическая модель для оптимальной специализации и сочетания отраслей | FU5: 6 | FV5: 03.06.2017 | FX5: 3 | FY5: 03.06.2017 | GA5: 3 | GB5: 03.06.2017 | GD5: 3 | GE5: 03.06.2017 | GF5: Учет расчетов с персоналом по оплате труда | GG5: 3 | GH5: 03.06.2017 | GJ5: 3 | GK5: 03.06.2017 | GM5: 3 | GN5: 03.06.2017 | GO5: Себестоимость и рентабельность производства продукции животноводства | GP5: 3 | GQ5: 03.06.2017 | GS5: 3 | GT5: 03.06.2017 | GV5: 3 | GW5: 08.06.2017 | GX5: Завершение аудита и подготовка аудиторского заключения | GY5: 4 | GZ5: 2018-05-03 | HB5: 4 | HC5: 11.10.2017 | HE5: 4 | HF5: 11.10.2017 | HH5: 3 | HI5: 11.10.2017 | HK5: 4 | HL5: 11.10.2017 | HN5: 3 | HO5: 11.10.2017 | HP5: Анализ наличия и эффективности использования основных средств в ОАО ПЗ "Караваево"Костромского р-на Костромской обл. | HQ5: 5 | HR5: 11.10.2017 | HT5: 5 | HU5: 11.10.2017 | HW5: 6 | HX5: 2018-04-05 | HY5: 616 | HZ5: 4 | IA5: 2018-05-03 | IC5: 3 | ID5: 2018-02-09 | IE5: Z-7739714 | IF5: 6 | IG5: 2018-02-09 | IH5: Z-7739563 | II5: 6 | IJ5: 2018-02-09 | IK5: Z-7739561 | IL5: 3 | IM5: 2018-02-09 | IN5: Z-7739521 | IO5: 3 | IP5: 2018-04-03 | IQ5: Учет расчетов с поставщиками, подрядчиками и заказчиками в ООО "Автофильтр" | IR5: 4 | IS5: 2018-02-09 | IT5: Z-7739509 | IU5: 3 | IV5: 2018-02-09 | IW5: Z-7739505 | IX5: 6 | IY5: 2018-02-09 | IZ5: Z-7739549 | JA5: 4 | JB5: 2018-02-09 | JC5: Z-7739516 | JD5: 4 | JE5: 2018-04-23 | JF5: ФГБОУ ВО Костромская ГСХА, кафедра бухгалтерский учет, анализ | JG5: 4 | JH5: 2018-04-23 | JI5: СПК "Знамя труда-1" Красносельского р-на Костромской обл. | JJ5: 3.42 | JL5: 28 | JM5: 18 | JN5: 3 | JO5: 12 | JP5: 49 | JQ5: =SUMIF(CC5:JG5,">0",Предметы!$CC$3:$JG$3) -> 7704 | JR5: 963
A6: =Предметы!A7+1 -> 3 | B6: Дугина | C6: Ольга | D6: Александровна | E6: Дугина О. А. | G6: Дугиной | H6: Ольге | I6: Александровне | J6: 1988-10-30 | K6: п. Красное-на-Волге Красносельского р-на Костромской обл. | L6: РФ | M6: ж | N6: Костромской лесомеханический колледж | O6: 2008 | P6: не замужем | Q6: Костромская обл., Красносельский р-н, п. Красное, ул. Советская, д. 22, кв. 35 | Y6: 14111 | Z6: Экономический | AA6: 38.03.01 | AB6: Экономика | AC6: Бухгалтерский учет, анализ и аудит | AD6: 4 года | AE6: БАКАЛАВР | AF6: 2-525 | AG6: 2014-08-21 | AH6: по договору с полным возмещением затрат | AI6: 000003031 | AJ6: 2014-08-21 | AX6: 2-571 | AY6: 2015-09-01 | AZ6: 2-561 | BA6: 2016-09-01 | BB6: 2-703 | BC6: 2017-09-01 | BJ6: 2-395 | BK6: 2018-05-21 | BL6: Государственный экзамен | BM6: 2018-05-31 | BN6: 4 | BR6: Бухгалтерский учет и анализ затрат на переработку молока в СПК Колхоз «Родина» Красносельского района Костромской области | BS6: 4 | BT6: 14 | BU6: 2018-06-25 | BW6: 36205 | BX6: 104406 | BY6: 0018144 | BZ6: 2018-06-29 | CA6: 4 | CB6: 246z | CC6: 4 | CD6: 2018-02-09 | CF6: 6 | CG6: 2018-02-09 | CI6: 3 | CJ6: 02.06.2015 | CL6: 6 | CM6: 04.06.2015 | CO6: 6 | CP6: 29.05.2015 | CR6: 3 | CS6: 30.05.2015 | CU6: 3 | CV6: 04.06.2015 | CX6: 3 | CY6: 03.06.2015 | DA6: 5 | DB6: 09.06.2015 | DD6: 6 | DE6: 22.05.2015 | DG6: 4 | DH6: 17.12.2015 | DJ6: 6 | DK6: 22.12.2015 | DM6: 5 | DN6: 29.12.2015 | DP6: 3 | DQ6: 26.05.2017 | DS6: 6 | DT6: 25.12.2015 | DV6: 3 | DW6: 28.12.2015 | DY6: 5 | DZ6: 13.04.2016 | EB6: 6 | EC6: 25.04.2016 | EE6: 3 | EF6: 22.04.2016 | EH6: 4 | EI6: 22.04.2016 | EK6: 5 | EL6: 21.04.2016 | ET6: 4 | EU6: п/зач 08.09.2014 | EW6: 5 | EX6: 01.12.2016 | EZ6: 4 | FA6: 01.12.2016 | FC6: 3 | FD6: 01.12.2016 | FF6: 3 | FG6: 01.12.2016 | FI6: 5 | FJ6: 01.12.2016 | FL6: 4 | FM6: 24.11.2016 | FO6: 3 | FP6: 01.12.2016 | FR6: 3 | FS6: 30.11.2016 | FT6: Оптимизация структуры кормопроизводства предприятия | FU6: 6 | FV6: 03.06.2017 | FX6: 4 | FY6: 03.06.2017 | GA6: 4 | GB6: 03.06.2017 | GD6: 4 | GE6: 03.06.2017 | GF6: История развития бухгалтерского учета | GG6: 3 | GH6: 03.06.2017 | GJ6: 5 | GK6: 03.06.2017 | GM6: 3 | GN6: 03.06.2017 | GO6: Конкурентоспособность организации (предприятия) | GP6: 5 | GQ6: 03.06.2017 | GS6: 3 | GT6: 03.06.2017 | GV6: 4 | GW6: 03.06.2017 | GX6: Сущность аудита и его место в системе финансового контроля РФ | GY6: 5 | GZ6: 08.09.2014 | HB6: 5 | HC6: 11.10.2017 | HE6: 5 | HF6: 11.10.2017 | HH6: 5 | HI6: 11.10.2017 | HK6: 4 | HL6: 11.10.2017 | HN6: 3 | HO6: 11.10.2017 | HP6: Анализ финансовых результатов деятельности СПК "Родина" Красносельского р-на Костромской области | HQ6: 5 | HR6: 11.10.2017 | HT6: 4 | HU6: 11.10.2017 | HW6: 6 | HX6: 02.02.2018 | HZ6: 5 | IA6: 08.09.2014 | IC6: 4 | ID6: 2018-02-09 | IE6: Z-7739714 | IF6: 6 | IG6: 2018-02-09 | IH6: Z-7739563 | II6: 6 | IJ6: 2018-02-09 | IK6: Z-7739561 | IL6: 3 | IM6: 2018-02-09 | IN6: Z-7739521 | IO6: 3 | IP6: 2018-02-09 | IQ6: Организация бухгалтерского учета на предприятии | IR6: 4 | IS6: 2018-02-09 | IT6: Z-7739509 | IU6: 5 | IV6: 2018-02-09 | IW6: Z-7739505 | IX6: 6 | IY6: 2018-02-09 | IZ6: Z-7739549 | JA6: 4 | JB6: 2018-02-09 | JC6: Z-7739516 | JD6: 4 | JE6: 2018-04-02 | JF6: ФГБОУ ВО Костромская ГСХА, кафедра бухгалтерский учет, анализ | JG6: 4 | JH6: 2018-03-31 | JI6: СПК Колхоз "Родина" Красносельского р-на Костромской обл. | JJ6: 3.88 | JL6: 17 | JM6: 17 | JN6: 15 | JO6: 12 | JP6: 49 | JQ6: =SUMIF(CC6:JG6,">0",Предметы!$CC$3:$JG$3) -> 7704 | JR6: 963
A7: =A6+1 -> 4 | B7: Базиленко (Забродыкина) | C7: Екатерина | D7: Алексеевна | E7: Базиленко (Забродыкина) Е. А. | G7: Забродыкиной | H7: Екатерине | I7: Алексеевне | J7: 1986-10-28 | K7: г. Кострома | L7: РФ | M7: ж | N7: ГОУСПО "Санкт-Петербургский промышленно-экономический колледж | O7: 2010 | P7: не замужем | Q7: г. Кострома, ул. Ивана Сусанина, д. 29/52, кв. 29 | Y7: 14112 | Z7: Экономический | AA7: 38.03.01 | AB7: Экономика | AC7: Бухгалтерский учет, анализ и аудит | AD7: 4 года | AE7: БАКАЛАВР | AF7: 2-525 | AG7: 2014-08-21 | AH7: по договору с полным возмещением затрат | AI7: 000002773 | AJ7: 2014-08-06 | AX7: 2-571 | AY7: 2015-09-01 | AZ7: 2-561 | BA7: 2016-09-01 | BB7: 2-703 | BC7: 2017-09-01 | BJ7: 2-395 | BK7: 2018-05-21 | BL7: Государственный экзамен | BM7: 2018-05-31 | BN7: 4 | BR7: Бухгалтерский учет и анализ расчетов с поставщиками и покупателями в ЗАО «Шунга» Костромского района Костромской области | BS7: 3 | BT7: 32 | BU7: 2018-06-27 | BW7: 36206 | BX7: 104406 | BY7: 0018145 | BZ7: 2018-06-29 | CA7: 4 | CB7: 246z | CC7: 4 | CD7: 2018-02-09 | CF7: 6 | CG7: 2018-02-09 | CI7: 3 | CJ7: 02.06.2015 | CL7: 6 | CM7: 04.06.2015 | CO7: 6 | CP7: 29.05.2015 | CR7: 3 | CS7: 30.05.2015 | CU7: 3 | CV7: 04.06.2015 | CX7: 4 | CY7: 03.06.2015 | DA7: 5 | DB7: 09.06.2015 | DD7: 6 | DE7: 22.05.2015 | DG7: 3 | DH7: 17.12.2015 | DJ7: 6 | DK7: 22.12.2015 | DM7: 5 | DN7: 29.12.2015 | DP7: 4 | DQ7: 26.05.2017 | DS7: 6 | DT7: 25.12.2015 | DV7: 4 | DW7: 28.12.2015 | DY7: 5 | DZ7: 13.04.2016 | EB7: 6 | EC7: 25.04.2016 | EE7: 4 | EF7: 22.04.2016 | EH7: 4 | EI7: 22.04.2016 | EK7: 5 | EL7: 21.04.2016 | ET7: 4 | EU7: 02.07.2016 | EV7: ФГБОУ ВО Костромская ГСХА, кафедра экономической кибернетики | EW7: 5 | EX7: 01.12.2016 | EZ7: 5 | FA7: 01.12.2016 | FC7: 3 | FD7: 01.12.2016 | FF7: 4 | FG7: 01.12.2016 | FI7: 4 | FJ7: 01.12.2016 | FL7: 5 | FM7: 24.11.2016 | FO7: 4 | FP7: 01.12.2016 | FR7: 3 | FS7: 30.11.2016 | FT7: Оптимизация структуры кормопроизводства предприятия | FU7: 6 | FV7: 03.06.2017 | FX7: 5 | FY7: 03.06.2017 | GA7: 4 | GB7: 03.06.2017 | GD7: 4 | GE7: 03.06.2017 | GF7: Предмет и метод бухгалтерского учета | GG7: 4 | GH7: 03.06.2017 | GJ7: 5 | GK7: 03.06.2017 | GM7: 3 | GN7: 03.06.2017 | GO7: Финансовые ресурсы организации (предприятия) и эффективность их использования | GP7: 4 | GQ7: 03.06.2017 | GS7: 3 | GT7: 03.06.2017 | GV7: 4 | GW7: 03.06.2017 | GX7: Стандарты и нормы аудита | GY7: 4 | GZ7: 08.09.2014 | HB7: 5 | HC7: 11.10.2017 | HE7: 5 | HF7: 11.10.2017 | HH7: 4 | HI7: 11.10.2017 | HK7: 5 | HL7: 11.10.2017 | HN7: 4 | HO7: 11.10.2017 | HP7: Анализ наличия и эффективности использования основных средств в ООО "Минское"Костромского р-на Костромской обл. | HQ7: 5 | HR7: 11.10.2017 | HT7: 5 | HU7: 11.10.2017 | HW7: 6 | HX7: 2018-05-18 | HY7: 922 | HZ7: 4 | IA7: 2018-04-19 | IB7: 696 | IC7: 4 | ID7: 2018-02-09 | IE7: Z-7739714 | IF7: 6 | IG7: 2018-02-09 | IH7: Z-7739563 | II7: 6 | IJ7: 2018-02-09 | IK7: Z-7739561 | IL7: 3 | IM7: 2018-02-09 | IN7: Z-7739521 | IO7: 3 | IP7: 7739522-31 | IQ7: Учет расчетов с поставщиками, подрядчиками, покупателями и заказчиками в ЗАО "Шунга" Костромского района Костромской области | IR7: 3 | IS7: 2018-04-27 | IT7: 7739509-26 | IU7: 4 | IV7: 2018-02-09 | IW7: Z-7739505 | IX7: 6 | IY7: 2018-02-09 | IZ7: Z-7739549 | JA7: 4 | JB7: 2018-02-09 | JC7: Z-7739516 | JD7: 4 | JE7: 2018-04-19 | JF7: ФГБОУ ВО Костромская ГСХА, кафедра бухгалтерский учет, анализ | JG7: 4 | JH7: 2018-04-19 | JI7: ЗАО "Шунга" Костромского р-на Костромской обл. | JJ7: 3.98 | JL7: 11 | JM7: 24 | JN7: 14 | JO7: 12 | JP7: 49 | JQ7: =SUMIF(CC7:JG7,">0",Предметы!$CC$3:$JG$3) -> 7704 | JR7: 963
A8: =A7+1 -> 5 | B8: Калинина | C8: Анна | D8: Сергеевна | E8: Калинина А. С. | G8: Калининой | H8: Анне | I8: Сергеевне | J8: 1987-04-03 | K8: г. Мантурово Костромской обл. | L8: РФ | M8: ж | N8: ОГБОУ СПО "Буйский сельскохозяйственный техникум Костромской области" | O8: 2013 | P8: не замужем | Q8: Костромская обл., г. Мантурово, ул. Тихая, д. 24, кв. 2 | Y8: 14113 | Z8: Экономический | AA8: 38.03.01 | AB8: Экономика | AC8: Бухгалтерский учет, анализ и аудит | AD8: 4 года | AE8: БАКАЛАВР | AF8: 2-525 | AG8: 2014-08-21 | AH8: по договору с полным возмещением затрат | AI8: 000002889 | AJ8: 2014-08-13 | AX8: 2-532 | AY8: 2014-09-01 | AZ8: 2-571 | BA8: 2015-09-01 | BB8: 2-703 | BC8: 2017-09-01 | BJ8: 2-395 | BK8: 2018-05-21 | BL8: Государственный экзамен | BM8: 2018-05-31 | BN8: 5 | BR8: Бухгалтерский учет и анализ эффективности использования основных средств в ООО «Леонтьево» Мантуровского района Костромской области | BS8: 5 | BT8: 15 | BU8: 2018-06-25 | BW8: 36207 | BX8: 104406 | BY8: 0018146 | BZ8: 2018-06-29 | CA8: 4 | CB8: 246z | CC8: 3 | CD8: 2018-02-09 | CF8: 6 | CG8: 2018-02-09 | CI8: 3 | CJ8: 02.06.2015 | CL8: 6 | CM8: 29.05.2015 | CO8: 6 | CP8: 04.06.2015 | CR8: 3 | CS8: 06.06.2015 | CU8: 3 | CV8: 04.06.2015 | CX8: 3 | CY8: 03.06.2015 | DA8: 4 | DB8: 09.06.2015 | DD8: 6 | DE8: 22.05.2015 | DG8: 3 | DH8: 17.12.2015 | DJ8: 6 | DK8: 22.12.2015 | DM8: 4 | DN8: 29.12.2015 | DP8: 3 | DQ8: 26.05.2017 | DS8: 6 | DT8: 25.12.2015 | DV8: 3 | DW8: 28.12.2015 | DY8: 4 | DZ8: 13.04.2016 | EB8: 6 | EC8: 25.04.2016 | EE8: 3 | EF8: 22.04.2016 | EH8: 4 | EI8: 22.04.2016 | EK8: 5 | EL8: 21.04.2016 | ET8: 4 | EU8: 02.07.2016 | EV8: ФГБОУ ВО Костромская ГСХА, кафедра экономической кибернетики | EW8: 5 | EX8: 01.12.2016 | EZ8: 5 | FA8: 01.12.2016 | FC8: 3 | FD8: 01.12.2016 | FF8: 4 | FG8: 01.12.2016 | FI8: 4 | FJ8: 01.12.2016 | FL8: 4 | FM8: 24.11.2016 | FO8: 5 | FP8: 01.12.2016 | FR8: 5 | FS8: 30.11.2016 | FT8: Оптимальная специализация и сочетание отраслей | FU8: 6 | FV8: 03.06.2017 | FX8: 5 | FY8: 03.06.2017 | GA8: 4 | GB8: 03.06.2017 | GD8: 4 | GE8: 03.06.2017 | GF8: Предмет и метод бухгалтерского учета | GG8: 4 | GH8: 03.06.2017 | GJ8: 4 | GK8: 03.06.2017 | GM8: 4 | GN8: 03.06.2017 | GO8: Эффективность использования основных средств организации (предприятия) | GP8: 5 | GQ8: 03.06.2017 | GS8: 4 | GT8: 03.06.2017 | GV8: 4 | GW8: 03.06.2017 | GX8: Основные принципы проведения аудита | GY8: 4 | GZ8: 08.09.2014 | HB8: 5 | HC8: 11.10.2017 | HE8: 4 | HF8: 11.10.2017 | HH8: 4 | HI8: 11.10.2017 | HK8: 4 | HL8: 11.10.2017 | HN8: 5 | HO8: 11.10.2017 | HP8: Анализ эффективности использования основных средств в СПК "Леонтьево" Мантуровского р-на Костромской обл. | HQ8: 4 | HR8: 11.10.2017 | HT8: 4 | HU8: 11.10.2017 | HW8: 6 | HX8: 11.10.2017 | HZ8: 5 | IA8: 2018-01-25 | IC8: 3 | ID8: 2018-02-09 | IE8: Z-7739714 | IF8: 6 | IG8: 2018-02-09 | IH8: Z-7739563 | II8: 6 | IJ8: 2018-02-09 | IK8: Z-7739561 | IL8: 4 | IM8: 2018-02-09 | IN8: Z-7739521 | IO8: 4 | IP8: 2018-02-09 | IQ8: Организация учета основных средств на предприятии | IR8: 3 | IS8: 2018-02-09 | IT8: Z-7739509 | IU8: 4 | IV8: 2018-02-09 | IW8: Z-7739505 | IX8: 6 | IY8: 2018-02-09 | IZ8: Z-7739549 | JA8: 5 | JB8: 2018-02-09 | JC8: Z-7739516 | JD8: 4 | JE8: 2018-03-20 | JF8: ФГБОУ ВО Костромская ГСХА, кафедра бухгалтерский учет, анализ | JG8: 5 | JH8: 2018-04-18 | JI8: ООО "Леонтьево" Мантуровского р-на Костромской обл. | JJ8: 3.92 | JL8: 12 | JM8: 25 | JN8: 12 | JO8: 12 | JP8: 49 | JQ8: =SUMIF(CC8:JG8,">0",Предметы!$CC$3:$JG$3) -> 7704 | JR8: 963
A9: =Предметы!A8+1 -> 4 | B9: Кораблева (Муравьева) | C9: Юлия | D9: Александровна | E9: Кораблева (Муравьева) Ю. А. | G9: Кораблевой | H9: Юлии | I9: Александровне | J9: 1980-09-23 | K9: д. Челсма Галичского р-на Костромской обл. | L9: РФ | M9: ж | N9: Галичский аграрный техникум | O9: 2001 | P9: замужем | Q9: Костромская обл., Галичский р-н, д. Чёлсма, ул. Северная, д. 13 | Y9: 14138 | Z9: Экономический | AA9: 38.03.01 | AB9: Экономика | AC9: Бухгалтерский учет, анализ и аудит | AD9: 4 года | AE9: БАКАЛАВР | AF9: 2-525 | AG9: 2014-08-21 | AH9: по договору с полным возмещением затрат | AI9: 000002878 | AJ9: 2014-08-13 | AX9: 2-571 | AY9: 2015-09-01 | AZ9: 2-561 | BA9: 2016-09-01 | BB9: 2-339 | BC9: 2018-05-03 | BJ9: 2-395 | BK9: 2018-05-21 | BL9: Государственный экзамен | BM9: 2018-06-01 | BN9: 3 | BR9: Бухгалтерский учет и анализ продаж продукции в колхозе «За мир» Галичского района Костромской области | BS9: 3 | BT9: 35 | BU9: 2018-06-27 | BW9: 36208 | BX9: 104406 | BY9: 0018147 | BZ9: 2018-06-29 | CA9: 4 | CB9: 248z | CC9: 3 | CD9: 2018-02-09 | CE9: 77510120 | CF9: 6 | CG9: 2018-02-09 | CH9: 77510136 | CI9: 5 | CJ9: 02.06.2015 | CL9: 6 | CM9: 04.06.2015 | CO9: 6 | CP9: 09.06.2015 | CR9: 5 | CS9: 30.05.2015 | CU9: 5 | CV9: 04.06.2015 | CX9: 5 | CY9: 03.06.2015 | DA9: 3 | DB9: 09.06.2015 | DD9: 6 | DE9: 22.05.2015 | DG9: 4 | DH9: 17.12.2015 | DJ9: 6 | DK9: 22.12.2015 | DM9: 4 | DN9: 29.12.2015 | DP9: 4 | DQ9: 08.09.2016 | DS9: 6 | DT9: 25.12.2015 | DV9: 5 | DW9: 28.12.2015 | DY9: 4 | DZ9: 25.04.2016 | EB9: 6 | EC9: 25.04.2016 | EE9: 5 | EF9: 25.04.2016 | EH9: 3 | EI9: 25.04.2016 | EK9: 4 | EL9: 14.09.2016 | ET9: 5 | EU9: 02.07.2016 | EV9: ФГБОУ ВО Костромская ГСХА, кафедра экономической кибернетики | EW9: 4 | EX9: 17.10.2017 | EZ9: 4 | FA9: 2018-05-04 | FB9: 762 | FC9: 3 | FD9: 30.03.2017 | FF9: 4 | FG9: 29.06.2017 | FI9: 5 | FJ9: 01.12.2016 | FL9: 5 | FM9: 01.12.2016 | FO9: 4 | FP9: 2018-04-24 | FQ9: 748 | FR9: 4 | FS9: 17.10.2017 | FT9: Оптимизация структуры посевных площадей предприятия | FU9: 6 | FV9: 03.06.2017 | FX9: 4 | FY9: 03.06.2017 | GA9: 5 | GB9: 03.06.2017 | GD9: 4 | GE9: 05.09.2017 | GF9: Основы организации в ведения бухгалтерского учета на предприятии | GG9: 5 | GH9: 03.06.2017 | GJ9: 5 | GK9: 03.06.2017 | GM9: 4 | GN9: 25.12.2017 | GO9: Эффективность производства молока в СПК «Маяк» | GP9: 5 | GQ9: 03.06.2017 | GS9: 5 | GT9: 03.06.2017 | GV9: 4 | GW9: 05.09.2017 | GX9: Планирование аудита | GY9: 4 | GZ9: 2017-08-31 | HB9: 4 | HC9: 2018-04-16 | HD9: 657 | HE9: 5 | HF9: 2018-04-24 | HG9: 747 | HH9: 4 | HI9: 2018-03-29 | HJ9: 588 | HK9: 5 | HL9: 11.10.2017 Z-7759525 | HN9: 5 | HO9: 2018-04-19 | HP9: Анализ наличия и эффективности использования основных средств в СПК "Маяк" Галичского района Костромской области | HQ9: 5 | HR9: 2018-02-21 | HS9: 492 | HT9: 4 | HU9: 2018-04-16 | HV9: 649 | HW9: 6 | HX9: 2018-04-28 | HY9: 726 | HZ9: 4 | IA9: 2018-01-25 | IC9: 5 | ID9: 2018-02-09 | IE9: 7759714 | IF9: 6 | IG9: 2018-02-09 | IH9: 7759563 | II9: 6 | IJ9: 2018-02-09 | IK9: 7759561 | IL9: 3 | IM9: 2018-05-07 | IN9: 7759521-26 | IO9: 3 | IP9: 2018-04-28 | IQ9: Организация бухгалтерского учета в СПК "Маяк" Галичского района Костромской области | IR9: 4 | IS9: 2018-04-16 | IT9: 7759509-8 | IU9: 4 | IV9: 2018-04-02 | IW9: 7759505-6 | IX9: 6 | IY9: 2018-04-02 | IZ9: 7759549-5 | JA9: 5 | JB9: 2018-02-09 | JC9: 7759516 | JD9: 5 | JE9: 2018-03-20 | JF9: ФГБОУ ВО Костромская ГСХА, кафедра бухгалтерский учет и анализ | JG9: 4 | JH9: 2018-04-05 | JI9: Колхоз "За Мир" Галичского р-на Костромской обл. | JJ9: 4.22 | JL9: 6 | JM9: 22 | JN9: 21 | JO9: 12 | JP9: 49 | JQ9: =SUMIF(CC9:JG9,">0",Предметы!$CC$3:$JG$3) -> 7704 | JR9: 963
A10: =A9+1 -> 5 | B10: Куриченкова | C10: Наталья | D10: Алексеевна | E10: Куриченкова Н. А. | G10: Куриченковой | H10: Наталье | I10: Алексеевне | J10: 1968-07-10 | K10: с. Николо-Макарово Макарьевского р-на Костромской обл. | L10: РФ | M10: ж | N10: Вельский учетно-экономический техникум | O10: 1989 | P10: замужем | Q10: г. Кострома, мкр Давыдовский-3, д. 9, кв. 209 | Y10: 14118 | Z10: Экономический | AA10: 38.03.01 | AB10: Экономика | AC10: Бухгалтерский учет, анализ и аудит | AD10: 4 года | AE10: БАКАЛАВР | AF10: 2-525 | AG10: 2014-08-21 | AH10: по договору с полным возмещением затрат | AI10: 000002888 | AJ10: 2014-08-13 | AX10: 2-571 | AY10: 2015-09-01 | AZ10: 2-561 | BA10: 2016-09-01 | BB10: 2-703 | BC10: 2017-09-01 | BJ10: 2-395 | BK10: 2018-05-21 | BL10: Государственный экзамен | BM10: 2018-05-31 | BN10: 5 | BR10: Бухгалтерский учет расчетов с поставщиками, покупателями и анализ дебиторской и кредиторской задолженности в СПК «Новая Русь» Макарьевского района Костромской области | BS10: 5 | BT10: 18 | BU10: 2018-06-26 | BW10: 36209 | BX10: 104406 | BY10: 0018148 | BZ10: 2018-06-29 | CA10: 4 | CB10: 246z | CC10: 5 | CD10: 2018-02-09 | CF10: 6 | CG10: 2018-02-09 | CI10: 3 | CJ10: 02.06.2015 | CL10: 6 | CM10: 04.06.2015 | CO10: 6 | CP10: 28.05.2015 | CR10: 3 | CS10: 30.05.2015 | CU10: 4 | CV10: 04.06.2015 | CX10: 3 | CY10: 03.06.2015 | DA10: 5 | DB10: 09.06.2015 | DD10: 6 | DE10: 22.05.2015 | DG10: 3 | DH10: 25.12.2015 | DJ10: 6 | DK10: 22.12.2015 | DM10: 5 | DN10: 29.12.2015 | DP10: 4 | DQ10: 26.12.2015 | DS10: 6 | DT10: 25.12.2015 | DV10: 3 | DW10: 28.12.2015 | DY10: 4 | DZ10: 13.04.2016 | EB10: 6 | EC10: 25.04.2016 | EE10: 3 | EF10: 22.04.2016 | EH10: 4 | EI10: 22.04.2016 | EK10: 5 | EL10: 21.04.2016 | ET10: 5 | EU10: п/зач 08.09.2014 | EW10: 4 | EX10: 01.12.2016 | EZ10: 4 | FA10: 01.12.2016 | FC10: 4 | FD10: 01.12.2016 | FF10: 4 | FG10: 01.12.2016 | FI10: 4 | FJ10: 01.12.2016 | FL10: 4 | FM10: 24.11.2016 | FO10: 4 | FP10: 01.12.2016 | FR10: 5 | FS10: 30.11.2016 | FT10: Оптимизация структуры кормопроизводства предприятия | FU10: 6 | FV10: 03.06.2017 | FX10: 5 | FY10: 03.06.2017 | GA10: 4 | GB10: 03.06.2017 | GD10: 5 | GE10: 03.06.2017 | GF10: Бухгалтерский баланс и бухгалтерская отчентость | GG10: 4 | GH10: 03.06.2017 | GJ10: 5 | GK10: 03.06.2017 | GM10: 4 | GN10: 03.06.2017 | GO10: Эффективность использования земельных ресурсов в ООО "Сущево" | GP10: 5 | GQ10: 03.06.2017 | GS10: 4 | GT10: 03.06.2017 | GV10: 5 | GW10: 03.06.2017 | GX10: Организация и осуществление внутреннего аудита | GY10: 5 | GZ10: 08.09.2014 | HB10: 5 | HC10: 11.10.2017 | HE10: 5 | HF10: 11.10.2017 | HH10: 5 | HI10: 11.10.2017 | HK10: 4 | HL10: 11.10.2017 | HN10: 5 | HO10: 11.10.2017 | HP10: Анализ трудовых ресурсов и их использования в ООО "Сущево"Костромского р-на Костромской обл. | HQ10: 5 | HR10: 11.10.2017 | HT10: 5 | HU10: 11.10.2017 | HW10: 6 | HX10: 11.10.2017 | HZ10: 5 | IA10: 08.09.2014 | IC10: 4 | ID10: 2018-02-09 | IE10: Z-7739714 | IF10: 6 | IG10: 2018-02-09 | IH10: Z-7739563 | II10: 6 | IJ10: 2018-02-09 | IK10: Z-7739561 | IL10: 5 | IM10: 2018-02-09 | IN10: Z-7739521 | IO10: 5 | IP10: 2018-02-09 | IQ10: Учет расчетов с поставщиками и подрядчиками, покупателями и заказчиками в организации | IR10: 4 | IS10: 2018-02-09 | IT10: Z-7739509 | IU10: 5 | IV10: 2018-02-09 | IW10: Z-7739505 | IX10: 6 | IY10: 2018-02-09 | IZ10: Z-7739549 | JA10: 5 | JB10: 2018-02-09 | JC10: Z-7739516 | JD10: 5 | JE10: 2018-03-26 | JF10: ФГБОУ ВО Костромская ГСХА, кафедра бухгалтерский учет, анализ | JG10: 5 | JH10: 2018-04-20 | JI10: СПК "Новая Русь" Макарьевского р-на Костромской обл. | JJ10: 4.3 | JL10: 6 | JM10: 18 | JN10: 25 | JO10: 12 | JP10: 49 | JQ10: =SUMIF(CC10:JG10,">0",Предметы!$CC$3:$JG$3) -> 7704 | JR10: 963
A11: =A10+1 -> 6 | B11: Кучина | C11: Ксения | D11: Юрьевна | E11: Кучина К. Ю. | G11: Кучиной | H11: Ксении | I11: Юрьевне | J11: 1995-04-28 | K11: д. Еремейцево Ростовского р-на Ярославской обл. | L11: РФ | M11: ж | N11: Ярославский аграрно-политехнический колледж | O11: 2014 | P11: не замужем | Q11: г. Кострома, мкр Давыдовский-2, д. 49 | Y11: 14119 | Z11: Экономический | AA11: 38.03.01 | AB11: Экономика | AC11: Бухгалтерский учет, анализ и аудит | AD11: 4 года | AE11: БАКАЛАВР | AF11: 2-525 | AG11: 2014-08-21 | AH11: по договору с полным возмещением затрат | AI11: 000002986 | AJ11: 2014-08-18 | AS11: 2-565 | AT11: 2018-06-25 | AU11: по семейным обстоятельствам | AX11: 2-571 | AY11: 2015-09-01 | AZ11: 2-561 | BA11: 2016-09-01 | BB11: 2-703 | BC11: 2017-09-01 | BJ11: 2-395 | BK11: 2018-05-21 | BL11: Государственный экзамен | BM11: 2018-05-31 | BN11: 4 | BR11: Формирование и анализ показателей отчета о финансовых результатах в СПК Колхоз «Родина» Красносельского района Костромской области | CA11: 4 | CB11: АО | CC11: 3 | CD11: 2018-02-09 | CF11: 6 | CG11: 2018-02-09 | CI11: 3 | CJ11: 02.06.2015 | CL11: 6 | CM11: 04.06.2015 | CO11: 6 | CP11: 29.06.2015 | CR11: 3 | CS11: 06.06.2015 | CU11: 3 | CV11: 04.06.2015 | CX11: 3 | CY11: 03.06.2015 | DA11: 5 | DB11: 09.06.2015 | DD11: 6 | DE11: 22.05.2015 | DG11: 3 | DH11: 17.12.2015 | DJ11: 6 | DK11: 22.12.2015 | DM11: 5 | DN11: 29.12.2015 | DP11: 3 | DQ11: 26.12.2015 | DS11: 6 | DT11: 25.12.2015 | DV11: 3 | DW11: 28.12.2015 | DY11: 4 | DZ11: 13.04.2016 | EB11: 6 | EC11: 25.04.2016 | EE11: 3 | EF11: 22.04.2016 | EH11: 3 | EI11: 22.04.2016 | EK11: 4 | EL11: 21.04.2016 | ET11: 5 | EU11: п/зач 08.09.2014 | EW11: 4 | EX11: 01.12.2016 | EZ11: 4 | FA11: 01.12.2016 | FC11: 3 | FD11: 01.12.2016 | FF11: 3 | FG11: 01.12.2016 | FI11: 4 | FJ11: 01.12.2016 | FL11: 4 | FM11: 24.11.2016 | FO11: 3 | FP11: 01.12.2016 | FR11: 3 | FS11: 30.11.2016 | FT11: Оптимальная специализация и сочетание отраслей | FU11: 6 | FV11: 03.06.2017 | FX11: 3 | FY11: 03.06.2017 | GA11: 4 | GB11: 03.06.2017 | GD11: 3 | GE11: 03.06.2017 | GF11: Система нормативного регулирования бухгалтерского учета в России | GG11: 4 | GH11: 03.06.2017 | GJ11: 3 | GK11: 03.06.2017 | GM11: 4 | GN11: 03.06.2017 | GO11: Формирование и использование прибыли организации (предприятия) | GP11: 4 | GQ11: 03.06.2017 | GS11: 3 | GT11: 03.06.2017 | GV11: 4 | GW11: 03.06.2017 | GX11: Образование аудитора и контроль качества проведения аудита | GY11: 5 | GZ11: 08.09.2014 | HB11: 4 | HC11: 11.10.2017 | HE11: 3 | HF11: 11.10.2017 | HH11: 3 | HI11: 11.10.2017 | HK11: 4 | HL11: 11.10.2017 | HN11: 3 | HO11: 11.10.2017 | HP11: Анализ персонала и эффективности использования трудовых ресурсов в СПК "Яковлевское" Костромского р-на Костромской обл. | HQ11: 5 | HR11: 11.10.2017 | HT11: 4 | HU11: 11.10.2017 | HW11: 6 | HX11: 08.02.2018 | HZ11: 5 | IA11: 08.09.2014 | IC11: 3 | ID11: 2018-02-09 | IE11: Z-7739714 | IF11: 6 | IG11: 2018-02-09 | IH11: Z-7739563 | II11: 6 | IJ11: 2018-02-09 | IK11: Z-7739561 | IL11: 3 | IM11: 2018-02-09 | IN11: Z-7739521 | IO11: 3 | IP11: 2018-02-09 | IQ11: Организация учета финансовых результатов на предприятии | IR11: 4 | IS11: 2018-02-09 | IT11: Z-7739509 | IU11: 4 | IV11: 2018-02-09 | IW11: Z-7739505 | IX11: 6 | IY11: 2018-02-09 | IZ11: Z-7739549 | JA11: 4 | JB11: 2018-02-09 | JC11: Z-7739516 | JD11: 5 | JE11: 2018-03-20 | JF11: ФГБОУ ВО Костромская ГСХА, кафедра бухгалтерский учет, анализ | JG11: 5 | JH11: 2018-03-31 | JI11: СПК Колхоз "Родина" Красносельского р-на Костромской обл. | JJ11: 3.6 | JL11: 24 | JM11: 17 | JN11: 8 | JO11: 12 | JP11: 49 | JQ11: =SUMIF(CC11:JG11,">0",Предметы!$CC$3:$JG$3) -> 7704 | JR11: 963
A12: =Предметы!A9+1 -> 5 | B12: Павлова | C12: Юлия | D12: Андреевна | E12: Павлова Ю. А. | G12: Павловой | H12: Юлии | I12: Андреевне | J12: 1995-06-03 | K12: д. Добрецово Буйского р-на Костромской обл. | L12: РФ | M12: ж | N12: ОГБ ПОУ "Буйский техникум градостроительства и предпринимательства Костромской обл. | O12: 2014 | P12: не замужем | Q12: Костромская обл., г.Буй, ул. Ленских Событий, д. 81 | Y12: 14122 | Z12: Экономический | AA12: 38.03.01 | AB12: Экономика | AC12: Бухгалтерский учет, анализ и аудит | AD12: 4 года | AE12: БАКАЛАВР | AF12: 2-525 | AG12: 2014-08-21 | AH12: по договору с полным возмещением затрат | AI12: 000003037 | AJ12: 2014-08-21 | AX12: 2-571 | AY12: 2015-09-01 | AZ12: 2-561 | BA12: 2016-09-01 | BB12: 2-339 | BC12: 2018-05-03 | BJ12: 2-395 | BK12: 2018-05-21 | BL12: Государственный экзамен | BM12: 2018-06-01 | BN12: 3 | BR12: Бухгалтерский учет затрат и анализ себестоимости продукции в ООО «Воскресенский сыродел» Буйского района Костромской области | BS12: 3 | BT12: 28 | BU12: 2018-06-27 | BW12: 36212 | BX12: 104406 | BY12: 0018150 | BZ12: 2018-06-29 | CA12: 4 | CB12: 248z | CC12: 3 | CD12: 2018-02-09 | CE12: 77510120 | CF12: 6 | CG12: 2018-05-18 | CH12: 77510136-28 | CI12: 3 | CJ12: 02.06.2015 | CL12: 6 | CM12: 04.06.2015 | CO12: 6 | CP12: 28.05.2015 | CR12: 3 | CS12: 30.05.2015 | CU12: 3 | CV12: 04.06.2015 | CX12: 4 | CY12: 03.06.2015 | DA12: 4 | DB12: 09.06.2015 | DD12: 6 | DE12: 22.05.2015 | DG12: 3 | DH12: 20.09.2016 | DJ12: 6 | DK12: 22.12.2015 | DM12: 4 | DN12: 29.12.2015 | DP12: 4 | DQ12: 08.09.2016 | DS12: 6 | DT12: 25.12.2015 | DV12: 3 | DW12: 28.12.2015 | DY12: 4 | DZ12: 25.04.2016 | EB12: 6 | EC12: 25.04.2016 | EE12: 3 | EF12: 13.09.2016 | EH12: 3 | EI12: 31.08.2016 | EK12: 4 | EL12: 14.09.2016 | ET12: 4 | EU12: п/зач 08.09.2014 | EW12: 4 | EX12: 01.12.2016 | EZ12: 4 | FA12: 17.10.2017 | FC12: 3 | FD12: 19.06.2017 | FF12: 4 | FG12: 06.03.2017 | FI12: 5 | FJ12: 01.12.2016 | FL12: 5 | FM12: 17.10.2017 | FO12: 3 | FP12: 2018-05-15 | FQ12: 853 | FR12: 4 | FS12: 2018-05-08 | FT12: Оптимизация структуры кормопроизводства | FU12: 6 | FV12: 20.09.2017 | FX12: 4 | FY12: 03.06.2017 | GA12: 5 | GB12: 05.09.2017 | GD12: 5 | GE12: 31.12.2017 | GF12: Основы организации в ведения бухгалтерского учета на предприятии | GG12: 5 | GH12: 03.06.2017 | GJ12: 4 | GK12: 26.12.2017 | GM12: 4 | GN12: 26.12.2017 | GO12: Эффективность переработки конкретного вида продукции в организации (предприятии) | GP12: 5 | GQ12: 18.12.2017 | GS12: 5 | GT12: 05.09.2017 | GV12: 4 | GW12: 2018-01-30 | GX12: Организация аудиторской деятельности в Российской Федерации | GY12: 3 | GZ12: 08.09.2014 | HB12: 5 | HC12: 2017-10-11 | HD12: Z-7759487 | HE12: 5 | HF12: 2018-05-04 | HG12: 763 | HH12: 4 | HI12: 2018-03-20 | HJ12: 554 | HK12: 5 | HL12: 2018-05-16 | HM12: 865 | HN12: 4 | HO12: 2018-05-16 | HP12: Анализ эффективности использования МТП на примере СПК "Яковлевское" Костромского р-на Костромской обл." | HQ12: 4 | HR12: 2018-02-21 | HS12: 491 | HT12: 5 | HU12: 2018-04-16 | HV12: 650 | HW12: 6 | HX12: 2018-04-28 | HY12: 728 | HZ12: 3 | IA12: п/зач 08.09.2014 | IC12: 4 | ID12: 2018-04-17 | IE12: 7759714-12 | IF12: 6 | IG12: 2018-02-09 | IH12: 7759563 | II12: 6 | IJ12: 2018-05-04 | IK12: 764 | IL12: 3 | IM12: 2018-05-18 | IO12: 3 | IP12: 2018-05-18 | IQ12: Организация бухгалтерского учета | IR12: 3 | IS12: 2018-04-27 | IT12: 775909-20 | IU12: 5 | IV12: 2018-02-09 | IW12: 7759505 | IX12: 6 | IY12: 2018-04-23 | IZ12: 7758459-18 | JA12: 5 | JB12: 2018-02-09 | JC12: 7759516 | JD12: 4 | JE12: 2018-04-19 | JF12: ФГБОУ ВО Костромская ГСХА, кафедра бухгалтерский учет и анализ | JG12: 4 | JH12: 2018-04-19 | JI12: ООО "Воскресенский сыродел" Буйского р-на Костромской обл. | JJ12: 3.88 | JL12: 15 | JM12: 21 | JN12: 13 | JO12: 12 | JP12: 49 | JQ12: =SUMIF(CC12:JG12,">0",Предметы!$CC$3:$JG$3) -> 7704 | JR12: 963
A13: =Предметы!A10+1 -> 6 | B13: Попова | C13: Алёна | D13: Александровна | E13: Попова А. А. | G13: Поповой | H13: Алёне | I13: Александровне | J13: 1994-09-18 | K13: г. Кострома | L13: РФ | M13: ж | N13: Костромской технологический техникум | O13: 2014 | P13: не замужем | Q13: г. Кострома, мкр. Паново, д. 23, кв. 15 | Y13: 14124 | Z13: Экономический | AA13: 38.03.01 | AB13: Экономика | AC13: Бухгалтерский учет, анализ и аудит | AD13: 4 года | AE13: БАКАЛАВР | AF13: 2-525 | AG13: 2014-08-21 | AH13: по договору с полным возмещением затрат | AI13: 000002906 | AJ13: 2014-08-14 | AX13: 2-571 | AY13: 2015-09-01 | AZ13: 2-561 | BA13: 2016-09-01 | BB13: 2-703 | BC13: 2017-09-01 | BJ13: 2-395 | BK13: 2018-05-21 | BL13: Государственный экзамен | BM13: 2018-05-31 | BN13: 4 | BR13: Бухгалтерский учет налогов и сборов и анализ налоговой нагрузки в СПК Колхоз «Родина» Красносельского района Костромской области | BS13: 4 | BT13: 33 | BU13: 2018-06-27 | BW13: 36214 | BX13: 104406 | BY13: 0018152 | BZ13: 2018-06-29 | CA13: 4 | CB13: 246z | CC13: 3 | CD13: 2018-02-09 | CF13: 6 | CG13: 2018-02-09 | CI13: 3 | CJ13: 02.06.2015 | CL13: 6 | CM13: 04.06.2015 | CO13: 6 | CP13: 29.05.2015 | CR13: 3 | CS13: 09.06.2015 | CU13: 3 | CV13: 04.06.2015 | CX13: 3 | CY13: 03.06.2015 | DA13: 4 | DB13: 09.06.2015 | DD13: 6 | DE13: 22.05.2015 | DG13: 3 | DH13: 17.12.2015 | DJ13: 6 | DK13: 22.12.2015 | DM13: 4 | DN13: 29.12.2015 | DP13: 3 | DQ13: 26.12.2015 | DS13: 6 | DT13: 25.12.2015 | DV13: 3 | DW13: 28.12.2015 | DY13: 5 | DZ13: 13.04.2016 | EB13: 6 | EC13: 25.04.2016 | EE13: 3 | EF13: 22.04.2016 | EH13: 3 | EI13: 22.04.2016 | EK13: 4 | EL13: 21.04.2016 | ET13: 3 | EU13: п/зач 08.09.2014 | EW13: 4 | EX13: 01.12.2016 | EZ13: 4 | FA13: 01.12.2016 | FC13: 3 | FD13: 01.12.2016 | FF13: 3 | FG13: 01.12.2016 | FI13: 3 | FJ13: 01.12.2016 | FL13: 4 | FM13: 24.11.2016 | FO13: 3 | FP13: 01.12.2016 | FR13: 3 | FS13: 30.11.2016 | FT13: Оптимальная специализация и сочетание отраслей | FU13: 6 | FV13: 03.06.2017 | FX13: 3 | FY13: 03.06.2017 | GA13: 4 | GB13: 03.06.2017 | GD13: 3 | GE13: 2018-05-04 | GF13: Принцип двойной записи в синтетическом и аналитическом учете | GG13: 3 | GH13: 03.06.2017 | GJ13: 3 | GK13: 03.06.2017 | GM13: 3 | GN13: 03.06.2017 | GO13: Пути повышения финансовых результатов организации (предприятия) | GP13: 3 | GQ13: 03.06.2017 | GS13: 4 | GT13: 03.06.2017 | GV13: 4 | GW13: 03.06.2017 | GX13: Правовое регулирование аудиторской деятельности в РФ | GY13: 4 | GZ13: 08.09.2014 | HB13: 3 | HC13: 11.10.2017 | HE13: 4 | HF13: 11.10.2017 | HH13: 3 | HI13: 11.10.2017 | HK13: 4 | HL13: 11.10.2017 | HN13: 4 | HO13: 11.10.2017 | HP13: Анализ финансовых результатов от продажи продукции в ОАО ПЗ "Чернопенский" Костромского р-на Костромской обл | HQ13: 4 | HR13: 11.10.2017 | HT13: 4 | HU13: 11.10.2017 | HW13: 6 | HX13: 09.02.2018 | HZ13: 3 | IA13: 08.09.2014 | IC13: 3 | ID13: 2018-02-09 | IE13: Z-7739714 | IF13: 6 | IG13: 2018-02-09 | IH13: Z-7739563 | II13: 6 | IJ13: 2018-02-09 | IK13: Z-7739561 | IL13: 3 | IM13: 2018-02-09 | IN13: Z-7739521 | IO13: 3 | IP13: 2018-05-04 | IQ13: Бухгалтерский учет расчетов с бюджетами внебюджетного фонда в СПК Колхоз "Родина" | IR13: 3 | IS13: 2018-02-09 | IT13: Z-7739509 | IU13: 3 | IV13: 2018-02-09 | IW13: Z-7739505 | IX13: 6 | IY13: 2018-02-09 | IZ13: Z-7739549 | JA13: 4 | JB13: 2018-02-09 | JC13: Z-7739516 | JD13: 4 | JE13: 2018-04-02 | JF13: ФГБОУ ВО Костромская ГСХА, кафедра бухгалтерский учет, анализ | JG13: 4 | JH13: 2018-05-05 | JI13: СПК Колхоз "Родина" Красносельского р-на Костромской обл. | JJ13: 3.34 | JL13: 30 | JM13: 18 | JN13: 1 | JO13: 12 | JP13: 49 | JQ13: =SUMIF(CC13:JG13,">0",Предметы!$CC$3:$JG$3) -> 7704 | JR13: 963
A14: =A13+1 -> 7 | B14: Посыпкина | C14: Анастасия | D14: Валерьевна | E14: Посыпкина А. В. | G14: Посыпкиной | H14: Анастасии | I14: Валерьевне | J14: 1995-09-06 | K14: г. Буй Костромской обл. | L14: РФ | M14: ж | N14: Буйский техникум гра | O14: 2014 | P14: не замужем | Q14: Костромская обл., Буйский р-н, с. Ликурга, ул. Овражная, д. 14 | Y14: 14125 | Z14: Экономический | AA14: 38.03.01 | AB14: Экономика | AC14: Бухгалтерский учет, анализ и аудит | AD14: 4 года | AE14: БАКАЛАВР | AF14: 2-525 | AG14: 2014-08-21 | AH14: по договору с полным возмещением затрат | AI14: 000002912 | AJ14: 2014-08-14 | AX14: 2-571 | AY14: 2015-09-01 | AZ14: 2-561 | BA14: 2016-09-01 | BB14: 2-703 | BC14: 2017-09-01 | BJ14: 2-395 | BK14: 2018-05-21 | BL14: Государственный экзамен | BM14: 2018-05-31 | BN14: 5 | BR14: Бухгалтерский учет и анализ продаж продукции в ЗАО «Агрофирма «Пахма» Ярославского района Ярославской области | BS14: 5 | BT14: 19 | BU14: 2018-06-26 | BW14: 36215 | BX14: 104406 | BY14: 0018153 | BZ14: 2018-06-29 | CA14: 4 | CB14: 246z | CC14: 4 | CD14: 2018-02-09 | CF14: 6 | CG14: 2018-02-09 | CI14: 3 | CJ14: 02.06.2015 | CL14: 6 | CM14: 04.06.2015 | CO14: 6 | CP14: 05.10.2017 | CR14: 3 | CS14: 30.05.2015 | CU14: 3 | CV14: 04.06.2015 | CX14: 3 | CY14: 03.06.2015 | DA14: 4 | DB14: 09.06.2015 | DD14: 6 | DE14: 22.05.2015 | DG14: 3 | DH14: 25.12.2015 | DJ14: 6 | DK14: 22.12.2015 | DM14: 4 | DN14: 29.12.2015 | DP14: 3 | DQ14: 26.12.2015 | DS14: 6 | DT14: 25.12.2015 | DV14: 3 | DW14: 28.12.2015 | DY14: 3 | DZ14: 13.04.2016 | EB14: 6 | EC14: 25.04.2016 | EE14: 3 | EF14: 22.04.2016 | EH14: 4 | EI14: 22.04.2016 | EK14: 4 | EL14: 21.04.2016 | ET14: 3 | EU14: п/зач 08.09.2014 | EW14: 4 | EX14: 01.12.2016 | EZ14: 4 | FA14: 01.12.2016 | FC14: 3 | FD14: 01.12.2016 | FF14: 3 | FG14: 01.12.2016 | FI14: 3 | FJ14: 01.12.2016 | FL14: 4 | FM14: 24.11.2016 | FO14: 3 | FP14: 01.12.2016 | FR14: 3 | FS14: 30.11.2016 | FT14: Оптимальная специализация и сочетание отраслей | FU14: 6 | FV14: 03.06.2017 | FX14: 3 | FY14: 03.06.2017 | GA14: 4 | GB14: 03.06.2017 | GD14: 3 | GE14: 03.06.2017 | GF14: Учет хозяйственных процессов | GG14: 3 | GH14: 03.06.2017 | GJ14: 3 | GK14: 03.06.2017 | GM14: 3 | GN14: 03.06.2017 | GO14: Эффективность использования земельных ресурсов организации (предприятия0 | GP14: 3 | GQ14: 03.06.2017 | GS14: 3 | GT14: 03.06.2017 | GV14: 4 | GW14: 03.06.2017 | GX14: Образование аудитора и контроль качества проведения аудита | GY14: 3 | GZ14: 08.09.2014 | HB14: 3 | HC14: 11.10.2017 | HE14: 4 | HF14: 11.10.2017 | HH14: 4 | HI14: 11.10.2017 | HK14: 3 | HL14: 11.10.2017 | HN14: 3 | HO14: 11.10.2017 | HP14: Комплексный анализ продаж продукции в ОАО "Зарница" Буйского р-на Костромской обл. | HQ14: 5 | HR14: 11.10.2017 | HT14: 4 | HU14: 11.10.2017 | HW14: 6 | HX14: 09.02.2018 | HZ14: 3 | IA14: 08.09.2014 | IC14: 4 | ID14: 2018-02-09 | IE14: Z-7739714 | IF14: 6 | IG14: 2018-02-09 | IH14: Z-7739563 | II14: 6 | IJ14: 2018-02-09 | IK14: Z-7739561 | IL14: 3 | IM14: 2018-02-09 | IN14: Z-7739521 | IO14: 4 | IP14: 2018-02-09 | IQ14: Учет продаж продукции (работ, услуг) в ЗАО "Агрофирма "Пахма" Ярославского района Ярославской области | IR14: 4 | IS14: 2018-02-09 | IT14: Z-7739509 | IU14: 4 | IV14: 2018-02-09 | IW14: Z-7739505 | IX14: 6 | IY14: 2018-02-09 | IZ14: Z-7739549 | JA14: 4 | JB14: 2018-02-09 | JC14: Z-7739516 | JD14: 4 | JE14: 2018-03-20 | JF14: ФГБОУ ВО Костромская ГСХА, кафедра бухгалтерский учет, анализ | JG14: 4 | JH14: 2018-04-11 | JI14: ЗАО "Агрофирма "Пахма" Ярославского р-на Ярославской обл. | JJ14: 3.38 | JL14: 28 | JM14: 20 | JN14: 1 | JO14: 12 | JP14: 49 | JQ14: =SUMIF(CC14:JG14,">0",Предметы!$CC$3:$JG$3) -> 7704 | JR14: 963
A15: =A14+1 -> 8 | B15: Румянцева | C15: Ульяна | D15: Георгиевна | E15: Румянцева У. Г. | G15: Румянцевой | H15: Ульяне | I15: Георгиевне | J15: 1981-05-06 | K15: п. Карица Грязовецкого р-на Вологодской обл. | L15: РФ | M15: ж | N15: ОГБ ПОУ "Буйский техникум градостроительства и предпринимательства Костромской области" | O15: 2014 | P15: не замужем | Q15: Вологодская обл., п. Вохтога, ул. Колхозная, д. 64, кв. 33 | Y15: 14126 | Z15: Экономический | AA15: 38.03.01 | AB15: Экономика | AC15: Бухгалтерский учет, анализ и аудит | AD15: 4 года | AE15: БАКАЛАВР | AF15: 2-525 | AG15: 2014-08-21 | AH15: по договору с полным возмещением затрат | AI15: 000002794 | AJ15: 2014-08-08 | AX15: 2-571 | AY15: 2015-09-01 | AZ15: 2-561 | BA15: 2016-09-01 | BB15: 2-703 | BC15: 2017-09-01 | BJ15: 2-395 | BK15: 2018-05-21 | BL15: Государственный экзамен | BM15: 2018-05-31 | BN15: 4 | BR15: Бухгалтерский учет и анализ продаж продукции животноводства в СПК «Анохинский» Грязовецкого района Вологодской области | BS15: 3 | BT15: 20 | BU15: 2018-06-26 | BW15: 36216 | BX15: 104406 | BY15: 0018154 | BZ15: 2018-06-29 | CA15: 4 | CB15: 246z | CC15: 4 | CD15: 2018-02-09 | CF15: 6 | CG15: 2018-02-09 | CI15: 4 | CJ15: 02.06.2015 | CL15: 6 | CM15: 04.06.2015 | CO15: 6 | CP15: 28.05.2015 | CR15: 3 | CS15: 30.05.2015 | CU15: 3 | CV15: 04.06.2015 | CX15: 3 | CY15: 03.06.2015 | DA15: 5 | DB15: 09.06.2015 | DD15: 6 | DE15: 22.05.2015 | DG15: 4 | DH15: 25.12.2015 | DJ15: 6 | DK15: 22.12.2015 | DM15: 5 | DN15: 29.12.2015 | DP15: 4 | DQ15: 26.12.2015 | DS15: 6 | DT15: 25.12.2015 | DV15: 3 | DW15: 28.12.2015 | DY15: 4 | DZ15: 13.04.2016 | EB15: 6 | EC15: 25.04.2016 | EE15: 3 | EF15: 22.04.2016 | EH15: 3 | EI15: 22.04.2016 | EK15: 5 | EL15: 21.04.2016 | ET15: 3 | EU15: п/зач 08.09.2014 | EW15: 5 | EX15: 01.12.2016 | EZ15: 5 | FA15: 01.12.2016 | FC15: 3 | FD15: 01.12.2016 | FF15: 3 | FG15: 01.12.2016 | FI15: 4 | FJ15: 01.12.2016 | FL15: 4 | FM15: 24.11.2016 | FO15: 3 | FP15: 01.12.2016 | FR15: 3 | FS15: 30.11.2016 | FT15: Оптимизация структуры кормопроизводства предприятия | FU15: 6 | FV15: 03.06.2017 | FX15: 5 | FY15: 03.06.2017 | GA15: 4 | GB15: 03.06.2017 | GD15: 4 | GE15: 03.06.2017 | GF15: Бухгалтерская служба: права, обязанности и ответственность бухгалтерских работников | GG15: 4 | GH15: 03.06.2017 | GJ15: 4 | GK15: 03.06.2017 | GM15: 4 | GN15: 03.06.2017 | GO15: Эффективность использования основных средств организации (предприятия) | GP15: 4 | GQ15: 03.06.2017 | GS15: 4 | GT15: 03.06.2017 | GV15: 4 | GW15: 03.06.2017 | GX15: Аудит готовой продукции в СПК "Русь" Макарьевского района Костромской области | GY15: 5 | GZ15: 08.09.2014 | HB15: 5 | HC15: 11.10.2017 | HE15: 5 | HF15: 11.10.2017 | HH15: 5 | HI15: 11.10.2017 | HK15: 3 | HL15: 11.10.2017 | HN15: 4 | HO15: 11.10.2017 | HP15: Комплексный анализ продаж продукции в СПК "Анохинский" Грязовецкого р-на Вологодской обл. | HQ15: 5 | HR15: 11.10.2017 | HT15: 5 | HU15: 11.10.2017 | HW15: 6 | HX15: 11.10.2017 | HZ15: 4 | IA15: 08.09.2014 | IC15: 3 | ID15: 2018-02-09 | IE15: Z-7739714 | IF15: 6 | IG15: 2018-02-09 | IH15: Z-7739563 | II15: 6 | IJ15: 2018-02-09 | IK15: Z-7739561 | IL15: 3 | IM15: 2018-04-11 | IN15: 7739522-12 | IO15: 3 | IP15: 2018-04-11 | IQ15: Учет продаж продукции (работ, услуг) в организации СПК "Анохинский" Грязовецкого района Вологодской области | IR15: 3 | IS15: 2018-04-16 | IT15: 7739509-16 | IU15: 4 | IV15: 2018-02-09 | IW15: Z-7739505 | IX15: 6 | IY15: 2018-02-09 | IZ15: Z-7739549 | JA15: 4 | JB15: 2018-02-09 | JC15: Z-7739516 | JD15: 4 | JE15: 2018-04-12 | JF15: ФГБОУ ВО Костромская ГСХА, кафедра бухгалтерский учет, анализ | JG15: 4 | JH15: 2018-04-12 | JI15: СПК "Анохинский" Грязовецкого р-на Вологодской обл. | JJ15: 3.84 | JL15: 16 | JM15: 21 | JN15: 12 | JO15: 12 | JP15: 49 | JQ15: =SUMIF(CC15:JG15,">0",Предметы!$CC$3:$JG$3) -> 7704 | JR15: 963
A16: =A15+1 -> 9 | B16: Малкова (Соловьёва) | C16: Лидия | D16: Олеговна | E16: Малкова (Соловьёва) Л. О. | G16: Малкове | H16: (Соловьёва)у | I16: Лидияу | J16: 1995-04-09 | K16: г. Галич Костромской обл. | L16: РФ | M16: ж | N16: ОГБ ПОУ "Галичский аграрный техникум Костромской области" | O16: 2014 | P16: замужем | Q16: Костромская обл., г.Галич, ул. Лермонтова, д. 18 кв. 7 | Y16: 14142 | Z16: Экономический | AA16: 38.03.01 | AB16: Экономика | AC16: Бухгалтерский учет, анализ и аудит | AD16: 4 года | AE16: БАКАЛАВР | AF16: 2-525 | AG16: 2014-08-21 | AH16: по договору с полным возмещением затрат | AI16: 000002873 | AJ16: 2014-08-13 | AX16: 2-571 | AY16: 2015-09-01 | AZ16: 2-561 | BA16: 2016-09-01 | BB16: 2-339 | BC16: 2018-05-03 | BJ16: 2-395 | BK16: 2018-05-21 | BL16: Государственный экзамен | BM16: 2018-06-01 | BN16: 3 | BR16: Бухгалтерский учет и анализ расчетов с поставщиками и покупателями в ООО «Инженерные и строительные системы» г. Мытищи Московской области | BS16: 3 | BT16: 27 | BU16: 2018-06-27 | BW16: 36211 | BX16: 104406 | BY16: 0018149 | BZ16: 2018-06-29 | CA16: 4 | CB16: 248z | CC16: 3 | CD16: 2018-02-09 | CE16: 77510120 | CF16: 6 | CG16: 2018-02-09 | CH16: 77510136 | CI16: 4 | CJ16: 02.06.2015 | CL16: 6 | CM16: 04.06.2015 | CO16: 6 | CP16: 09.06.2015 | CR16: 4 | CS16: 30.05.2015 | CU16: 4 | CV16: 20.01.2016 | CX16: 5 | CY16: 03.06.2015 | DA16: 3 | DB16: 01.07.2016 | DD16: 6 | DE16: 22.05.2015 | DG16: 3 | DH16: 01.07.2016 | DJ16: 6 | DK16: 07.09.2016 | DM16: 3 | DN16: 07.09.2016 | DP16: 3 | DQ16: 08.09.2016 | DS16: 6 | DT16: 25.12.2015 | DV16: 5 | DW16: 28.12.2015 | DY16: 4 | DZ16: 25.04.2016 | EB16: 6 | EC16: 25.04.2016 | EE16: 3 | EF16: 25.04.2016 | EH16: 3 | EI16: 05.09.2016 | EK16: 5 | EL16: 14.09.2016 | ET16: 4 | EU16: п/зач 08.09.2014 | EW16: 4 | EX16: 17.10.2017 | EZ16: 4 | FA16: 17.10.2017 | FC16: 3 | FD16: 2018-03-16 | FE16: 545 | FF16: 3 | FG16: 2018-03-13 | FH16: 527 | FI16: 4 | FJ16: 2017-12-25 | FL16: 5 | FM16: 2018-05-07 | FN16: 791 | FO16: 4 | FP16: 01.12.2016 | FR16: 4 | FS16: 01.12.2016 | FT16: Оптимизация производственной программы предприятия | FU16: 6 | FV16: 2018-03-21 | FW16: 560 | FX16: 3 | FY16: 03.06.2017 | GA16: 4 | GB16: 05.09.2017 | GD16: 3 | GE16: 05.09.2017 | GF16: Бухгалтерский баланс и бухгалтерская отчентость | GG16: 5 | GH16: 03.06.2017 | GJ16: 5 | GK16: 03.06.2017 | GM16: 3 | GN16: 2018-05-17 | GO16: Формирование и использование прибыли организации. | GP16: 4 | GQ16: 18.12.2017 | GS16: 3 | GT16: 03.06.2017 | GV16: 3 | GW16: 05.09.2017 | GX16: Стандарты и нормы аудита | GY16: 4 | GZ16: 08.09.2014 | HB16: 4 | HC16: 2018-04-16 | HD16: 658 | HE16: 5 | HF16: 2018-05-15 | HG16: 852 | HH16: 3 | HI16: 2018-03-20 | HJ16: 553 | HK16: 5 | HL16: 2018-05-04 | HM16: 762 | HN16: 5 | HO16: 2018-05-16 | HP16: Анализ оборотных средств и повышение эффективности их использования в АО «ЗЕЛЕНОГРАДСКОЕ» Пушкинского района Московской области | HQ16: 5 | HR16: 2018-02-21 | HS16: 493 | HT16: 5 | HU16: 2018-04-16 | HV16: 665 | HW16: 6 | HX16: 2018-05-04 | HY16: 755 | HZ16: 5 | IA16: 08.09.2014 | IC16: 3 | ID16: 2018-04-17 | IE16: 7759714-13 | IF16: 6 | IG16: 2018-02-09 | IH16: 7759562 | II16: 6 | IJ16: 2018-02-09 | IK16: 7759561 | IL16: 4 | IM16: 2018-05-04 | IN16: 7759521-23 | IO16: 4 | IP16: 2018-05-04 | IQ16: Учет расчётов с поставщиками и покупателями | IR16: 3 | IS16: 2018-04-16 | IT16: 7759509 | IU16: 3 | IV16: 2018-03-20 | IW16: 7759505-3 | IX16: 6 | IY16: 2018-03-14 | IZ16: 7759549-1 | JA16: 4 | JB16: 2018-02-09 | JC16: 7759516 | JD16: 4 | JE16: 2018-03-23 | JF16: ФГБОУ ВО Костромская ГСХА, кафедра бухгалтерский учет и анализ | JG16: 4 | JH16: 2018-03-31 | JI16: ООО "Инженерные и строительные системы" г. Мытищи Московской обл. | JJ16: 3.8 | JL16: 18 | JM16: 19 | JN16: 12 | JO16: 12 | JP16: 49 | JQ16: =SUMIF(CC16:JG16,">0",Предметы!$CC$3:$JG$3) -> 7704 | JR16: 963
A17: =Лист1!A16+1 -> 10 | B17: Сорокина | C17: Анна | D17: Викторовна | E17: Сорокина А. В. | G17: Сорокиной | H17: Анне | I17: Викторовне | J17: 1990-06-05 | K17: г. Кострома | L17: РФ | M17: ж | N17: Костромской лесомеханический колледж | O17: 2010 | P17: замужем | Q17: г. Кострома, ул. Сутырина, д. 21, кв. 16 | Y17: 14127 | Z17: Экономический | AA17: 38.03.01 | AB17: Экономика | AC17: Бухгалтерский учет, анализ и аудит | AD17: 4 года | AE17: БАКАЛАВР | AF17: 2-525 | AG17: 2014-08-21 | AH17: по договору с полным возмещением затрат | AI17: 000002788 | AJ17: 2014-08-07 | AX17: 2-571 | AY17: 2015-09-01 | AZ17: 2-561 | BA17: 2016-09-01 | BB17: 2-703 | BC17: 2017-09-01 | BJ17: 2-395 | BK17: 2018-05-21 | BL17: Государственный экзамен | BM17: 2018-05-31 | BN17: 5 | BR17: Бухгалтерский учет расчетов с поставщиками, заказчиками и анализ дебиторской и кредиторской задолженности в ООО «ПромЭлектромонтаж» г. Кострома | BS17: 5 | BT17: 21 | BU17: 2018-06-26 | BW17: 36217 | BX17: 104406 | BY17: 0018155 | BZ17: 2018-06-29 | CA17: 4 | CB17: 246z | CC17: 5 | CD17: 2018-02-09 | CF17: 6 | CG17: 2018-02-09 | CI17: 3 | CJ17: 02.06.2015 | CL17: 6 | CM17: 04.06.2015 | CO17: 6 | CP17: 28.05.2015 | CR17: 3 | CS17: 30.05.2015 | CU17: 3 | CV17: 04.06.2015 | CX17: 3 | CY17: 03.06.2015 | DA17: 5 | DB17: 09.06.2015 | DD17: 6 | DE17: 22.05.2015 | DG17: 4 | DH17: 25.12.2015 | DJ17: 6 | DK17: 22.12.2015 | DM17: 5 | DN17: 29.12.2015 | DP17: 3 | DQ17: 26.12.2015 | DS17: 6 | DT17: 25.12.2015 | DV17: 3 | DW17: 28.12.2015 | DY17: 5 | DZ17: 13.04.2016 | EB17: 6 | EC17: 25.04.2016 | EE17: 5 | EF17: 22.04.2016 | EH17: 5 | EI17: 22.04.2016 | EK17: 5 | EL17: 21.04.2016 | ET17: 4 | EU17: 02.07.2016 | EV17: ФГБОУ ВО Костромская ГСХА, кафедра экономической кибернетики | EW17: 5 | EX17: 01.12.2016 | EZ17: 3 | FA17: 01.12.2016 | FC17: 3 | FD17: 01.12.2016 | FF17: 4 | FG17: 01.12.2016 | FI17: 5 | FJ17: 01.12.2016 | FL17: 4 | FM17: 24.11.2016 | FO17: 4 | FP17: 01.12.2016 | FR17: 4 | FS17: 30.11.2016 | FT17: Оптимизация структуры кормопроизводства предприятия | FU17: 6 | FV17: 03.06.2017 | FX17: 4 | FY17: 03.06.2017 | GA17: 4 | GB17: 03.06.2017 | GD17: 3 | GE17: 03.06.2017 | GF17: Учет расчетов с дебиторами и кредиторами | GG17: 5 | GH17: 03.06.2017 | GJ17: 4 | GK17: 03.06.2017 | GM17: 4 | GN17: 03.06.2017 | GO17: Эффективность использования оборотных средств организации (предприятия) | GP17: 5 | GQ17: 03.06.2017 | GS17: 4 | GT17: 03.06.2017 | GV17: 4 | GW17: 03.06.2017 | GX17: Аудит кассовых операций в ООО "Лесное" г. Кострома | GY17: 5 | GZ17: 08.09.2014 | HB17: 3 | HC17: 01.02.2018 | HE17: 4 | HF17: 26.01.2018 | HH17: 4 | HI17: 11.10.2017 | HK17: 5 | HL17: 11.10.2017 | HN17: 5 | HO17: 11.10.2017 | HP17: Анализ эффективности использования оборотных средств в ОАО "Караваево" Костромского р-на Костромской обл. | HQ17: 4 | HR17: 11.10.2017 | HT17: 5 | HU17: 11.10.2017 | HW17: 6 | HX17: 05.02.2018 | HZ17: 5 | IA17: 08.09.2014 | IC17: 4 | ID17: 2018-02-09 | IE17: Z-7739714 | IF17: 6 | IG17: 2018-02-09 | IH17: Z-7739563 | II17: 6 | IJ17: 2018-02-09 | IK17: Z-7739561 | IL17: 4 | IM17: 2018-02-09 | IN17: Z-7739521 | IO17: 4 | IP17: 2018-02-09 | IQ17: Организация бухгалтерского учета на НАО "Свеза Кострома" | IR17: 4 | IS17: 2018-02-09 | IT17: Z-7739509 | IU17: 4 | IV17: 2018-02-09 | IW17: Z-7739505 | IX17: 6 | IY17: 2018-02-09 | IZ17: Z-7739549 | JA17: 5 | JB17: 2018-02-09 | JC17: Z-7739516 | JD17: 5 | JE17: 2018-03-20 | JF17: ФГБОУ ВО Костромская ГСХА, кафедра бухгалтерский учет, анализ | JG17: 4 | JH17: 2018-04-11 | JI17: ООО "ПрофЭлектромонтаж" г. Кострома | JJ17: 4.08 | JL17: 10 | JM17: 21 | JN17: 18 | JO17: 12 | JP17: 49 | JQ17: =SUMIF(CC17:JG17,">0",Предметы!$CC$3:$JG$3) -> 7704 | JR17: 963
A18: =A17+1 -> 11 | B18: Суконкина | C18: Анастасия | D18: Владимировна | E18: Суконкина А. В. | G18: Суконкиной | H18: Анастасии | I18: Владимировне | J18: 1989-07-30 | K18: г. Наволоки Кинешемского р-на Ивановской обл. | L18: РФ | M18: ж | N18: ОГОУ СПО "Кинешемский экономический техникум" | O18: 2010 | P18: замужем | Q18: г. Иваново, ул.Красных Зорь, д. 61, | Y18: 14128 | Z18: Экономический | AA18: 38.03.01 | AB18: Экономика | AC18: Бухгалтерский учет, анализ и аудит | AD18: 4 года | AE18: БАКАЛАВР | AF18: 2-525 | AG18: 2014-08-21 | AH18: по договору с полным возмещением затрат | AI18: 000003025 | AJ18: 2014-08-21 | AX18: 2-532 | AY18: 2014-09-01 | AZ18: 2-571 | BA18: 2015-09-01 | BB18: 2-339 | BC18: 2018-05-03 | BJ18: 2-395 | BK18: 2018-05-21 | BL18: Государственный экзамен | BM18: 2018-06-01 | BN18: 3 | BR18: Бухгалтерский учет и анализ эффективности использования основных средств в АО «Декабрист» Ершовского района Саратовской области | BS18: 5 | BT18: 22 | BU18: 2018-06-26 | BW18: 36218 | BX18: 104406 | BY18: 0018156 | BZ18: 2018-06-29 | CA18: 4 | CB18: 248z | CC18: 3 | CD18: 2018-02-09 | CE18: 77510120 | CF18: 6 | CG18: 2018-02-09 | CH18: 77510136 | CI18: 3 | CJ18: 02.06.2015 | CL18: 6 | CM18: 04.06.2015 | CO18: 6 | CP18: 20.09.2016 | CR18: 5 | CS18: 30.05.2015 | CU18: 5 | CV18: 04.06.2015 | CX18: 5 | CY18: 03.06.2015 | DA18: 4 | DB18: 01.07.2016 | DD18: 6 | DE18: 22.05.2015 | DG18: 3 | DH18: 25.12.2015 | DJ18: 6 | DK18: 22.12.2015 | DM18: 4 | DN18: 29.12.2015 | DP18: 4 | DQ18: 26.12.2015 | DS18: 6 | DT18: 25.12.2015 | DV18: 4 | DW18: 28.12.2015 | DY18: 3 | DZ18: 13.04.2016 | EB18: 6 | EC18: 25.04.2016 | EE18: 4 | EF18: 25.04.2016 | EH18: 3 | EI18: 06.03.2017 | EK18: 5 | EL18: 14.09.2016 | ET18: 4 | EU18: 02.07.2016 | EV18: ФГБОУ ВО Костромская ГСХА, кафедра экономической кибернетики | EW18: 5 | EX18: 01.12.2016 | EZ18: 5 | FA18: 01.12.2016 | FC18: 3 | FD18: 30.05.2017 | FF18: 4 | FG18: 01.12.2016 | FI18: 5 | FJ18: 01.12.2016 | FL18: 5 | FM18: 17.10.2017 | FO18: 3 | FP18: 2017-10-17 | FR18: 3 | FS18: 2018-05-08 | FT18: Определение оптимального составаавтомобильного парка предприятий | FU18: 6 | FV18: 24.10.2017 | FX18: 4 | FY18: 03.06.2017 | GA18: 4 | GB18: 05.05.2017 | GD18: 3 | GE18: 05.09.2017 | GF18: Основные направления и перспективы развития бухгалтерского учета в Российской Федерации | GG18: 5 | GH18: 03.06.2017 | GJ18: 5 | GK18: 18.10.2017 | GM18: 3 | GN18: 28.12.2017 | GO18: Персонал организации и эффективность их использования | GP18: 4 | GQ18: 18.12.2017 | GS18: 5 | GT18: 03.06.2017 | GV18: 3 | GW18: 03.06.2017 | GX18: Планирование аудита | GY18: 3 | GZ18: 08.09.2014 | HB18: 5 | HC18: 2017-10-11 | HD18: Z-7759487 | HE18: 5 | HF18: 2017-10-11 | HG18: Z-7759569 | HH18: 5 | HI18: 2017-10-11 | HJ18: Z-7759504 | HK18: 5 | HL18: 2017-10-11 | HM18: Z-7759525 | HN18: 5 | HO18: 2018-04-19 | HP18: Анализ финансовых результатов и рентабельности продаж продукции АО "Декабрист" Ершовского района Саратовской области | HQ18: 4 | HR18: 2017-10-11 | HS18: Z-7759508 | HT18: 5 | HU18: 2017-10-11 | HV18: Z-7759718 | HW18: 6 | HX18: 2018-05-16 | HY18: 854 | HZ18: 5 | IA18: 2018-01-25 | IC18: 4 | ID18: 2018-02-09 | IE18: 7759714 | IF18: 6 | IG18: 2018-02-09 | IH18: 7759563 | II18: 6 | IJ18: 2018-02-09 | IK18: 7759561 | IL18: 4 | IM18: 2018-05-04 | IN18: 7759521-24 | IO18: 4 | IP18: 2018-04-28 | IQ18: Учет животных на выращивании и откорме | IR18: 4 | IS18: 2018-02-09 | IT18: 7759509 | IU18: 5 | IV18: 2018-02-09 | IW18: 7759505 | IX18: 6 | IY18: 2018-05-11 | IZ18: 7759549-27 | JA18: 5 | JB18: 2018-02-09 | JC18: 7759516 | JD18: 4 | JE18: 2018-04-18 | JF18: ФГБОУ ВО Костромская ГСХА, кафедра бухгалтерский учет и анализ | JG18: 5 | JH18: 2018-04-18 | JI18: АО "Декабрист" Ершовского р-на Саратовской обл. | JJ18: 4.1 | JL18: 12 | JM18: 16 | JN18: 21 | JO18: 12 | JP18: 49 | JQ18: =SUMIF(CC18:JG18,">0",Предметы!$CC$3:$JG$3) -> 7704 | JR18: 963
A19: =Предметы!A11+1 -> 7 | B19: Черняева | C19: Анна | D19: Викторовна | E19: Черняева А. В. | G19: Черняевой | H19: Анне | I19: Викторовне | J19: 1996-03-27 | K19: г. Галич Костромской обл. | L19: РФ | M19: ж | N19: ОГБ ПОУ "Галичский аграрный техникум Костромской области" | O19: 2014 | P19: не замужем | Q19: Костромская обл., г.Галич, ул. Некрасова, д. 17 кв. 1 | Y19: 14130 | Z19: Экономический | AA19: 38.03.01 | AB19: Экономика | AC19: Бухгалтерский учет, анализ и аудит | AD19: 4 года | AE19: БАКАЛАВР | AF19: 2-525 | AG19: 2014-08-21 | AH19: по договору с полным возмещением затрат | AI19: 000002843 | AJ19: 2014-08-12 | AX19: 2-571 | AY19: 2015-09-01 | AZ19: 2-561 | BA19: 2016-09-01 | BB19: 2-703 | BC19: 2017-09-01 | BJ19: 2-395 | BK19: 2018-05-21 | BL19: Государственный экзамен | BM19: 2018-05-31 | BN19: 5 | BR19: Бухгалтерский учет и анализ движения денежных средств в СПК «Маяк» Галичского района Костромской области | BS19: 5 | BT19: 34 | BU19: 2018-06-27 | BW19: 36219 | BX19: 104406 | BY19: 0018157 | BZ19: 2018-06-29 | CA19: 4 | CB19: 246z | CC19: 4 | CD19: 2018-02-09 | CF19: 6 | CG19: 2018-02-09 | CI19: 3 | CJ19: 02.06.2015 | CL19: 6 | CM19: 04.06.2015 | CO19: 6 | CP19: 17.12.2015 | CR19: 3 | CS19: 30.05.2015 | CU19: 3 | CV19: 04.06.2015 | CX19: 4 | CY19: 03.06.2015 | DA19: 4 | DB19: 09.06.2015 | DD19: 6 | DE19: 22.05.2015 | DG19: 3 | DH19: 17.12.2015 | DJ19: 6 | DK19: 22.12.2015 | DM19: 4 | DN19: 29.12.2015 | DP19: 3 | DQ19: 26.12.2015 | DS19: 6 | DT19: 25.12.2015 | DV19: 3 | DW19: 28.12.2015 | DY19: 4 | DZ19: 13.04.2016 | EB19: 6 | EC19: 25.04.2016 | EE19: 3 | EF19: 22.04.2016 | EH19: 4 | EI19: 22.04.2016 | EK19: 5 | EL19: 21.04.2016 | ET19: 4 | EU19: п/зач 08.09.2014 | EW19: 4 | EX19: 01.12.2016 | EZ19: 4 | FA19: 01.12.2016 | FC19: 3 | FD19: 01.12.2016 | FF19: 3 | FG19: 01.12.2016 | FI19: 3 | FJ19: 01.12.2016 | FL19: 4 | FM19: 24.11.2016 | FO19: 3 | FP19: 01.12.2016 | FR19: 3 | FS19: 30.11.2016 | FT19: Оптимальная специализация и сочетание отраслей | FU19: 6 | FV19: 03.06.2017 | FX19: 3 | FY19: 03.06.2017 | GA19: 3 | GB19: 03.06.2017 | GD19: 3 | GE19: 03.06.2017 | GF19: Учет хозяйственных процессов | GG19: 3 | GH19: 03.06.2017 | GJ19: 3 | GK19: 03.06.2017 | GM19: 4 | GN19: 03.06.2017 | GO19: Эффективность отрасли животноводства в организации (предприятии) | GP19: 4 | GQ19: 03.06.2017 | GS19: 3 | GT19: 03.06.2017 | GV19: 5 | GW19: 03.06.2017 | GX19: Организация аудиторской деятельности в Российской Федерации | GY19: 4 | GZ19: 08.09.2014 | HB19: 3 | HC19: 11.10.2017 | HE19: 4 | HF19: 11.10.2017 | HH19: 3 | HI19: 11.10.2017 | HK19: 3 | HL19: 11.10.2017 | HN19: 4 | HO19: 11.10.2017 | HP19: Анализ эффективности производства молока в СПК "Маяк" Галичского р-на Костромской обл. | HQ19: 4 | HR19: 11.10.2017 | HT19: 5 | HU19: 11.10.2017 | HW19: 6 | HX19: 11.10.2017 | HZ19: 5 | IA19: 08.09.2014 | IC19: 3 | ID19: 2018-02-09 | IE19: Z-7739714 | IF19: 6 | IG19: 2018-02-09 | IH19: Z-7739563 | II19: 6 | IJ19: 2018-02-09 | IK19: Z-7739561 | IL19: 4 | IM19: 2018-02-09 | IN19: Z-7739521 | IO19: 3 | IP19: 2018-03-26 | IQ19: Учет денежных средств в СПК "Маяк" Галичского района Костромской области | IR19: 3 | IS19: 2018-04-27 | IT19: 7739509-27 | IU19: 3 | IV19: 2018-02-09 | IW19: Z-7739505 | IX19: 6 | IY19: 2018-02-09 | IZ19: Z-7739549 | JA19: 4 | JB19: 2018-02-09 | JC19: Z-7739516 | JD19: 4 | JE19: 2018-03-27 | JF19: ФГБОУ ВО Костромская ГСХА, кафедра бухгалтерский учет, анализ | JG19: 4 | JH19: 2018-04-19 | JI19: СПК "Маяк" Галичского р-на Костромской обл. | JJ19: 3.5 | JL19: 25 | JM19: 20 | JN19: 4 | JO19: 12 | JP19: 49 | JQ19: =SUMIF(CC19:JG19,">0",Предметы!$CC$3:$JG$3) -> 7704 | JR19: 963
A20: =A19+1 -> 8 | B20: Ширяева (Краснова) | C20: Наталия | D20: Эдуардовна | E20: Ширяева (Краснова) Н. Э. | G20: Ширяевой | H20: Наталии | I20: Эдуардовне | J20: 1990-03-08 | K20: г. Буй Костромской обл. | L20: РФ | M20: ж | N20: Костромской энергетический техникум им Ф.В. Чижова | O20: 2009 | P20: замужем | Q20: г. Кострома, ул. Терешковой, д. 6, кв. 59 | Y20: 14117 | Z20: Экономический | AA20: 38.03.01 | AB20: Экономика | AC20: Бухгалтерский учет, анализ и аудит | AD20: 4 года | AE20: БАКАЛАВР | AF20: 2-525 | AG20: 2014-08-21 | AH20: по договору с полным возмещением затрат | AI20: 000002758 | AJ20: 2014-08-05 | AX20: 2-571 | AY20: 2015-09-01 | AZ20: 2-561 | BA20: 2016-09-01 | BB20: 2-703 | BC20: 2017-09-01 | BJ20: 2-395 | BK20: 2018-05-21 | BL20: Государственный экзамен | BM20: 2018-05-31 | BN20: 5 | BR20: Бухгалтерский учет и анализ использования труда и его оплаты в ООО ЧОО «Зевс» г. Кострома | BS20: 5 | BT20: 17 | BU20: 2018-06-25 | BW20: 36220 | BX20: 104406 | BY20: 0018158 | BZ20: 2018-06-29 | CA20: 4 | CB20: 246z | CC20: 5 | CD20: 2018-02-09 | CF20: 6 | CG20: 2018-02-09 | CI20: 3 | CJ20: 02.06.2015 | CL20: 6 | CM20: 04.06.2015 | CO20: 6 | CP20: 29.05.2015 | CR20: 3 | CS20: 30.05.2015 | CU20: 3 | CV20: 04.06.2015 | CX20: 4 | CY20: 03.06.2015 | DA20: 5 | DB20: 09.06.2015 | DD20: 6 | DE20: 22.05.2015 | DG20: 4 | DH20: 17.12.2015 | DJ20: 6 | DK20: 22.12.2015 | DM20: 5 | DN20: 29.12.2015 | DP20: 3 | DQ20: 26.12.2015 | DS20: 6 | DT20: 25.12.2015 | DV20: 4 | DW20: 28.12.2015 | DY20: 5 | DZ20: 13.04.2016 | EB20: 6 | EC20: 25.04.2016 | EE20: 5 | EF20: 22.04.2016 | EH20: 5 | EI20: 22.04.2016 | EK20: 5 | EL20: 21.04.2016 | ET20: 5 | EU20: п/зач 08.09.2014 | EW20: 5 | EX20: 01.12.2016 | EZ20: 3 | FA20: 01.12.2016 | FC20: 3 | FD20: 01.12.2016 | FF20: 5 | FG20: 01.12.2016 | FI20: 4 | FJ20: 01.12.2016 | FL20: 4 | FM20: 24.11.2016 | FO20: 4 | FP20: 01.12.2016 | FR20: 5 | FS20: 30.11.2016 | FT20: Оптимальная специализация и сочетание отраслей | FU20: 6 | FV20: 03.06.2017 | FX20: 4 | FY20: 03.06.2017 | GA20: 4 | GB20: 03.06.2017 | GD20: 4 | GE20: 03.06.2017 | GF20: Учет расчетов с подотчетными лицами | GG20: 4 | GH20: 03.06.2017 | GJ20: 5 | GK20: 03.06.2017 | GM20: 5 | GN20: 03.06.2017 | GO20: Эффективность использования оборотных средств организации (предприятия) | GP20: 5 | GQ20: 03.06.2017 | GS20: 5 | GT20: 03.06.2017 | GV20: 4 | GW20: 03.06.2017 | GX20: Основные принципы проведения аудита | GY20: 5 | GZ20: 08.09.2014 | HB20: 5 | HC20: 11.10.2017 | HE20: 5 | HF20: 11.10.2017 | HH20: 5 | HI20: 11.10.2017 | HK20: 5 | HL20: 11.10.2017 | HN20: 5 | HO20: 11.10.2017 | HP20: Анализ наличия и эффективности использования оборотных средств в ООО "Минское" Костромского р-на Костромской обл. | HQ20: 4 | HR20: 11.10.2017 | HT20: 5 | HU20: 11.10.2017 | HW20: 6 | HX20: 11.10.2017 | HZ20: 5 | IA20: 2018-01-25 | IC20: 3 | ID20: 2018-02-09 | IE20: Z-7739714 | IF20: 6 | IG20: 2018-02-09 | IH20: Z-7739563 | II20: 6 | IJ20: 2018-02-09 | IK20: Z-7739561 | IL20: 4 | IM20: 2018-02-09 | IN20: Z-7739521 | IO20: 5 | IP20: 2018-02-09 | IQ20: Организация учета производственных запасов в ООО "Минское" | IR20: 4 | IS20: 2018-02-09 | IT20: Z-7739509 | IU20: 5 | IV20: 2018-02-09 | IW20: Z-7739505 | IX20: 6 | IY20: 2018-02-09 | IZ20: Z-7739549 | JA20: 5 | JB20: 2018-02-09 | JC20: Z-7739516 | JD20: 5 | JE20: 2018-03-20 | JF20: ФГБОУ ВО Костромская ГСХА, кафедра бухгалтерский учет, анализ | JG20: 5 | JH20: 2018-03-31 | JI20: ООО ЧОО "Зевс" г. Кострома | JJ20: 4.34 | JL20: 7 | JM20: 14 | JN20: 28 | JO20: 12 | JP20: 49 | JQ20: =SUMIF(CC20:JG20,">0",Предметы!$CC$3:$JG$3) -> 7704 | JR20: 963
A21: =A20+1 -> 9 | B21: Шитова | C21: Светлана | D21: Андреевна | E21: Шитова С. А. | G21: Шитовой | H21: Светлане | I21: Андреевне | J21: 1981-09-15 | K21: г. Кострома | L21: РФ | M21: ж | N21: Костромской политехнический колледж города Костромы | O21: 2000 | P21: не замужем | Q21: г. Кострома, ул. Верхне-Селищенская, д. 116\63, кв. 2 | Y21: 13114 | Z21: Экономический | AA21: 38.03.01 | AB21: Экономика | AC21: Бухгалтерский учет, анализ и аудит | AD21: 4 года | AE21: БАКАЛАВР | AF21: 2-552 | AG21: 2013-08-30 | AH21: по договору с полным возмещением затрат | AI21: 000001118 | AJ21: 2013-08-23 | AM21: 2-491 | AN21: 2017-06-06 | AO21: невыполнение учебного плана | AP21: 2-1006 | AQ21: 2017-12-18 | AX21: 2-571 | AY21: 2015-09-01 | AZ21: 2-37 | BA21: 2016-02-01 | BB21: 2-561 | BC21: 2016-09-01 | BJ21: 2-395 | BK21: 2018-05-21 | BL21: Государственный экзамен | BM21: 2018-06-01 | BN21: 5 | BR21: Бухгалтерский учет и анализ расчетов с поставщиками и покупателями в ООО «Техстройконтракт – Сервис» г. Москва | BS21: 5 | BT21: 31 | BU21: 2018-06-27 | BW21: 36221 | BX21: 104406 | BY21: 0018159 | BZ21: 2018-06-29 | CA21: 4 | CB21: 248z | CC21: 3 | CD21: 2018-02-09 | CE21: 77510120 | CF21: 6 | CG21: 2018-02-09 | CH21: 77510136 | CI21: 4 | CJ21: 12.04.2012 | CL21: 6 | CM21: 03.03.2014 | CO21: 6 | CP21: 13.09.2014 | CR21: 4 | CS21: 20.01.2016 | CU21: 5 | CV21: 20.01.2016 | CX21: 5 | CY21: 27.06.2014 | DA21: 4 | DB21: 11.03.2016 | DD21: 6 | DE21: 24.04.2014 | DG21: 4 | DH21: 16.12.2014 | DJ21: 6 | DK21: 23.12.2014 | DM21: 4 | DN21: 29.12.2014 | DP21: 5 | DQ21: 19.12.2014 | DS21: 6 | DT21: 19.12.2014 | DV21: 5 | DW21: 25.12.2014 | DY21: 4 | DZ21: 22.04.2015 | EB21: 6 | EC21: 16.04.2015 | EE21: 4 | EF21: 21.04.2015 | EH21: 3 | EI21: 18.04.2015 | EK21: 5 | EL21: 25.04.2015 | ET21: 5 | EU21: п/зач 08.09.2014 | EW21: 4 | EX21: 28.06.2016 | EZ21: 5 | FA21: 01.07.2016 | FC21: 4 | FD21: 10.05.2016 | FF21: 3 | FG21: 29.06.2016 | FI21: 5 | FJ21: 20.09.2016 | FL21: 4 | FM21: 31.08.2016 | FO21: 5 | FP21: 06.09.2016 | FR21: 5 | FS21: 13.12.2017 | FT21: Оптимизация распределения заготовленных кормов | FU21: 6 | FV21: 05.06.2016 | FX21: 4 | FY21: 18.01.2018 332 | GA21: 5 | GB21: 04.06.2016 | GD21: 5 | GE21: 29.08.2016 | GF21: Бухгалтерские счета и двойная запись | GG21: 5 | GH21: 04.06.2016 | GJ21: 5 | GK21: 15.12.2017 | GM21: 4 | GN21: 15.12.2017 | GO21: Ценовая политика организации (предприятия) | GP21: 4 | GQ21: 04.06.2016 | GS21: 5 | GT21: 04.06.2016 | GV21: 3 | GW21: 04.06.2016 | GX21: Организация аудита расчетов с персоналом по оплате труда | GY21: 5 | GZ21: 08.09.2014 | HB21: 5 | HC21: 13.12.2017 | HE21: 4 | HF21: 12.10.2016 | HH21: 5 | HI21: 12.10.2016 | HK21: 5 | HL21: 12.10.2016 | HN21: 5 | HO21: 2018-03-29 | HP21: Анализ использования трудовых ресурсов | HQ21: 4 | HR21: 12.10.2016 | HT21: 5 | HU21: 15.12.2017 | HW21: 6 | HX21: 14.12.2017 | HZ21: 4 | IA21: 08.09.2014 | IC21: 5 | ID21: 2018-02-09 | IE21: 7759714 | IF21: 6 | IG21: 2018-02-09 | IH21: 7759563 | II21: 6 | IJ21: 2018-04-12 | IK21: 7759561 | IL21: 4 | IM21: 2018-04-27 | IN21: 7759521-19 | IO21: 4 | IP21: 2018-04-13 | IQ21: Учет расчетов с поставщиками и покупателями в ООО "Электрон" | IR21: 4 | IS21: 2018-02-09 | IT21: 7759509 | IU21: 5 | IV21: 04.02.2017 | IX21: 6 | IY21: 2018-03-16 | IZ21: 7759549-2 | JA21: 4 | JB21: 2018-02-09 | JC21: 7759516 | JD21: 5 | JE21: 03.04.2017 | JF21: ФГБОУ ВО Костромская ГСХА, кафедра бухгалтерский учет и анализ | JG21: 4 | JH21: 15.04.2017 | JI21: ООО "КонтрактСервис" г. Кострома | JJ21: 4.32 | JL21: 4 | JM21: 21 | JN21: 24 | JO21: 12 | JP21: 49 | JQ21: =SUMIF(CC21:JG21,">0",Предметы!$CC$3:$JG$3) -> 7704 | JR21: 963
A22: =A21+1 -> 10 | B22: Яшина | C22: Анна | D22: Сергеевна | E22: Яшина А. С. | G22: Яшиной | H22: Анне | I22: Сергеевне | J22: 1995-12-26 | K22: г. Кострома | L22: РФ | M22: ж | N22: ОГБ ПОУ "Костромской торгово-экономический колледж" | O22: 2014 | P22: не замужем | Q22: Костромская обл., Костромской р-н, дер. Некрасово, ул. Приозерная, д. 36а | Y22: 14132 | Z22: Экономический | AA22: 38.03.01 | AB22: Экономика | AC22: Бухгалтерский учет, анализ и аудит | AD22: 4 года | AE22: БАКАЛАВР | AF22: 2-525 | AG22: 2014-08-21 | AH22: по договору с полным возмещением затрат | AI22: 000002905 | AJ22: 2014-08-14 | AX22: 2-571 | AY22: 2015-09-01 | AZ22: 2-561 | BA22: 2016-09-01 | BB22: 2-339 | BC22: 2018-05-03 | BJ22: 2-395 | BK22: 2018-05-21 | BL22: Государственный экзамен | BM22: 2018-05-31 | BN22: 5 | BR22: Бухгалтерский учет и анализ эффективности использования материально-производственных запасов в ООО «Декор пластик» г. Кострома | BS22: 5 | BT22: 23 | BU22: 2018-06-26 | BW22: 36222 | BX22: 104406 | BY22: 0018160 | BZ22: 2018-06-29 | CA22: 4 | CB22: 246z | CC22: 4 | CD22: 2018-02-09 | CF22: 6 | CG22: 2018-02-09 | CI22: 3 | CJ22: 02.06.2015 | CL22: 6 | CM22: 04.06.2015 | CO22: 6 | CP22: 29.05.2015 | CR22: 3 | CS22: 06.06.2015 | CU22: 3 | CV22: 26.05.2017 | CX22: 3 | CY22: 03.06.2015 | DA22: 4 | DB22: 09.06.2015 | DD22: 6 | DE22: 22.05.2015 | DG22: 3 | DH22: 17.12.2015 | DJ22: 6 | DK22: 22.12.2015 | DM22: 4 | DN22: 29.12.2015 | DP22: 3 | DQ22: 26.12.2015 | DS22: 6 | DT22: 25.12.2015 | DV22: 3 | DW22: 28.12.2015 | DY22: 3 | DZ22: 13.04.2016 | EB22: 6 | EC22: 25.04.2016 | EE22: 3 | EF22: 22.04.2016 | EH22: 3 | EI22: 22.04.2016 | EK22: 3 | EL22: 21.04.2016 | ET22: 3 | EU22: п/зач 08.09.2014 | EW22: 4 | EX22: 01.12.2016 | EZ22: 5 | FA22: 01.12.2016 | FC22: 3 | FD22: 09.02.2018 | FF22: 3 | FG22: 01.12.2016 | FI22: 3 | FJ22: 28.09.2017 | FL22: 4 | FM22: 24.11.2016 | FO22: 3 | FP22: 01.12.2016 | FR22: 3 | FS22: 30.11.2016 | FT22: Оптимизация структуры кормопроизводства предприятия | FU22: 6 | FV22: 03.06.2017 | FX22: 3 | FY22: 03.06.2017 | GA22: 3 | GB22: 23.06.2017 | GD22: 3 | GE22: 23.06.2017 | GF22: Учет расчетов с персоналом по оплате труда | GG22: 4 | GH22: 03.06.2017 | GJ22: 4 | GK22: 03.06.2017 | GM22: 3 | GN22: 03.06.2017 | GO22: Порядок формирования цен на продукцию сельскохозяйственных организаций Буйского района Костромской области | GP22: 3 | GQ22: 03.06.2017 | GS22: 4 | GT22: 03.06.2017 | GV22: 3 | GW22: 05.02.2018 | GX22: Нормы и стандарты аудита | GY22: 4 | GZ22: 08.09.2014 | HB22: 4 | HC22: 11.10.2017 | HE22: 4 | HF22: 11.10.2017 | HH22: 3 | HI22: 11.10.2017 | HK22: 4 | HL22: 11.10.2017 | HN22: 3 | HO22: 11.10.2017 | HP22: Комплексный анализ персонала и эффективности использования рабочего временив организации | HQ22: 4 | HR22: 11.10.2017 | HT22: 5 | HU22: 11.10.2017 | HW22: 6 | HX22: 20.11.2017 | HZ22: 3 | IA22: 08.09.2014 | IC22: 3 | ID22: 2018-02-09 | IE22: Z-7739714 | IF22: 6 | IG22: 2018-02-09 | IH22: Z-7739563 | II22: 6 | IJ22: 2018-02-09 | IK22: Z-7739561 | IL22: 3 | IM22: 2018-02-09 | IN22: Z-7739521 | IO22: 4 | IP22: 2018-02-09 | IQ22: Учет труда и его оплаты в организации (отрасли) | IR22: 3 | IS22: 2018-02-09 | IT22: Z-7739509 | IU22: 4 | IV22: 2018-02-09 | IW22: Z-7739505 | IX22: 6 | IY22: 2018-02-09 | IZ22: Z-7739549 | JA22: 4 | JB22: 2018-02-09 | JC22: Z-7739516 | JD22: 4 | JE22: 2018-03-20 | JF22: ФГБОУ ВО Костромская ГСХА, кафедра бухгалтерский учет, анализ | JG22: 4 | JH22: 2018-04-11 | JI22: ООО "Декор Пластик" г. Кострома | JJ22: 3.38 | JL22: 29 | JM22: 18 | JN22: 2 | JO22: 12 | JP22: 49 | JQ22: =SUMIF(CC22:JG22,">0",Предметы!$CC$3:$JG$3) -> 7704 | JR22: 963
